{"text_format":"3","workbook":"xlsx","n_sheets":3,"sheets":["Dataset","District of Origin","District Of Last displacement"],"not_rendered":{"defined_names":2},"read":"whole","date_system":"1900"}

{"sheet":"Dataset","index":0,"n_rows":404,"n_cols":111,"rows_kept":404,"merged":[[0,0,1,35],[1,36,1,43],[1,44,1,50],[1,51,1,60],[1,61,1,68],[1,69,1,75]]}
[{"$nulls":36},"Assessment from this point includes sites with >=15 HH "]
[{"$nulls":36},"# of Total IDP and Returnee Individuals by Shelter Type",{"$nulls":7},"Governorate of Origin (# of IDP Individuals)",{"$nulls":6},"Period of Displacement (# of IDP Individuals)",{"$nulls":9},"Period of Former Displacement(# of Returnee Individuals)",{"$nulls":7},"Governorate of Last displacement (# of Returnee Individuals)"]
["SettlementID","DateofInterview","Governorate","District","Sub-district","LocationType","PlaceType","Location (EN)","Location (AR)","DataCollectionMethod","Q6 Site has a name","Q6.1 SiteName(EN)","Q6.1 SiteName(AR)","Q6.2 Site Or Cluster","Q6.2.1 NumSitesInCluster","Q7 IDPs in Site","Q7.1 # of IDP Families","# of IDP Individuals","Q7  Returnees In Site","Q7.1 # of Returnee Families","# of Returnee Individuals","Q7 Stayees in Site","Q7.1 # of Stayee Families (if known)","# of Stayee Individuals (if known)","Q7 Pre-2014 IDPs in Site","Q7.1 # of pre-2014 IDP Families (if known)","# of pre-2014 IDP Individuals (if known)","Q8 ShelterType - Tent/ Makeshift shelter","Q8 ShelterType - Mud or block structures","Q8 ShelterType - Container/caravan","Q8 ShelterType - School building","Q8 ShelterType - Religious building","Q8 ShelterType - Unfinished/abandoned buildings","Q8 ShelterType - Public building or collective centre","Q8 ShelterType - Other (garage, farm building or barn, shop, etc)","# Total of IDPs and Returnees Families in Site","Q8.1 # of Individuals in Tent/ Makeshift shelter","Q8.1 # of Individuals in Mud or block structures","Q8.1 # of Individuals in Container/caravan","Q8.1 # of Individuals In School building","Q8.1 # of Individuals In Religious building","Q8.1 # of Individuals In Unfinished/abandoned buildings","Q8.1 # of Individuals In Public building or collective centre","Q8.1 # of Individuals in Other (garage, farm building or barn, shop, etc)","Q9 Governorate of origin - Anbar","Q9 Governorate of origin - Babylon","Q9 Governorate of origin- Baghdad","Q9 Governorate of origin - Diyala","Q9 Governorate of origin - Kirkuk","Q9 Governorate of origin - Ninewa","Q9 Governorate of origin- Salah al-Din","Q10 IDPsWave1-January to May 2014","Q10 IDPsWave2-June to July 2014","Q10 IDPsWave3-August 2014","Q10 IDPsWave4-September 2014 to March 2015","Q10 IDPsWave5-April 2015 to March 2016","Q10 IDPsWave6-April to September 2016","Q10 IDPsWave7-October 2016 to June 2017","Q10 IDPsWave8-July 2017- December 2018","Q10 IDPsWave9-January 2019 – December 2019","Q10 IDPsWave12-January 2022 or later","Q11 RetWave1-January to May 2014","Q11 RetWave2-June to July 2014","Q11 RetWave3-August 2014","Q11 RetWave4-September 2014 to March 2015","Q11 RetWave5-April 2015 to March 2016","Q11 RetWave6-April to September 2016","Q11 RetWave7-October 2016 to June 2017","Q11 RetWave8-July 2017 to December 2018","Q12 Governorate of last displacement - Anbar","Q12 Governorate of last displacement - Baghdad","Q12 Governorate of last displacement - Dahuk","Q12 Governorate of last displacement - Erbil","Q12 Governorate of last displacement - Ninewa","Q12 Governorate of last displacement - Salah al-Din","Q12 Governorate of last displacement - Sulaymaniyah","Q13 Arrival Date","Q14 ArrivedLast12Months","Q14.1 ArrivedFromCamp","Q15 LandOwnership","Q16 HasAgreementToUseLand -   Written","Q16 HasAgreementToUseLand -   Verbal","Q16 HasAgreementToUseLand -   No","Q16 HasAgreementToUseLand -   Don't Know","Q17  ResidentsAreAllowedToMakeInfrastructureChanges","Q18 FamiliesPayRent","Q19.4 AccessToLegalServices","Q21 MajorityEconomicallyActive","Q22 MeetBasicNeeds","Q23 FamiliesOwnProperty","Q24 ProvidedAssistance","Q24.1 Humanitarian organisations  (UN, NGOs) ","Q24.1 Charity from host community (rich people, merchants, mosque, etc)","Q24.1 Government assistance","Q24.1 Relatives and friends","Q25 HaveEnoughWater","Q26 AccessToSoap","Q27 WaterIssue","Q28 AccessToLatrines","Q29 AccessToGarbageBins","Q30 Environmental phenomena - Drought","Q30 Environmental phenomena - Changing rainfall patterns","Q30 Environmental phenomena - Increased temperature","Q30 Environmental phenomena - Sand- or Dust-storms","Q31 UnmetNeed1","Q31 UnmetNeed2","Q31 UnmetNeed3","Q31 UnmetNeedsOthr","Q32 IDPsShortTermIntention","Q32.1 IDPReceiveAssistanceWantToReturn","Q33 IDPsLongTermIntention"]
[2101047,"2022-05-05","Anbar","Al-Ka'im","Al-Obiadi","Urban","Site","34249-complex of Phosphate company","34249-المجمع السكني لموظفي شركة الفوسفات","Field visit","Yes","complex of Phosphate company","المجمع السكني لموظفي شركة الفوسفات","Site",null,"Yes",7,42,"Yes",49,294,"No",0,0,"No",0,0,null,null,"Yes",{"$nulls":5},{"$f":"Q4+T4","v":56},0,0,336,0,0,0,0,0,42,0,0,0,0,0,0,0,0,0,42,0,0,0,0,0,0,0,12,0,90,114,18,0,60,180,42,0,54,0,0,18,"2019-04-01","Yes","No","Public-state/government/local authorities","yes",{"$nulls":3},"Yes they are allowed to upgrade the infrastructure, and upgrades are being made","No","None (0%)","No","Very few meet their needs (1-24%)","A majority (50-74%)","No",{"$nulls":4},"All or nearly all had enough water (91-100%) ","All or nearly all were able to access  (91-100%) ","No","Yes","No","yes","yes","yes","yes","Shelter/Housing","Rehabilitation/construction of infrastructure and services(roads, sewage system, electricity, garbage, etc)","Employment/livelihood ",null,"Stay in the current location","Some would return","Undecided/ Unknown"]
[210200101,"2022-06-05","Anbar","Al-Rutba","Markaz Al-Rutba","Urban","Neighborhood","165-Al Askaree","165-حي العسكري","Field visit","Yes","Al Askaree","حي العسكري","Site",null,"Yes",9,54,"No",0,0,"No",0,0,"No",0,0,{"$nulls":5},"Yes",null,null,{"$f":"Q5+T5","v":9}]
[210200201,"2022-06-05","Anbar","Al-Rutba","Markaz Al-Rutba","Urban","Neighborhood","150-Al Haara","150-حي الحارة","Field visit","Yes","Al Haara","حي الحارة","Site",null,"Yes",8,48,"No",0,0,"No",0,0,"No",0,0,{"$nulls":5},"Yes",null,null,8]
[210200601,"2022-06-05","Anbar","Al-Rutba","Markaz Al-Rutba","Urban","Neighborhood","231-Al Wadi","231-حي الوادي","Field visit","Yes","Al Wadi","حي الوادي","Site",null,"Yes",9,54,"No",0,0,"No",0,0,"No",0,0,{"$nulls":5},"Yes",null,null,9]
[210200801,"2022-06-05","Anbar","Al-Rutba","Markaz Al-Rutba","Urban","Neighborhood","167-Antesar","167-حي الانتصار","Field visit","Yes","Antesar","حي الانتصار","Site",null,"Yes",11,66,"No",0,0,"No",0,0,"No",0,0,{"$nulls":5},"Yes",null,null,11]
[210201401,"2022-06-05","Anbar","Al-Rutba","Markaz Al-Rutba","Urban","Neighborhood","166-Hay Al Meethagh","166-حي الميثاق","Field visit","Yes","Hay Al Meethaq","حي الميثاق","Site",null,"Yes",17,102,"No",0,0,"No",0,0,"No",0,0,{"$nulls":5},"Yes",null,null,17,0,0,0,0,0,102,0,0,102,0,0,0,0,0,0,0,0,0,0,0,0,0,0,102,0,0,0,0,0,0,0,0,0,0,0,0,0,0,0,0,"2019-05-01","No",null,"Privately owned ",null,"yes",null,null,"Yes we are allowed to upgrade the infrastructure, but upgrades are not being made (eg. cannot afford to, do not plan on staying here,do not want to make upgrades)","Yes, some","None (0%)","No","A majority meet their needs (50-74%)","Most or all (75% -100%)","No",{"$nulls":4},"Around half (41%-60%) ","All or nearly all were able to access  (91-100%) ","No","Yes","Yes",{"$nulls":4},"Employment/livelihood ","Drinking water","Rehabilitation/construction of infrastructure and services(roads, sewage system, electricity, garbage, etc)",null,"Stay in the current location","Most or all would return","Undecided/ Unknown"]
[210201601,"2022-06-05","Anbar","Al-Rutba","Markaz Al-Rutba","Urban","Neighborhood","233-Hay Al-Matar","233-حي المطار","Field visit","Yes","Hay Al-Matar","حي المطار","Site",null,"Yes",12,72,"No",0,0,"No",0,0,"No",0,0,{"$nulls":5},"Yes",null,null,12]
[210202101,"2022-06-05","Anbar","Al-Rutba","Markaz Al-Rutba","Rural","Village","23936-Rumilah Village","23936-قرية رميلة","Field visit","Yes","Rumilah Village","قرية رميلة","Site",null,"Yes",6,36,"No",0,0,"No",0,0,"No",0,0,{"$nulls":5},"Yes",null,null,6]
[2105082,"2022-06-05","Anbar","Falluja","Al-Amirya","Rural","Site","27246-AAF","27246-مخيم عامرية الفلوجة","Field visit","Yes","AAF","مخيم عامرية الفلوجة","Site",null,"Yes",323,{"v":1938,"d":"1,938"},"No",0,0,"No",0,0,"No",0,0,"Yes",{"$nulls":7},323,{"v":1938,"d":"1,938"},0,0,0,0,0,0,0,{"v":1692,"d":"1,692"},246,0,0,0,0,0,0,0,0,0,246,540,540,612,0,0,0,0,0,0,0,0,0,0,0,0,0,0,0,0,0,"2017-07-01","No",null,"Public-state/government/local authorities",null,null,"yes",null,"No ","No","A few (11%-25%) ","No","Very few meet their needs (1-24%)","Only a minority (25-49%) ","Yes","yes",{"$nulls":3},"Most families (76%-90%)","Most families (76%-90%)","Yes","Yes","No",null,null,"yes","yes","Food","Health","NFI",null,"Undecided/ Unknown","Most or all would return","Undecided/ Unknown"]
[2105075,"2022-04-24","Anbar","Falluja","Al-Amirya","Rural","Site","26088-Ahl Al-Ramadi 74","26088-اهل الرمادي 74","Field visit","Yes","Ahl Al-Ramadi 74","اهل الرمادي 74","Site",null,"Yes",68,408,"No",0,0,"No",0,0,"No",0,0,"Yes",{"$nulls":7},68,408,0,0,0,0,0,0,0,408,0,0,0,0,0,0,0,0,0,378,30,0,0,0,0,0,0,0,0,0,0,0,0,0,0,0,0,0,0,0,0,"2014-09-01","Yes","No","Public-state/government/local authorities",null,null,"yes",null,"No ","No","Some (26%-40%) ","No","Only a minority meet their needs (25-49%) ","A majority (50-74%)","Yes","yes","yes",null,null,"More than half (61%-75%) ","More than half (61%-75%) ","Yes","Yes","No",null,null,"yes","yes","Shelter/Housing","Food","Health",null,"Stay in the current location","Some would return","Stay in the current location"]
[210500201,"2022-05-19","Anbar","Falluja","Al-Amirya","Urban","Neighborhood","107-Al Amiriyah","107-العامرية ","Field visit","Yes","Al Amiriyah","العامرية","Cluster",2,"Yes",107,642,"No",0,0,"Yes",null,null,"No",0,0,"Yes","Yes",{"$nulls":6},107,42,600,0,0,0,0,0,0,102,540,0,0,0,0,0,0,0,0,540,102,0,0,0,0,0,0,0,0,0,0,0,0,0,0,0,0,0,0,0,0,"2015-04-01","Yes","Yes, some","Privately owned ",null,"yes",null,null,"No ","Yes, some","Very few (1%-10%)","Yes","A majority meet their needs (50-74%)","A majority (50-74%)","Yes","yes","yes",null,null,"Most families (76%-90%)","Most families (76%-90%)","Yes","Yes","Yes",{"$nulls":4},"Shelter/Housing","NFI","Health",null,"Stay in the current location","Some would return","Stay in the current location"]
[210507001,"2022-05-31","Anbar","Falluja","Al-Amirya","Rural","Village","26091-Al-Amirya-Al Hmedin","26091-الحميدين","Field visit","Yes","AAF_Al Hmedin","الحميدين","Site",null,"Yes",108,648,"No",0,0,"Yes",null,null,"No",0,0,"Yes",{"$nulls":7},108,648,0,0,0,0,0,0,0,90,558,0,0,0,0,0,0,0,0,558,90,0,0,0,0,0,0,0,0,0,0,0,0,0,0,0,0,0,0,0,0,"2015-04-01","No",null,"Public-state/government/local authorities",null,null,"yes",null,"No ","No","Some (26%-40%) ","Yes","Very few meet their needs (1-24%)","A majority (50-74%)","Yes","yes","yes",null,null,"Around half (41%-60%) ","Most families (76%-90%)","Yes","Yes","No",{"$nulls":4},"Drinking water","Food","Health",null,"Stay in the current location","Some would return","Stay in the current location"]
[210507101,"2022-05-08","Anbar","Falluja","Al-Amirya","Rural","Village","26092-Al-Amirya-Al Mouilha","26092-المويلحة","Field visit","Yes","Beizeibz _Al Mouilha","المويلحة","Cluster",2,"Yes",265,{"v":1590,"d":"1,590"},"No",0,0,"Yes",null,null,"No",0,0,null,"Yes",null,null,"Yes",{"$nulls":3},265,0,{"v":1446,"d":"1,446"},0,0,144,0,0,0,150,{"v":1440,"d":"1,440"},0,0,0,0,0,510,0,0,240,840,0,0,0,0,0,0,0,0,0,0,0,0,0,0,0,0,0,0,0,0,"2015-04-01","No",null,"Public-state/government/local authorities",null,null,"yes",null,"No ","No","Some (26%-40%) ","Yes","Only a minority meet their needs (25-49%) ","A majority (50-74%)","Yes","yes","yes",null,null,"Around half (41%-60%) ","More than half (61%-75%) ","Yes","Yes","No",{"$nulls":4},"Drinking water","Food","NFI",null,"Stay in the current location","Some would return","Stay in the current location"]
[210501801,"2022-05-09","Anbar","Falluja","Al-Amirya","Rural","Village","26036-Al-Amirya-Albu Jasim","26036-البوجاسم","Field visit","Yes","AAF_Albu Jasim","البو جاسم","Site",null,"Yes",20,120,"No",0,0,"Yes",null,null,"No",0,0,"Yes",{"$nulls":7},20,120,0,0,0,0,0,0,0,30,90,0,0,0,0,0,0,0,0,0,120,0,0,0,0,0,0,0,0,0,0,0,0,0,0,0,0,0,0,0,0,"2015-04-01","No",null,"Public-state/government/local authorities",null,"yes",null,null,"No ","No","Very few (1%-10%)","Yes","Very few meet their needs (1-24%)","A majority (50-74%)","Yes","yes","yes",null,null,"Around half (41%-60%) ","Most families (76%-90%)","Yes","Yes","No",{"$nulls":4},"Food","Health","NFI",null,"Stay in the current location","Some would return","Undecided/ Unknown"]
[210501901,"2022-04-25","Anbar","Falluja","Al-Amirya","Rural","Village","26037-Al-Amirya-Albu Jwad","26037-البوجواد","Field visit","Yes","Beizeibz _Albu Jwad","البو جواد","Cluster",2,"Yes",147,882,"No",0,0,"Yes",null,null,"No",0,0,"Yes","Yes",{"$nulls":6},147,282,600,0,0,0,0,0,0,36,846,0,0,0,0,0,0,0,0,114,384,384,0,0,0,0,0,0,0,0,0,0,0,0,0,0,0,0,0,0,0,"2015-04-01","Yes","No","Public-state/government/local authorities",null,null,"yes",null,"No ","Yes, some","Some (26%-40%) ","Yes","Only a minority meet their needs (25-49%) ","A majority (50-74%)","Yes","yes","yes",null,null,"More than half (61%-75%) ","Most families (76%-90%)","Yes","Yes","No",{"$nulls":4},"Food","NFI","Health",null,"Stay in the current location","Some would return","Stay in the current location"]
[210507601,"2022-04-25","Anbar","Falluja","Al-Amirya","Rural","Village","26087-Al-Amirya-Albu Salman","26087-البوسليمان","Field visit","Yes","Beizeibz _Albu Salman","البو سليمان","Cluster",2,"Yes",150,900,"No",0,0,"Yes",300,{"v":1800,"d":"1,800"},"No",0,0,"Yes",null,"Yes",{"$nulls":5},150,360,0,540,0,0,0,0,0,360,540,0,0,0,0,0,0,0,0,360,540,0,0,0,0,0,0,0,0,0,0,0,0,0,0,0,0,0,0,0,0,"2015-04-01","Yes","No","Public-state/government/local authorities",null,"yes",null,null,"No ","No","Some (26%-40%) ","Yes","Very few meet their needs (1-24%)","A majority (50-74%)","Yes",null,"yes","yes",null,"More than half (61%-75%) ","Most families (76%-90%)","Yes","Yes","No",{"$nulls":4},"Food","Health","NFI",null,"Stay in the current location","Some would return","Stay in the current location"]
[210507701,"2022-05-31","Anbar","Falluja","Al-Amirya","Rural","Village","26093-Al-Amirya-Tal Ghatas","26093-تل غطاس","Field visit","Yes","AAF_Tal Ghatas","تل غطاس","Site",null,"Yes",34,204,"No",0,0,"Yes",null,null,"No",0,0,null,"Yes",{"$nulls":6},34,0,204,0,0,0,0,0,0,0,204,0,0,0,0,0,0,0,0,0,204,0,0,0,0,0,0,0,0,0,0,0,0,0,0,0,0,0,0,0,0,"2015-04-01","No",null,"Public-state/government/local authorities",null,null,"yes",null,"No ","No","Around half (41%-60%)","Yes","Only a minority meet their needs (25-49%) ","A majority (50-74%)","Yes",null,"yes",null,null,"More than half (61%-75%) ","Most families (76%-90%)","Yes","Yes","No",{"$nulls":4},"Food","Shelter/Housing","NFI",null,"Stay in the current location","Some would return","Stay in the current location"]
[210504301,"2022-04-25","Anbar","Falluja","Al-Amirya","Rural","Village","21410-Albo Jaar","21410-البو جار ","Field visit","Yes","Beizeibz _Albu Jaar","البو جار","Site",null,"Yes",49,294,"No",0,0,"No",0,0,"No",0,0,"Yes",{"$nulls":7},49,294,0,0,0,0,0,0,0,138,156,0,0,0,0,0,0,0,0,0,294,0,0,0,0,0,0,0,0,0,0,0,0,0,0,0,0,0,0,0,0,"2015-04-01","No",null,"Public-state/government/local authorities",null,null,"yes",null,"No ","No","Around half (41%-60%)","Yes","Only a minority meet their needs (25-49%) ","A majority (50-74%)","No",{"$nulls":4},"More than half (61%-75%) ","Most families (76%-90%)","Yes","Yes","No",{"$nulls":4},"Drinking water","Food","Health",null,"Stay in the current location","Some would return","Stay in the current location"]
[210507801,"2022-05-09","Anbar","Falluja","Al-Amirya","Rural","Village","26089-Albu Dhaher-Albu Dhaher","26089-البوظاهر","Field visit","Yes","Albu Dhaher","البوظاهر","Site",null,"Yes",18,108,"No",0,0,"Yes",18,108,"No",0,0,"Yes",{"$nulls":7},18,108,0,0,0,0,0,0,0,18,90,0,0,0,0,0,0,0,0,0,108,0,0,0,0,0,0,0,0,0,0,0,0,0,0,0,0,0,0,0,0,"2015-01-01","No",null,"Mixed ownership (more than one type)",null,"yes",null,null,"No ","No","Some (26%-40%) ","Yes","Only a minority meet their needs (25-49%) ","A majority (50-74%)","Yes",null,"yes",null,null,"More than half (61%-75%) ","All or nearly all were able to access  (91-100%) ","Yes","Yes","No",{"$nulls":4},"Food","Shelter/Housing","Drinking water",null,"Stay in the current location","Some would return","Stay in the current location"]
[210503101,"2022-05-31","Anbar","Falluja","Al-Amirya","Rural","Village","21226-Albu Hori","21226-البوحوري","Field visit","Yes","AAF_Albu Hori","البو حوري","Cluster",2,"Yes",109,654,"No",0,0,"Yes",null,null,"No",0,0,"Yes","Yes",null,null,"Yes",null,"Yes",null,109,18,606,0,0,18,0,12,0,276,378,0,0,0,0,0,0,0,0,0,654,0,0,0,0,0,0,0,0,0,0,0,0,0,0,0,0,0,0,0,0,"2015-04-01","Yes","Yes, some","Public-state/government/local authorities",null,"yes",null,null,"Yes we are allowed to upgrade the infrastructure, but upgrades are not being made (eg. cannot afford to, do not plan on staying here,do not want to make upgrades)","No","Around half (41%-60%)","Yes","Only a minority meet their needs (25-49%) ","A majority (50-74%)","Yes","yes","yes",null,null,"Few families had enough water (1%-40%)","Around half (41%-60%)","Yes","Yes","No",{"$nulls":4},"Drinking water","Food","Health",null,"Stay in the current location","Some would return","Stay in the current location"]
[2105101,"2022-04-24","Anbar","Falluja","Al-Amirya","Rural","Site","33939-Amriyat Al-Fallujah sector 4","33939-القطاع الرابع","Field visit","Yes","Amriyat Al-Fallujah sector 4","القطاع الرابع","Site",null,"Yes",129,774,"No",0,0,"No",0,0,"No",0,0,"Yes",{"$nulls":7},129,774,0,0,0,0,0,0,0,408,366,0,0,0,0,0,0,0,0,0,774,0,0,0,0,0,0,0,0,0,0,0,0,0,0,0,0,0,0,0,0,"2015-04-01","No",null,"Public-state/government/local authorities",null,null,"yes",null,"No ","No","Some (26%-40%) ","No","Very few meet their needs (1-24%)","A majority (50-74%)","Yes","yes","yes",null,null,"Around half (41%-60%) ","Most families (76%-90%)","Yes","Yes","No",null,null,"yes","yes","Shelter/Housing","Health","Food",null,"Stay in the current location","Some would return","Stay in the current location"]
[2105069,"2022-04-23","Anbar","Falluja","Al-Amirya","Rural","Site","26084-Amriyat Al-Fallujah-sector1","26084-عامرية الفلوجة-القطاع الاول","Field visit","Yes","Amriyat Al-Fallujah-sector1","عامرية الفلوجة-القطاع الاول","Site",null,"Yes",103,618,"No",0,0,"Yes",null,null,"No",0,0,"Yes",{"$nulls":7},103,618,0,0,0,0,0,0,0,360,258,0,0,0,0,0,0,0,0,0,618,0,0,0,0,0,0,0,0,0,0,0,0,0,0,0,0,0,0,0,0,"2015-04-01","No",null,"Public-state/government/local authorities",null,null,"yes",null,"No ","No","Some (26%-40%) ","Yes","Very few meet their needs (1-24%)","A majority (50-74%)","Yes",null,"yes",null,null,"More than half (61%-75%) ","More than half (61%-75%) ","Yes","Yes","No",null,null,"yes","yes","Shelter/Housing","Food","NFI",null,"Stay in the current location","Some would return","Stay in the current location"]
[2105073,"2022-04-24","Anbar","Falluja","Al-Amirya","Rural","Site","26085-Amriyat Al-Fallujah-sector2","26085-عامرية الفلوجة-القطاع الثاني","Field visit","Yes","Amriyat Al-Fallujah-sector2","عامرية الفلوجة-القطاع الثاني","Site",null,"Yes",215,{"v":1290,"d":"1,290"},"No",0,0,"Yes",null,null,"No",0,0,"Yes",{"$nulls":7},215,{"v":1290,"d":"1,290"},0,0,0,0,0,0,0,786,504,0,0,0,0,0,0,0,0,504,786,0,0,0,0,0,0,0,0,0,0,0,0,0,0,0,0,0,0,0,0,"2015-04-01","No",null,"Public-state/government/local authorities",null,null,"yes",null,"No ","No","Some (26%-40%) ","No","Very few meet their needs (1-24%)","A majority (50-74%)","Yes","yes","yes",null,null,"More than half (61%-75%) ","More than half (61%-75%) ","Yes","Yes","No",null,null,"yes","yes","Food","Health","NFI",null,"Stay in the current location","Some would return","Stay in the current location"]
[2105102,"2022-04-24","Anbar","Falluja","Al-Amirya","Rural","Site","33940-Amriyat Al-Fallujahsector 3","33940-القطاع الثالث","Field visit","Yes","Amriyat Al-Fallujahsector 3","القطاع الثالث","Site",null,"Yes",106,636,"No",0,0,"No",0,0,"No",0,0,"Yes",{"$nulls":7},106,636,0,0,0,0,0,0,0,210,426,0,0,0,0,0,0,0,0,0,426,210,0,0,0,0,0,0,0,0,0,0,0,0,0,0,0,0,0,0,0,"2015-04-01","No",null,"Public-state/government/local authorities",null,null,"yes",null,"No ","No","Some (26%-40%) ","No","Very few meet their needs (1-24%)","A majority (50-74%)","Yes","yes","yes",null,null,"More than half (61%-75%) ","Most families (76%-90%)","Yes","Yes","No",null,null,"yes","yes","Shelter/Housing","Health","NFI",null,"Stay in the current location","Some would return","Stay in the current location"]
[2105103,"2022-04-24","Anbar","Falluja","Al-Amirya","Rural","Site","33941-Amriyat Al-Fallujahsector 50","33941-قطاع الخمسين","Field visit","Yes","Amriyat Al-Fallujahsector 50","قطاع الخمسين","Site",null,"Yes",83,498,"No",0,0,"No",0,0,"No",0,0,"Yes",{"$nulls":7},83,498,0,0,0,0,0,0,0,18,480,0,0,0,0,0,0,0,0,480,0,18,0,0,0,0,0,0,0,0,0,0,0,0,0,0,0,0,0,0,0,"2014-09-01","Yes","No","Public-state/government/local authorities",null,null,"yes",null,"No ","No","Some (26%-40%) ","No","Very few meet their needs (1-24%)","A majority (50-74%)","Yes","yes","yes",null,null,"More than half (61%-75%) ","Most families (76%-90%)","Yes","Yes","No",null,null,"yes","yes","Health","Shelter/Housing","NFI",null,"Stay in the current location","Some would return","Stay in the current location"]
[210511301,"2022-05-11","Anbar","Falluja","Al-Amirya","Urban","Neighborhood","34290-Hay  Al-Salam","34290-حي السلام","Field visit","Yes","Hay Al-Salam","حي السلام","Site",null,"Yes",122,732,"No",0,0,"Yes",null,null,"No",0,0,null,"Yes",{"$nulls":6},122,0,732,0,0,0,0,0,0,522,210,0,0,0,0,0,0,0,0,210,522,0,0,0,0,0,0,0,0,0,0,0,0,0,0,0,0,0,0,0,0,"2015-04-01","Yes","Yes, some","Privately owned ",null,"yes",null,null,"Yes we are allowed to upgrade the infrastructure, but upgrades are not being made (eg. cannot afford to, do not plan on staying here,do not want to make upgrades)","No","Very few (1%-10%)","Yes","Very few meet their needs (1-24%)","Only a minority (25-49%) ","No",{"$nulls":4},"More than half (61%-75%) ","Most families (76%-90%)","Yes","Yes","No",{"$nulls":4},"Food","Health","Shelter/Housing",null,"Stay in the current location","Some would return","Stay in the current location"]
[210511401,"2022-05-11","Anbar","Falluja","Al-Amirya","Urban","Neighborhood","34291-Hay Al-Maleab","34291-حي الملعب","Field visit","Yes","Hay Al-Maleab","حي الملعب","Site",null,"Yes",220,{"v":1320,"d":"1,320"},"No",0,0,"Yes",null,null,"No",0,0,null,"Yes",{"$nulls":6},220,0,{"v":1320,"d":"1,320"},0,0,0,0,0,0,900,420,0,0,0,0,0,0,0,0,420,900,0,0,0,0,0,0,0,0,0,0,0,0,0,0,0,0,0,0,0,0,"2015-04-01","Yes","Yes, some","Privately owned ",null,"yes",null,null,"Yes we are allowed to upgrade the infrastructure, but upgrades are not being made (eg. cannot afford to, do not plan on staying here,do not want to make upgrades)","Yes, some","Very few (1%-10%)","Yes","Only a minority meet their needs (25-49%) ","A majority (50-74%)","No",{"$nulls":4},"Most families (76%-90%)","All or nearly all were able to access  (91-100%) ","Yes","Yes","Yes",{"$nulls":4},"Food","Health","NFI",null,"Undecided/ Unknown","Some would return","Undecided/ Unknown"]
[2105008,"2022-05-15","Anbar","Falluja","Al-Amirya","Rural","Site","23276-HTC","23276-مخيم المدينة السياحية الحبانية","Field visit","Yes","HTC","مخيم المدينة السياحية الحبانية","Site",null,"Yes",75,450,"No",0,0,"No",0,0,"No",0,0,null,null,"Yes",{"$nulls":5},75,0,0,450,0,0,0,0,0,450,0,0,0,0,0,0,0,0,0,0,0,186,0,264,0,0,0,0,0,0,0,0,0,0,0,0,0,0,0,0,0,"2017-07-01","No",null,"Public-state/government/local authorities",null,null,"yes",null,"No ","No","Around half (41%-60%)","No","Very few meet their needs (1-24%)","Very few (1-24%)","No",{"$nulls":4},"Around half (41%-60%) ","More than half (61%-75%) ","Yes","Yes","No",null,null,"yes","yes","Shelter/Housing","Food","Health",null,"Stay in the current location","Some would return","Stay in the current location"]
[210505101,"2022-05-12","Anbar","Falluja","Al-Garma","Rural","Village","142-Al-shahabi-2","142-الشهابي الثانية","Field visit","Yes","Dawr watiat alkulfa","دور واطئة الكلفه","Site",null,"Yes",85,510,"No",0,0,"No",0,0,"No",0,0,{"$nulls":6},"Yes",null,85,0,0,0,0,0,0,510,0,480,0,30,0,0,0,0,0,0,0,0,510,0,0,0,0,0,0,0,0,0,0,0,0,0,0,0,0,0,0,0,0,"2017-06-01","Yes","Yes, some","Public-state/government/local authorities",null,null,"yes",null,"No ","No","Very few (1%-10%)","No","Only a minority meet their needs (25-49%) ","Very few (1-24%)","No",{"$nulls":4},"Around half (41%-60%) ","Most families (76%-90%)","Yes","Yes","Yes",{"$nulls":4},"Drinking water","Food","Employment/livelihood ",null,"Stay in the current location","Most would still not return ","Stay in the current location"]
[210501201,"2022-05-09","Anbar","Falluja","Al-Saqlawiyah","Urban","Neighborhood","21556-Al Shuhadaa 2","21556-الشهداء الثانية","Field visit","Yes","Al Shuhadaa2","الشهداء الثانيه","Site",null,"No",0,0,"Yes",41,246,"No",0,0,"No",0,0,"Yes",{"$nulls":7},41,246,0,0,0,0,0,0,0,0,0,0,0,0,0,0,0,0,0,0,0,0,0,0,0,0,0,0,0,0,0,246,0,0,246,0,0,0,0,0,0,"2018-01-01","No",null,"Public-state/government/local authorities",null,null,"yes",null,"No ","No","None (0%)","No","Only a minority meet their needs (25-49%) ","None (0%)","No",{"$nulls":4},"Around half (41%-60%) ","Most families (76%-90%)","Yes","Yes","Yes",{"$nulls":4},"NFI","Shelter/Housing","Employment/livelihood "]
[2105111,"2022-06-01","Anbar","Falluja","Markaz Falluja","Peri-urban","Site","34228-low-costs houses/Habbaniah","34228-دور واطئه الكلفه \\الحبانيه","Field visit","Yes","low-costs houses/Habbaniah","دور واطئه الكلفه \\الحبانيه","Cluster",2,"Yes",250,{"v":1500,"d":"1,500"},"No",0,0,"No",0,0,"No",0,0,null,null,"Yes",{"$nulls":3},"Yes",null,250,0,0,342,0,0,0,{"v":1158,"d":"1,158"},0,{"v":1500,"d":"1,500"},0,0,0,0,0,0,{"v":1500,"d":"1,500"},0,0,0,0,0,0,0,0,0,0,0,0,0,0,0,0,0,0,0,0,0,0,0,0,"2020-01-01","Yes","No","Public-state/government/local authorities",null,null,"yes",null,"No ","No","None (0%)","No","Very few meet their needs (1-24%)","A majority (50-74%)","No",{"$nulls":4},"Most families (76%-90%)","Most families (76%-90%)","Yes","Yes","No",null,"yes",null,"yes","Drinking water","Employment/livelihood ","Food",null,"Stay in the current location","Most or all would return","Return to their place of origin"]
[2108003,"2022-05-10","Anbar","Ramadi","Markaz Ramadi","Urban","Site","23851-7 Killo-Al Karfanat","23851-السبعة كيلو-الكرفانات","Field visit","Yes","7 Killo-Al Karfanat","السبعة كيلو-الكرفانات","Site",null,"No",0,0,"Yes",143,858,"No",0,0,"No",0,0,null,null,"Yes",{"$nulls":5},143,0,0,858,0,0,0,0,0,0,0,0,0,0,0,0,0,0,0,0,0,0,0,0,0,0,414,0,0,240,0,204,0,0,528,0,0,330,0,0,0,"2016-08-01","No",null,"Public-state/government/local authorities","yes",{"$nulls":3},"Yes they are allowed to upgrade the infrastructure, and upgrades are being made","No","None (0%)","No","A majority meet their needs (50-74%)","None (0%)","No",{"$nulls":4},"All or nearly all had enough water (91-100%) ","All or nearly all were able to access  (91-100%) ","No","Yes","Yes",{"$nulls":3},"yes","Shelter/Housing","Employment/livelihood ","Rehabilitation/construction of infrastructure and services(roads, sewage system, electricity, garbage, etc)"]
[2108005,"2022-06-02","Anbar","Ramadi","Markaz Ramadi","Urban","Site","23889-7 Killo-al-mojamaa al-sakany","23889-السبعة كيلو-المجمع السكني","Field visit","Yes","7 Killo-al-mojamaa al-sakany","السبعة كيلو-المجمع السكني","Site",null,"Yes",550,{"v":3300,"d":"3,300"},"No",0,0,"No",0,0,"No",0,0,{"$nulls":3},"Yes",null,"Yes","Yes",null,550,0,0,0,12,0,36,{"v":3252,"d":"3,252"},0,{"v":3300,"d":"3,300"},0,0,0,0,0,0,216,300,0,{"v":1908,"d":"1,908"},876,0,0,0,0,0,0,0,0,0,0,0,0,0,0,0,0,0,0,0,0,"2017-08-01","No",null,"Public-state/government/local authorities",null,null,"yes",null,"Yes they are allowed to upgrade the infrastructure, and upgrades are being made","No","Very few (1%-10%)","No","A majority meet their needs (50-74%)","None (0%)","Yes","yes","yes","yes","yes","All or nearly all had enough water (91-100%) ","All or nearly all were able to access  (91-100%) ","No","Yes","Yes",{"$nulls":3},"yes","Shelter/Housing","Rehabilitation/construction of infrastructure and services(roads, sewage system, electricity, garbage, etc)","Education",null,"Stay in the current location","Most would still not return ","Stay within this area, but not in an informal site (locally integrate)"]
[2108092,"2022-06-01","Anbar","Ramadi","Markaz Ramadi","Urban","Site","34178-9 Kilo","34178-9 كيلو","Field visit","Yes","9 Kilo","9 كيلو","Site",null,"Yes",64,384,"No",0,0,"No",0,0,"No",0,0,{"$nulls":5},"Yes",null,null,64,0,0,0,0,0,384,0,0,384,0,0,0,0,0,0,0,0,0,0,0,384,0,0,0,0,0,0,0,0,0,0,0,0,0,0,0,0,0,0,0,"2017-08-01","No",null,"Privately owned ",null,null,"yes",null,"Yes we are allowed to upgrade the infrastructure, but upgrades are not being made (eg. cannot afford to, do not plan on staying here,do not want to make upgrades)","Yes, some","Some (26%-40%) ","No","A majority meet their needs (50-74%)","A majority (50-74%)","Yes","yes",{"$nulls":3},"All or nearly all had enough water (91-100%) ","All or nearly all were able to access  (91-100%) ","Yes","Yes","No",{"$nulls":3},"yes","Drinking water","Shelter/Housing","Food",null,"Return to their place of origin",null,"Return to their place of origin"]
[2108068,"2022-04-27","Anbar","Ramadi","Markaz Ramadi","Urban","Site","33826-AL-Karama complex","33826-مجمع الكرامه","Field visit","Yes","AL-Karama complex","مجمع الكرامه","Site",null,"Yes",153,918,"No",0,0,"No",0,0,"No",0,0,null,null,"Yes",{"$nulls":5},153,0,0,918,0,0,0,0,0,918,0,0,0,0,0,0,384,0,0,0,0,0,0,534,0,0,0,0,0,0,0,0,0,0,0,0,0,0,0,0,0,"2017-08-01","No",null,"Public-state/government/local authorities","yes",{"$nulls":3},"Yes they are allowed to upgrade the infrastructure, and upgrades are being made","No","Very few (1%-10%)","No","A majority meet their needs (50-74%)","None (0%)","Yes","yes",null,"yes","yes","All or nearly all had enough water (91-100%) ","All or nearly all were able to access  (91-100%) ","No","Yes","Yes",{"$nulls":3},"yes","Health","Education","Employment/livelihood ",null,"Stay in the current location","Most would still not return ","Stay in the current location"]
[220202401,"2022-05-29","Babylon","Al-Musayab","Al-Iskandaria","Urban","Neighborhood","24649-Hay Aday-Al Eskandariya","24649-ناحيه الاسكندريه-حي عداي","Field visit","No","structure houses","هياكل مسكونه من قبل النازحين","Site",null,"Yes",10,60,"No",0,0,"Yes",30,180,"No",0,0,null,"Yes",{"$nulls":6},10]
[220200501,"2022-05-25","Babylon","Al-Musayab","Jurf Al-Sakhar","Rural","Village","24164-Al Hamiyah Al Amer Village","24164-الحامية-قرية ال عامر","Field visit","No","agricultural lands","تجاوز الاراضي الزراعية","Site",null,"Yes",6,36,"No",0,0,"No",0,0,"No",0,0,null,"Yes",{"$nulls":6},6]
[220205201,"2022-05-25","Babylon","Al-Musayab","Jurf Al-Sakhar","Urban","Neighborhood","7126-Al Hamiyah-Al Mutaqedin 1","7126-الحامية-المتقاعدين 1","Field visit","No","behind mosque","خلف الجامع","Site",null,"Yes",14,84,"No",0,0,"Yes",130,780,"No",0,0,null,"Yes",{"$nulls":6},14]
[220203101,"2022-05-30","Babylon","Al-Musayab","Markaz Al-Musayab","Urban","Neighborhood","24171-Hay Al Moatnen 3","24171-حي المواطنين 3","Field visit","No","almuatneen 3 sites","تجاوزات المواطنين الثالثة","Site",null,"Yes",10,60,"No",0,0,"Yes",30,180,"No",0,0,null,"Yes",{"$nulls":6},10]
[220203701,"2022-05-31","Babylon","Al-Musayab","Markaz Al-Musayab","Urban","Neighborhood","24983-Hay Alaskary-AlThaghet","24983-حي العسكري-الضغط","Field visit","Yes","under the pressure lines","تحت الضغط","Site",null,"Yes",30,180,"No",0,0,"Yes",45,270,"No",0,0,null,"Yes",{"$nulls":6},30,0,180,0,0,0,0,0,0,0,180,0,0,0,0,0,0,180,0,0,0,0,0,0,0,0,0,0,0,0,0,0,0,0,0,0,0,0,0,0,0,"2014-09-01","No",null,"Public-state/government/local authorities",null,null,"yes",null,"No they are not allowed to upgrade the infrastructure, but upgrades are being made anyway","Yes, most ","Very few (1%-10%)","Yes","Only a minority meet their needs (25-49%) ","Most or all (75% -100%)","No",{"$nulls":4},"Most families (76%-90%)","All or nearly all were able to access  (91-100%) ","No","Yes","No",{"$nulls":4},"Shelter/Housing","Rehabilitation/construction of infrastructure and services(roads, sewage system, electricity, garbage, etc)","Employment/livelihood ",null,"Stay in the current location","Most or all would return","Undecided/ Unknown"]
[230100301,"2022-05-19","Baghdad","Abu Ghraib","Khan Dhari","Urban","Neighborhood","24047-Abo Moniaser","24047-ابو منيصير","Field visit","Yes","Abu moneseer","ابو منيصير","Site",null,"Yes",34,204,"No",0,0,"No",0,0,"No",0,0,null,"Yes",{"$nulls":6},34,0,204,0,0,0,0,0,0,144,18,42,0,0,0,0,60,0,84,0,60,0,0,0,0,0,0,0,0,0,0,0,0,0,0,0,0,0,0,0,0,"2014-11-01","No",null,"Privately owned ","yes",{"$nulls":3},"Yes we are allowed to upgrade the infrastructure, but upgrades are not being made (eg. cannot afford to, do not plan on staying here,do not want to make upgrades)","Yes, some","None (0%)","Yes","Only a minority meet their needs (25-49%) ","Very few (1-24%)","No",{"$nulls":4},"Most families (76%-90%)","Most families (76%-90%)","Yes","Yes","No",{"$nulls":4},"Employment/livelihood ","Access to solutions for displacement-related rights violations (justice, reparations and compensation)","Rehabilitation/construction of infrastructure and services(roads, sewage system, electricity, garbage, etc)",null,"Stay in the current location","Some would return","Return to their place of origin"]
[230100101,"2022-05-24","Baghdad","Abu Ghraib","Markaz Abu Ghraib","Urban","Neighborhood","21173-1 Athar","21173-1 اذار","Field visit","Yes","1 athar","1 اذار","Site",null,"Yes",5,30,"No",0,0,"No",0,0,"No",0,0,null,"Yes",{"$nulls":6},5]
[230100201,"2022-05-24","Baghdad","Abu Ghraib","Markaz Abu Ghraib","Urban","Neighborhood","7671-1 Huzairan","7671-1 حزيران","Field visit","Yes","1 huzairan","1 حزيران","Site",null,"Yes",5,30,"No",0,0,"No",0,0,"No",0,0,null,"Yes",{"$nulls":6},5]
[230102401,"2022-05-30","Baghdad","Abu Ghraib","Markaz Abu Ghraib","Urban","Neighborhood","7658-Al-Resalah","7658-الرسالة","Field visit","Yes","Al resalah","الرسالة","Site",null,"Yes",13,78,"No",0,0,"No",0,0,"No",0,0,null,"Yes",{"$nulls":6},13]
[230109601,"2022-06-19","Baghdad","Abu Ghraib","Markaz Abu Ghraib","Peri-urban","Neighborhood","34292-Hamed Shaban","34292-حميد شعبان","Field visit","Yes","Harmed shaban","حميد شعبان","Site",null,"Yes",44,264,"No",0,0,"No",0,0,"No",0,0,null,"Yes",{"$nulls":6},44,0,264,0,0,0,0,0,0,126,138,0,0,0,0,0,0,0,264,0,0,0,0,0,0,0,0,0,0,0,0,0,0,0,0,0,0,0,0,0,0,"2021-02-01","Yes","No","Privately owned ",null,"yes",null,null,"Yes we are allowed to upgrade the infrastructure, but upgrades are not being made (eg. cannot afford to, do not plan on staying here,do not want to make upgrades)","No","The majority (61-100%) ","No","Very few meet their needs (1-24%)","A majority (50-74%)","Yes","yes","yes",null,null,"All or nearly all had enough water (91-100%) ","All or nearly all were able to access  (91-100%) ","No","Yes","No",{"$nulls":4},"Employment/livelihood ","NFI","Access to solutions for displacement-related rights violations (justice, reparations and compensation)",null,"Stay in the current location","Some would return","Undecided/ Unknown"]
[230103201,"2022-06-06","Baghdad","Abu Ghraib","Markaz Abu Ghraib","Urban","Neighborhood","24034-Hay Al Ghawassah","24034-حي الغواصة","Field visit","Yes","Al ghawasa neighbourhood","حي الغواصة","Site",null,"Yes",9,54,"No",0,0,"No",0,0,"No",0,0,null,"Yes",{"$nulls":6},9]
[230107301,"2022-05-24","Baghdad","Abu Ghraib","Markaz Abu Ghraib","Urban","Neighborhood","31713-Shuhada Markza-Shuhadda the first","31713-الشهداءالمركز-شهداء الاولى","Field visit","Yes","Al shuhadaa al awla","الشهداء الاولى","Site",null,"Yes",19,114,"No",0,0,"No",0,0,"No",0,0,null,"Yes",{"$nulls":6},19,0,114,0,0,0,0,0,0,114,0,0,0,0,0,0,0,0,0,114,0,0,0,0,0,0,0,0,0,0,0,0,0,0,0,0,0,0,0,0,0,"2015-06-01","No",null,"Privately owned ",null,"yes",null,null,"Yes they are allowed to upgrade the infrastructure, and upgrades are being made","Yes, some","Some (26%-40%) ","No","Only a minority meet their needs (25-49%) ","None (0%)","No",{"$nulls":4},"Most families (76%-90%)","Around half (41%-60%)","Yes","Yes","No",{"$nulls":4},"Shelter/Housing","NFI","Employment/livelihood ",null,"Stay in the current location","Some would return","Stay in the current location"]
[230107402,"2022-06-07","Baghdad","Abu Ghraib","Markaz Abu Ghraib","Urban","Neighborhood","31714-Shuhada Markza-Shuhdda the second","31714-الشهداء المركز-شهداء الثانية","Field visit","Yes","Alshuhadaa 2D","الشهداء  2 دي","Site",null,"Yes",59,354,"No",0,0,"No",0,0,"No",0,0,null,"Yes",{"$nulls":6},59,0,354,0,0,0,0,0,0,354,0,0,0,0,0,0,354,0,0,0,0,0,0,0,0,0,0,0,0,0,0,0,0,0,0,0,0,0,0,0,0,"2015-10-01","Yes","No","Public-state/government/local authorities",null,"yes",null,null,"Yes we are allowed to upgrade the infrastructure, but upgrades are not being made (eg. cannot afford to, do not plan on staying here,do not want to make upgrades)","No","Around half (41%-60%)","No","Very few meet their needs (1-24%)","Most or all (75% -100%)","Yes","yes","yes",null,null,"Most families (76%-90%)","All or nearly all were able to access  (91-100%) ","Yes","Yes","No",{"$nulls":4},"Employment/livelihood ","NFI","Access to solutions for displacement-related rights violations (justice, reparations and compensation)",null,"Stay in the current location","Some would return","Undecided/ Unknown"]
[230107403,"2022-06-13","Baghdad","Abu Ghraib","Markaz Abu Ghraib","Urban","Neighborhood","31714-Shuhada Markza-Shuhdda the second","31714-الشهداء المركز-شهداء الثانية","Field visit","Yes","Alshuhadaa-2-A","شهداء 2 اي","Site",null,"Yes",86,516,"No",0,0,"No",0,0,"No",0,0,null,"Yes",{"$nulls":6},86,0,516,0,0,0,0,0,0,516,0,0,0,0,0,0,516,0,0,0,0,0,0,0,0,0,0,0,0,0,0,0,0,0,0,0,0,0,0,0,0,"2021-02-01","Yes","No","Public-state/government/local authorities",null,"yes",null,null,"Yes we are allowed to upgrade the infrastructure, but upgrades are not being made (eg. cannot afford to, do not plan on staying here,do not want to make upgrades)","No","Around half (41%-60%)","No","Very few meet their needs (1-24%)","Most or all (75% -100%)","Yes","yes","yes",null,null,"Most families (76%-90%)","All or nearly all were able to access  (91-100%) ","Yes","Yes","No",{"$nulls":4},"Employment/livelihood ","NFI","Access to solutions for displacement-related rights violations (justice, reparations and compensation)",null,"Stay in the current location","Some would return","Undecided/ Unknown"]
[230107404,"2022-06-14","Baghdad","Abu Ghraib","Markaz Abu Ghraib","Urban","Neighborhood","31714-Shuhada Markza-Shuhdda the second","31714-الشهداء المركز-شهداء الثانية","Field visit","Yes","Alshuhadaa -2-B","شهداء 2 بي","Site",null,"Yes",41,246,"No",0,0,"No",0,0,"No",0,0,null,"Yes",{"$nulls":6},41,0,246,0,0,0,0,0,0,246,0,0,0,0,0,0,246,0,0,0,0,0,0,0,0,0,0,0,0,0,0,0,0,0,0,0,0,0,0,0,0,"2014-03-01","Yes","No","Public-state/government/local authorities",null,"yes",null,null,"Yes we are allowed to upgrade the infrastructure, but upgrades are not being made (eg. cannot afford to, do not plan on staying here,do not want to make upgrades)","No","Around half (41%-60%)","No","Very few meet their needs (1-24%)","Most or all (75% -100%)","Yes","yes",{"$nulls":3},"Most families (76%-90%)","All or nearly all were able to access  (91-100%) ","Yes","Yes","No",{"$nulls":4},"Employment/livelihood ","NFI","Access to solutions for displacement-related rights violations (justice, reparations and compensation)",null,"Stay in the current location","Some would return","Undecided/ Unknown"]
[230107405,"2022-06-12","Baghdad","Abu Ghraib","Markaz Abu Ghraib","Urban","Neighborhood","31714-Shuhada Markza-Shuhdda the second","31714-الشهداء المركز-شهداء الثانية","Field visit","Yes","Alshuhadaa 2-C","شهداء 2 سي","Site",null,"Yes",53,318,"No",0,0,"No",0,0,"No",0,0,null,"Yes",{"$nulls":6},53,0,318,0,0,0,0,0,0,150,144,0,0,0,0,24,0,0,0,318,0,0,0,0,0,0,0,0,0,0,0,0,0,0,0,0,0,0,0,0,0,"2021-08-01","Yes","No","Public-state/government/local authorities",null,"yes",null,null,"Yes we are allowed to upgrade the infrastructure, but upgrades are not being made (eg. cannot afford to, do not plan on staying here,do not want to make upgrades)","No","Around half (41%-60%)","No","Very few meet their needs (1-24%)","Most or all (75% -100%)","Yes","yes","yes",null,null,"Most families (76%-90%)","All or nearly all were able to access  (91-100%) ","Yes","Yes","No",{"$nulls":4},"Employment/livelihood ","Food","Access to solutions for displacement-related rights violations (justice, reparations and compensation)",null,"Stay in the current location","Some would return","Undecided/ Unknown"]
[2305136,"2022-04-26","Baghdad","Al Resafa","9 Nissan","Urban","Site","25969-Zayona","25969-مخيم زيونة","Field visit","Yes","Zayona","مخيم زيونة","Site",null,"Yes",93,558,"No",0,0,"No",0,0,"No",0,0,null,null,"Yes",{"$nulls":5},93,0,0,558,0,0,0,0,0,0,0,0,0,0,534,24,0,0,444,114,0,0,0,0,0,0,0,0,0,0,0,0,0,0,0,0,0,0,0,0,0,"2015-08-01","No",null,"Public-state/government/local authorities",null,"yes",null,null,"No ","No","Very few (1%-10%)","Yes","A majority meet their needs (50-74%)","Only a minority (25-49%) ","No",{"$nulls":4},"All or nearly all had enough water (91-100%) ","All or nearly all were able to access  (91-100%) ","Yes","Yes","Yes","yes",null,null,"yes","NFI","Drinking water","Employment/livelihood ",null,"Stay in the current location","Some would return","Stay in the current location"]
[230701801,"2022-04-27","Baghdad","Karkh","Al-Mansour","Urban","Neighborhood","23734-Al Ghazaliya-681","23734-الغزالية-681","Field visit","Yes","Husainyat Alrasool Ala'adham","حسينية الرسول الأعظم","Site",null,"Yes",10,60,"No",0,0,"No",0,0,"No",0,0,{"$nulls":4},"Yes",{"$nulls":3},10]
[230701001,"2022-04-24","Baghdad","Karkh","Al-Rasheed","Urban","Neighborhood","25221-Al Forat-893","25221-الفرات-893","Field visit","Yes","Nahrain Complex","مجمع نهرين","Site",null,"Yes",20,120,"No",0,0,"No",0,0,"No",0,0,{"$nulls":5},"Yes",null,null,20,0,0,0,0,0,120,0,0,120,0,0,0,0,0,0,0,60,60,0,0,0,0,0,0,0,0,0,0,0,0,0,0,0,0,0,0,0,0,0,0,"2014-08-01","No",null,"Public-state/government/local authorities",null,"yes",null,null,"No ","No","None (0%)","Yes","Most or all meet their needs (75% -100%)","Only a minority (25-49%) ","No",{"$nulls":4},"All or nearly all had enough water (91-100%) ","All or nearly all were able to access  (91-100%) ","No","Yes","Yes",{"$nulls":4},"Employment/livelihood ","NFI","Food",null,"Stay in the current location","Most or all would return","Return to their place of origin"]
[230712401,"2022-05-18","Baghdad","Karkh","Markaz Karkh","Urban","Neighborhood","21745-Al Karkh-212","21745-الكرخ-212","Field visit","Yes","Islamic school","المدرسة الاسلامية","Site",null,"Yes",11,66,"No",0,0,"No",0,0,"No",0,0,{"$nulls":3},"Yes",{"$nulls":4},11]
[230802801,"2022-04-20","Baghdad","Mada'in","Al-Jisr","Urban","Big Area/Sector","7547-Al Wardia","7547-الوردية","Field visit","Yes","IDP Site in Wardiya","مجمع النازحين في الوردية","Site",null,"Yes",18,108,"No",0,0,"No",0,0,"No",0,0,null,"Yes",{"$nulls":6},18,0,108,0,0,0,0,0,0,0,0,0,0,0,0,108,0,0,108,0,0,0,0,0,0,0,0,0,0,0,0,0,0,0,0,0,0,0,0,0,0,"2014-09-01","No",null,"Public-state/government/local authorities",null,"yes",null,null,"No ","No","None (0%)","Yes","Most or all meet their needs (75% -100%)","A majority (50-74%)","No",{"$nulls":4},"All or nearly all had enough water (91-100%) ","All or nearly all were able to access  (91-100%) ","No","Yes","No",{"$nulls":4},"Employment/livelihood ","NFI","Food",null,"Stay in the current location","Most or all would return","Stay in the current location"]
[230805701,"2022-04-20","Baghdad","Mada'in","Nahrawan","Rural","Village","34160-Al-Ahed village ","34160-قرية العهد","Field visit","Yes","Al Ahed village ( AL Bazel street )","قرية العهد (بالقرب من شارع البزل)","Site",null,"Yes",35,210,"No",0,0,"Yes",null,null,"No",0,0,null,"Yes",{"$nulls":6},35,0,210,0,0,0,0,0,0,0,0,0,210,0,0,0,0,0,0,0,0,0,0,0,210,0,0,0,0,0,0,0,0,0,0,0,0,0,0,0,0,"2019-07-01","No",null,"Privately owned ","yes",{"$nulls":3},"Yes they are allowed to upgrade the infrastructure, and upgrades are being made","No","Some (26%-40%) ","No","A majority meet their needs (50-74%)","Most or all (75% -100%)","No",{"$nulls":4},"Most families (76%-90%)","Most families (76%-90%)","No","Yes","No",{"$nulls":4},"Shelter/Housing","Employment/livelihood ","NFI",null,"Stay in the current location","Some would return","Undecided/ Unknown"]
[230900101,"2022-04-25","Baghdad","Mahmoudiya","Al-Latifya","Urban","Neighborhood","23618-14 Tamooz","23618-حي 14 تموز","Field visit","Yes","Tajawz Al bazal","تجاوز البزل","Site",null,"Yes",100,600,"No",0,0,"No",0,0,"No",0,0,null,"Yes",{"$nulls":6},100,0,600,0,0,0,0,0,0,0,600,0,0,0,0,0,0,0,600,0,0,0,0,0,0,0,0,0,0,0,0,0,0,0,0,0,0,0,0,0,0,"2019-08-01","Yes","Yes, some","Public-state/government/local authorities",null,"yes",null,null,"Yes we are allowed to upgrade the infrastructure, but upgrades are not being made (eg. cannot afford to, do not plan on staying here,do not want to make upgrades)","No","The majority (61-100%) ","No","Only a minority meet their needs (25-49%) ","Most or all (75% -100%)","Yes","yes","yes","yes",null,"All or nearly all had enough water (91-100%) ","All or nearly all were able to access  (91-100%) ","No","Yes","No",{"$nulls":4},"Access to solutions for displacement-related rights violations (justice, reparations and compensation)","Employment/livelihood ","NFI",null,"Undecided/ Unknown","Most or all would return","Undecided/ Unknown"]
[230900102,"2022-04-25","Baghdad","Mahmoudiya","Al-Latifya","Urban","Neighborhood","23618-14 Tamooz","23618-حي 14 تموز","Field visit","Yes","Bait  Al zraa","بناية الزراعة","Site",null,"Yes",8,48,"No",0,0,"No",0,0,"No",0,0,{"$nulls":6},"Yes",null,8]
[230900503,"2022-04-24","Baghdad","Mahmoudiya","Al-Latifya","Urban","Neighborhood","25150-Al Latefia-Al Qadessia","25150-اللطيفية-حي القادسية","Field visit","Yes","Qadisiyyah 112 A","القادسية 112 اي","Site",null,"Yes",65,390,"No",0,0,"No",0,0,"No",0,0,null,"Yes",{"$nulls":6},65,0,390,0,0,0,0,0,0,0,390,0,0,0,0,0,0,0,390,0,0,0,0,0,0,0,0,0,0,0,0,0,0,0,0,0,0,0,0,0,0,"2020-10-01","Yes","No","Privately owned ",null,"yes",null,null,"Yes we are allowed to upgrade the infrastructure, but upgrades are not being made (eg. cannot afford to, do not plan on staying here,do not want to make upgrades)","No","The majority (61-100%) ","No","Only a minority meet their needs (25-49%) ","Most or all (75% -100%)","Yes","yes","yes",null,null,"Most families (76%-90%)","All or nearly all were able to access  (91-100%) ","No","Yes","Yes",{"$nulls":4},"Employment/livelihood ","Access to solutions for displacement-related rights violations (justice, reparations and compensation)","NFI",null,"Stay in the current location","Most or all would return","Undecided/ Unknown"]
[230900502,"2022-04-24","Baghdad","Mahmoudiya","Al-Latifya","Urban","Neighborhood","25150-Al Latefia-Al Qadessia","25150-اللطيفية-حي القادسية","Field visit","Yes","Qadisiyyah 112 b","القادسية 112 بي","Site",null,"Yes",56,336,"No",0,0,"No",0,0,"No",0,0,null,"Yes",{"$nulls":6},56,0,336,0,0,0,0,0,0,0,336,0,0,0,0,0,0,0,336,0,0,0,0,0,0,0,0,0,0,0,0,0,0,0,0,0,0,0,0,0,0,"2020-07-01","Yes","No","Privately owned ",null,"yes",null,null,"Yes we are allowed to upgrade the infrastructure, but upgrades are not being made (eg. cannot afford to, do not plan on staying here,do not want to make upgrades)","No","The majority (61-100%) ","No","Only a minority meet their needs (25-49%) ","Most or all (75% -100%)","Yes","yes","yes",null,null,"More than half (61%-75%) ","All or nearly all were able to access  (91-100%) ","No","Yes","Yes",{"$nulls":4},"Employment/livelihood ","Access to solutions for displacement-related rights violations (justice, reparations and compensation)","NFI",null,"Undecided/ Unknown","Most or all would return","Undecided/ Unknown"]
[230900501,"2022-04-24","Baghdad","Mahmoudiya","Al-Latifya","Urban","Neighborhood","25150-Al Latefia-Al Qadessia","25150-اللطيفية-حي القادسية","Field visit","Yes","Qadisiyyah 112 c","القادسية 112 سي","Site",null,"Yes",128,768,"No",0,0,"No",0,0,"No",0,0,null,"Yes",{"$nulls":6},128,0,768,0,0,0,0,0,0,0,768,0,0,0,0,0,0,0,768,0,0,0,0,0,0,0,0,0,0,0,0,0,0,0,0,0,0,0,0,0,0,"2020-10-01","Yes","No","Privately owned ",null,"yes",null,null,"Yes we are allowed to upgrade the infrastructure, but upgrades are not being made (eg. cannot afford to, do not plan on staying here,do not want to make upgrades)","No","The majority (61-100%) ","No","Only a minority meet their needs (25-49%) ","Most or all (75% -100%)","Yes","yes","yes",null,null,"More than half (61%-75%) ","All or nearly all were able to access  (91-100%) ","No","Yes","Yes",{"$nulls":4},"Employment/livelihood ","Access to solutions for displacement-related rights violations (justice, reparations and compensation)","NFI",null,"Stay in the current location","Most or all would return","Undecided/ Unknown"]
[230902701,"2022-04-19","Baghdad","Mahmoudiya","Al-Latifya","Urban","Neighborhood","21463-Hay Al Mazraa","21463-حي المزرعة ","Field visit","Yes","Al Mazraah Tajwz","المزرعة تجاوز","Site",null,"Yes",6,36,"No",0,0,"Yes",null,null,"No",0,0,null,"Yes",{"$nulls":6},6]
[230903001,"2022-04-19","Baghdad","Mahmoudiya","Al-Latifya","Urban","Neighborhood","7733-Hay Al Zuhoor","7733-حي الزهور","Field visit","Yes","Tajawz Al Zohor","تجاوز الزهور","Site",null,"Yes",121,726,"No",0,0,"No",0,0,"No",0,0,null,"Yes",{"$nulls":6},{"$f":"Q67+T67","v":121},0,726,0,0,0,0,0,0,0,726,0,0,0,0,0,0,0,312,414,0,0,0,0,0,0,0,0,0,0,0,0,0,0,0,0,0,0,0,0,0,"2018-10-01","Yes","No","Public-state/government/local authorities",null,"yes",null,null,"Yes they are allowed to upgrade the infrastructure, and upgrades are being made","No","The majority (61-100%) ","No","Only a minority meet their needs (25-49%) ","Most or all (75% -100%)","Yes","yes","yes",null,null,"All or nearly all had enough water (91-100%) ","All or nearly all were able to access  (91-100%) ","Yes","Yes","Yes",{"$nulls":4},"Employment/livelihood ","Access to solutions for displacement-related rights violations (justice, reparations and compensation)","NFI",null,"Undecided/ Unknown","Most or all would return","Undecided/ Unknown"]
[230900802,"2022-04-21","Baghdad","Mahmoudiya","Al-Latifya","Rural","Big Area/Sector","25152-Kilo 18","25152-كيلو 18","Field visit","Yes","Al Sarhaan","السرحان","Site",null,"Yes",47,282,"No",0,0,"No",0,0,"No",0,0,null,"Yes",{"$nulls":6},47,0,282,0,0,0,0,0,0,0,282,0,0,0,0,0,0,0,0,282,0,0,0,0,0,0,0,0,0,0,0,0,0,0,0,0,0,0,0,0,0,"2019-10-01","Yes","No","Privately owned ",null,"yes",null,null,"Yes we are allowed to upgrade the infrastructure, but upgrades are not being made (eg. cannot afford to, do not plan on staying here,do not want to make upgrades)","Yes, some","The majority (61-100%) ","No","Only a minority meet their needs (25-49%) ","Most or all (75% -100%)","Yes","yes","yes","yes",null,"All or nearly all had enough water (91-100%) ","All or nearly all were able to access  (91-100%) ","No","Yes","No",{"$nulls":4},"Employment/livelihood ","NFI","Access to solutions for displacement-related rights violations (justice, reparations and compensation)",null,"Undecided/ Unknown","Most or all would return","Undecided/ Unknown"]
[230900803,"2022-04-21","Baghdad","Mahmoudiya","Al-Latifya","Rural","Big Area/Sector","25152-Kilo 18","25152-كيلو 18","Field visit","Yes","Al-Juruf","الجرف","Site",null,"Yes",71,426,"No",0,0,"No",0,0,"No",0,0,null,"Yes",{"$nulls":6},71,0,426,0,0,0,0,0,0,0,426,0,0,0,0,0,0,0,426,0,0,0,0,0,0,0,0,0,0,0,0,0,0,0,0,0,0,0,0,0,0,"2020-08-01","Yes","No","Privately owned ",null,"yes",null,null,"Yes we are allowed to upgrade the infrastructure, but upgrades are not being made (eg. cannot afford to, do not plan on staying here,do not want to make upgrades)","Yes, some","The majority (61-100%) ","No","Very few meet their needs (1-24%)","Most or all (75% -100%)","Yes","yes","yes","yes",null,"All or nearly all had enough water (91-100%) ","All or nearly all were able to access  (91-100%) ","No","Yes","No",{"$nulls":4},"Access to solutions for displacement-related rights violations (justice, reparations and compensation)","Employment/livelihood ","NFI",null,"Undecided/ Unknown","Most or all would return","Undecided/ Unknown"]
[230900804,"2022-04-21","Baghdad","Mahmoudiya","Al-Latifya","Rural","Big Area/Sector","25152-Kilo 18","25152-كيلو 18","Field visit","Yes","Al-Shooban","الشوبان","Site",null,"Yes",81,486,"No",0,0,"No",0,0,"No",0,0,null,"Yes",{"$nulls":6},81,0,486,0,0,0,0,0,0,0,486,0,0,0,0,0,0,0,0,486,0,0,0,0,0,0,0,0,0,0,0,0,0,0,0,0,0,0,0,0,0,"2020-09-01","Yes","No","Privately owned ",null,"yes",null,null,"Yes we are allowed to upgrade the infrastructure, but upgrades are not being made (eg. cannot afford to, do not plan on staying here,do not want to make upgrades)","No","The majority (61-100%) ","No","Only a minority meet their needs (25-49%) ","Most or all (75% -100%)","Yes","yes","yes","yes",null,"All or nearly all had enough water (91-100%) ","All or nearly all were able to access  (91-100%) ","No","Yes","No",{"$nulls":4},"Employment/livelihood ","Access to solutions for displacement-related rights violations (justice, reparations and compensation)","Food",null,"Undecided/ Unknown","Most or all would return","Undecided/ Unknown"]
[230900805,"2022-04-21","Baghdad","Mahmoudiya","Al-Latifya","Rural","Big Area/Sector","25152-Kilo 18","25152-كيلو 18","Field visit","Yes","Al-Eskandaryea","الاسكندرية","Site",null,"Yes",71,426,"No",0,0,"No",0,0,"No",0,0,null,"Yes",{"$nulls":6},71,0,426,0,0,0,0,0,0,0,426,0,0,0,0,0,0,0,426,0,0,0,0,0,0,0,0,0,0,0,0,0,0,0,0,0,0,0,0,0,0,"2020-10-01","Yes","No","Privately owned ",null,"yes",null,null,"Yes we are allowed to upgrade the infrastructure, but upgrades are not being made (eg. cannot afford to, do not plan on staying here,do not want to make upgrades)","No","The majority (61-100%) ","No","Only a minority meet their needs (25-49%) ","Most or all (75% -100%)","Yes","yes","yes","yes",null,"All or nearly all had enough water (91-100%) ","All or nearly all were able to access  (91-100%) ","No","Yes","No",{"$nulls":4},"Employment/livelihood ","Access to solutions for displacement-related rights violations (justice, reparations and compensation)","NFI",null,"Undecided/ Unknown","Most or all would return","Undecided/ Unknown"]
[230900806,"2022-04-21","Baghdad","Mahmoudiya","Al-Latifya","Rural","Big Area/Sector","25152-Kilo 18","25152-كيلو 18","Field visit","Yes","Al- Erwaiy","الاروائي","Site",null,"Yes",42,252,"No",0,0,"No",0,0,"No",0,0,null,"Yes",{"$nulls":6},42,0,252,0,0,0,0,0,0,0,252,0,0,0,0,0,0,0,252,0,0,0,0,0,0,0,0,0,0,0,0,0,0,0,0,0,0,0,0,0,0,"2020-10-01","Yes","No","Privately owned ",null,"yes",null,null,"Yes we are allowed to upgrade the infrastructure, but upgrades are not being made (eg. cannot afford to, do not plan on staying here,do not want to make upgrades)","No","The majority (61-100%) ","No","Only a minority meet their needs (25-49%) ","Most or all (75% -100%)","Yes","yes","yes","yes",null,"All or nearly all had enough water (91-100%) ","All or nearly all were able to access  (91-100%) ","No","Yes","No",{"$nulls":4},"Employment/livelihood ","Access to solutions for displacement-related rights violations (justice, reparations and compensation)","NFI",null,"Undecided/ Unknown","Most or all would return","Undecided/ Unknown"]
[230900807,"2022-04-21","Baghdad","Mahmoudiya","Al-Latifya","Rural","Big Area/Sector","25152-Kilo 18","25152-كيلو 18","Field visit","Yes","Harmed Abtan","حميد عبطان","Site",null,"Yes",70,420,"No",0,0,"No",0,0,"No",0,0,null,"Yes",{"$nulls":6},70,0,420,0,0,0,0,0,0,0,420,0,0,0,0,0,0,0,0,420,0,0,0,0,0,0,0,0,0,0,0,0,0,0,0,0,0,0,0,0,0,"2020-09-01","Yes","No","Privately owned ",null,"yes",null,null,"Yes we are allowed to upgrade the infrastructure, but upgrades are not being made (eg. cannot afford to, do not plan on staying here,do not want to make upgrades)","No","The majority (61-100%) ","No","Only a minority meet their needs (25-49%) ","Most or all (75% -100%)","Yes","yes","yes","yes",null,"All or nearly all had enough water (91-100%) ","All or nearly all were able to access  (91-100%) ","No","Yes","No",{"$nulls":4},"Access to solutions for displacement-related rights violations (justice, reparations and compensation)","Employment/livelihood ","NFI",null,"Undecided/ Unknown","Most or all would return","Undecided/ Unknown"]
[230900801,"2022-04-21","Baghdad","Mahmoudiya","Al-Latifya","Rural","Big Area/Sector","25152-Kilo 18","25152-كيلو 18","Field visit","Yes","Al Qamishly","القامشلي","Site",null,"Yes",79,474,"No",0,0,"No",0,0,"No",0,0,null,"Yes",{"$nulls":6},79,0,474,0,0,0,0,0,0,0,474,0,0,0,0,0,0,0,474,0,0,0,0,0,0,0,0,0,0,0,0,0,0,0,0,0,0,0,0,0,0,"2019-10-01","Yes","No","Privately owned ",null,"yes",null,null,"Yes we are allowed to upgrade the infrastructure, but upgrades are not being made (eg. cannot afford to, do not plan on staying here,do not want to make upgrades)","No","The majority (61-100%) ","No","Only a minority meet their needs (25-49%) ","Most or all (75% -100%)","Yes","yes","yes",null,null,"All or nearly all had enough water (91-100%) ","All or nearly all were able to access  (91-100%) ","No","Yes","No",{"$nulls":4},"Employment/livelihood ","Access to solutions for displacement-related rights violations (justice, reparations and compensation)","NFI",null,"Undecided/ Unknown","Most or all would return","Undecided/ Unknown"]
[230910501,"2022-05-22","Baghdad","Mahmoudiya","Al-Yousifya","Rural","Village","34229-Abu jaishy village","34229-قرية ابو جيشي","Field visit","Yes","Abu jaishy village","قرية ابو جيشي","Site",null,"Yes",97,582,"No",0,0,"Yes",null,null,"No",0,0,null,"Yes",{"$nulls":6},97,0,582,0,0,0,0,0,0,0,582,0,0,0,0,0,0,0,582,0,0,0,0,0,0,0,0,0,0,0,0,0,0,0,0,0,0,0,0,0,0,"2014-11-01","No",null,"Privately owned",null,"yes",null,null,"Yes we are allowed to upgrade the infrastructure, but upgrades are not being made (eg. cannot afford to, do not plan on staying here,do not want to make upgrades)","Yes, all,","Very few (1%-10%)","No","Only a minority meet their needs (25-49%) ","Most or all (75% -100%)","No",{"$nulls":4},"All or nearly all had enough water (91-100%) ","All or nearly all were able to access  (91-100%) ","No","Yes","No",{"$nulls":4},"Employment/livelihood ","Shelter/Housing","NFI",null,"Stay in the current location","Some would return","Undecided/ Unknown"]
[230910601,"2022-05-22","Baghdad","Mahmoudiya","Al-Yousifya","Rural","Village","34230-Ahmed Abdullah village","34230-قرية احمد عبد الله","Field visit","Yes","Ahmed and Allah village","قرية احمد عبد الله","Site",null,"Yes",108,648,"No",0,0,"Yes",null,null,"No",0,0,null,"Yes",{"$nulls":6},108,0,648,0,0,0,0,0,0,0,648,0,0,0,0,0,0,648,0,0,0,0,0,0,0,0,0,0,0,0,0,0,0,0,0,0,0,0,0,0,0,"2014-11-01","No",null,"Privately owned",null,"yes",null,null,"Yes we are allowed to upgrade the infrastructure, but upgrades are not being made (eg. cannot afford to, do not plan on staying here,do not want to make upgrades)","Yes, all,","A few (11%-25%) ","No","Only a minority meet their needs (25-49%) ","Most or all (75% -100%)","No",{"$nulls":4},"Around half (41%-60%) ","All or nearly all were able to access  (91-100%) ","No","Yes","No",{"$nulls":4},"Employment/livelihood ","Shelter/Housing","NFI",null,"Stay in the current location","Some would return","Undecided/ Unknown"]
[230903101,"2022-05-11","Baghdad","Mahmoudiya","Al-Yousifya","Rural","Village","25936-Al Radhwania Al Sharkia-Obaid Al Saher Village","25936-الرضوانية الشرقية-قرية عبيد الساهر","Field visit","No","Obviously AL Saher village","قرية عبيد السهر","Site",null,"Yes",7,42,"No",0,0,"No",0,0,"No",0,0,null,"Yes",{"$nulls":6},7]
[231001301,"2022-05-25","Baghdad","Tarmia","Markaz Al-Tarmia","Urban","Neighborhood","25420-Hai Al Sedeq","25420-حي الصديق","Field visit","Yes","Tajawz hi AL saideq","تجاوز حي الصديق","Site",null,"Yes",13,78,"No",0,0,"Yes",13,78,"No",0,0,null,"Yes",{"$nulls":6},13]
[231001401,"2022-05-25","Baghdad","Tarmia","Markaz Al-Tarmia","Urban","Neighborhood","25422-Hai Al Turba","25422-حي التربة","Field visit","No","Tajawz hi Al Tarba","تجاوز حي التربة","Site",null,"Yes",5,30,"No",0,0,"No",0,0,"No",0,0,null,"Yes",{"$nulls":6},5]
[310506901,"2022-04-14","Basrah","Basrah","Markaz Al-Basrah","Urban","Neighborhood","24182-Casino Lebnan","24182-البصرة-كازينو لبنان","Field visit","No","Casino lebnan","كازينو لبنان","Cluster",2,"Yes",11,66,"No",0,0,"Yes",480,{"v":2880,"d":"2,880"},"No",0,0,null,"Yes",{"$nulls":6},11]
[110100801,"2022-04-21","Dahuk","Amedi","Sarsink","Rural","Village","7860-Inishke","7860-اينشكي","Field visit","Yes","Tourism houses","بيوت سياحية قديمة","Cluster",5,"Yes",6,36,"No",0,0,"No",0,0,"No",0,0,{"$nulls":5},"Yes",null,null,6]
[110205201,"2022-06-05","Dahuk","Dahuk","Markaz Dahuk","Urban","Neighborhood","24186-Zirka","24186-زركا","Field visit","Yes","Zrka near Vin oil station","زركا قرب محطة فين","Site",null,"Yes",13,78,"No",0,0,"No",0,0,"No",0,0,{"$nulls":5},"Yes",null,null,13]
[110205001,"2022-06-06","Dahuk","Dahuk","Zawita","Rural","Big Area/Sector","25898-Avrike","25898-افريكي","Field visit","Yes","Avrik UB in the north of Avrik","هياكل افريك في الشمال افريك","Cluster",3,"Yes",6,36,"No",0,0,"No",0,0,"No",0,0,{"$nulls":5},"Yes",null,null,6]
[110200803,"2022-06-06","Dahuk","Dahuk","Zawita","Rural","Big Area/Sector","8538-Banye","8538-باني","Field visit","Yes","Baniye UB left side of baniye","هياكل الجانب الايسر من باني","Cluster",7,"Yes",15,90,"No",0,0,"No",0,0,"No",0,0,{"$nulls":5},"Yes",null,null,15,0,0,0,0,0,90,0,0,0,0,0,0,0,90,0,0,0,90,0,0,0,0,0,0,0,0,0,0,0,0,0,0,0,0,0,0,0,0,0,0,"2014-08-01","No",null,"Privately owned ",null,"yes",null,null,"Yes we are allowed to upgrade the infrastructure, but upgrades are not being made (eg. cannot afford to, do not plan on staying here,do not want to make upgrades)","No","None (0%)","No","Only a minority meet their needs (25-49%) ","A majority (50-74%)","No",{"$nulls":4},"All or nearly all had enough water (91-100%) ","All or nearly all were able to access  (91-100%) ","No","Yes","Yes",{"$nulls":4},"Employment/livelihood ","Shelter/Housing","NFI",null,"Stay in the current location","Most would still not return ","Undecided/ Unknown"]
[110200802,"2022-06-06","Dahuk","Dahuk","Zawita","Rural","Big Area/Sector","8538-Banye","8538-باني","Field visit","Yes","Baniye UB right side of baniye ending","هياكل باني الجانب الايمن من نهاية باني","Cluster",24,"Yes",47,282,"No",0,0,"No",0,0,"No",0,0,{"$nulls":5},"Yes",null,null,47,0,0,0,0,0,282,0,0,0,0,0,0,0,282,0,0,0,282,0,0,0,0,0,0,0,0,0,0,0,0,0,0,0,0,0,0,0,0,0,0,"2014-08-01","No",null,"Privately owned ",null,"yes",null,null,"Yes we are allowed to upgrade the infrastructure, but upgrades are not being made (eg. cannot afford to, do not plan on staying here,do not want to make upgrades)","No","None (0%)","No","Only a minority meet their needs (25-49%) ","A majority (50-74%)","No",{"$nulls":4},"All or nearly all had enough water (91-100%) ","All or nearly all were able to access  (91-100%) ","No","Yes","Yes",{"$nulls":4},"Employment/livelihood ","Shelter/Housing","NFI",null,"Stay in the current location","Some would return","Stay in the current location"]
[110200801,"2022-06-06","Dahuk","Dahuk","Zawita","Rural","Big Area/Sector","8538-Banye","8538-باني","Field visit","Yes","Baniye UB Right side of baniye beginning","هياكل باني في الجانب الايمن من بداية باني","Cluster",7,"Yes",10,60,"No",0,0,"No",0,0,"No",0,0,{"$nulls":5},"Yes",null,null,10]
[110200804,"2022-06-06","Dahuk","Dahuk","Zawita","Rural","Big Area/Sector","8538-Banye","8538-باني","Field visit","Yes","Banye unfinished buildings north of banye","هياكل باني شمال باني","Cluster",7,"Yes",10,60,"No",0,0,"No",0,0,"No",0,0,{"$nulls":5},"Yes",null,null,10]
[110300201,"2022-05-09","Dahuk","Sumel","Batel","Rural","Big Area/Sector","8044-Bajit Kandala","8044-باجت كندال","Field visit","Yes","Baidu Kandala village 1","قرية باجد كندالا  ٢","Cluster",4,"Yes",11,66,"No",0,0,"No",0,0,"No",0,0,{"$nulls":5},"Yes",null,null,11]
[110300202,"2022-05-09","Dahuk","Sumel","Batel","Rural","Big Area/Sector","8044-Bajit Kandala","8044-باجت كندال","Field visit","Yes","Bajid kandala village 2","قرية باجد كندالا ٢","Cluster",4,"Yes",5,30,"No",0,0,"No",0,0,"No",0,0,{"$nulls":5},"Yes",null,null,5]
[110300203,"2022-05-09","Dahuk","Sumel","Batel","Rural","Big Area/Sector","8044-Bajit Kandala","8044-باجت كندال","Field visit","Yes","Bajid Barav yazedi village","قرية باجد برئاف يزيدي","Cluster",9,"Yes",10,60,"No",0,0,"No",0,0,"No",0,0,{"$nulls":5},"Yes",null,null,10]
[110300501,"2022-05-08","Dahuk","Sumel","Batel","Rural","Big Area/Sector","25993-Basetki","25993-باستكي","Field visit","Yes","Asahi village","قرية آسهي","Cluster",4,"Yes",9,54,"No",0,0,"No",0,0,"No",0,0,{"$nulls":5},"Yes",null,null,9]
[110300601,"2022-05-08","Dahuk","Sumel","Batel","Urban","Big Area/Sector","8196-Batel","8196-باتيل","Field visit","Yes","Batel near municipality","باتيل قرب البلدية","Cluster",3,"Yes",5,30,"No",0,0,"No",0,0,"No",0,0,{"$nulls":5},"Yes",null,null,5]
[110301201,"2022-05-08","Dahuk","Sumel","Batel","Rural","Big Area/Sector","8246-Girsheen","8246-كرشين","Field visit","Yes","Kole village","قرية كولي","Cluster",6,"Yes",13,78,"No",0,0,"No",0,0,"No",0,0,{"$nulls":5},"Yes",null,null,13]
[110302701,"2022-05-09","Dahuk","Sumel","Batel","Rural","Big Area/Sector","8476-Soriya","8476-صوريا","Field visit","Yes","Pe Bzni village","قرية بي بزني","Cluster",5,"Yes",6,36,"No",0,0,"No",0,0,"No",0,0,{"$nulls":5},"Yes",null,null,6]
[110300401,"2022-04-27","Dahuk","Sumel","Fayida","Rural","Village","8019-Bakhitme","8019-باختمي","Field visit","Yes","Bakhitme village","قرية باختمي","Cluster",2,"Yes",6,36,"No",0,0,"No",0,0,"No",0,0,{"$nulls":5},"Yes",null,null,6]
[110300701,"2022-04-27","Dahuk","Sumel","Fayida","Rural","Village","8018-Bazalan","8018-بازلان","Field visit","Yes","Bazalan village","قرية بازلان","Cluster",3,"Yes",6,36,"No",0,0,"No",0,0,"No",0,0,{"$nulls":5},"Yes",null,null,6]
[110302548,"2022-05-15","Dahuk","Sumel","Fayida","Urban","Big Area/Sector","8369-Shariya","8369-شاريا","Field visit","Yes","East of Sina village","شرق قرية سينا","Cluster",14,"Yes",29,174,"No",0,0,"No",0,0,"No",0,0,{"$nulls":5},"Yes",null,null,29,0,0,0,0,0,174,0,0,0,0,0,0,0,174,0,0,0,174,0,0,0,0,0,0,0,0,0,0,0,0,0,0,0,0,0,0,0,0,0,0,"2014-08-01","No",null,"Privately owned ",null,"yes",null,null,"Yes we are allowed to upgrade the infrastructure, but upgrades are not being made (eg. cannot afford to, do not plan on staying here,do not want to make upgrades)","No","None (0%)","No","Only a minority meet their needs (25-49%) ","A majority (50-74%)","No",{"$nulls":4},"All or nearly all had enough water (91-100%) ","All or nearly all were able to access  (91-100%) ","No","Yes","Yes",{"$nulls":4},"Employment/livelihood ","Shelter/Housing","Health",null,"Stay in the current location","Some would return","Undecided/ Unknown"]
[110302549,"2022-05-15","Dahuk","Sumel","Fayida","Urban","Big Area/Sector","8369-Shariya","8369-شاريا","Field visit","Yes","Sina village near Cemetery","قرية سينا قريبة من المقبرة","Cluster",27,"Yes",40,240,"No",0,0,"No",0,0,"No",0,0,{"$nulls":5},"Yes",null,null,40,0,0,0,0,0,240,0,0,0,0,0,0,0,240,0,0,0,240,0,0,0,0,0,0,0,0,0,0,0,0,0,0,0,0,0,0,0,0,0,0,"2014-08-01","Yes","No","Privately owned ",null,"yes",null,null,"Yes we are allowed to upgrade the infrastructure, but upgrades are not being made (eg. cannot afford to, do not plan on staying here,do not want to make upgrades)","Yes, some","None (0%)","No","Only a minority meet their needs (25-49%) ","A majority (50-74%)","No",{"$nulls":4},"All or nearly all had enough water (91-100%) ","All or nearly all were able to access  (91-100%) ","No","Yes","Yes",{"$nulls":4},"Employment/livelihood ","Shelter/Housing","Health",null,"Stay in the current location","Most would still not return ","Undecided/ Unknown"]
[110302550,"2022-05-15","Dahuk","Sumel","Fayida","Urban","Big Area/Sector","8369-Shariya","8369-شاريا","Field visit","Yes","Sina village near Sina School","قرية سينا قرب مدرسة سينا","Cluster",31,"Yes",59,354,"No",0,0,"No",0,0,"No",0,0,{"$nulls":5},"Yes",null,null,59,0,0,0,0,0,354,0,0,0,0,0,0,0,354,0,0,0,354,0,0,0,0,0,0,0,0,0,0,0,0,0,0,0,0,0,0,0,0,0,0,"2014-08-01","Yes","No","Privately owned ",null,"yes",null,null,"Yes we are allowed to upgrade the infrastructure, but upgrades are not being made (eg. cannot afford to, do not plan on staying here,do not want to make upgrades)","Yes, some","None (0%)","No","Only a minority meet their needs (25-49%) ","A majority (50-74%)","No",{"$nulls":4},"All or nearly all had enough water (91-100%) ","All or nearly all were able to access  (91-100%) ","No","Yes","Yes",{"$nulls":4},"Employment/livelihood ","Health","Shelter/Housing",null,"Stay in the current location","Most would still not return ","Undecided/ Unknown"]
[110302551,"2022-05-15","Dahuk","Sumel","Fayida","Urban","Big Area/Sector","8369-Shariya","8369-شاريا","Field visit","Yes","Sina village near IDP'S School","قرية سينا قرب مدرسة سينا للنازحين","Cluster",30,"Yes",37,222,"No",0,0,"No",0,0,"No",0,0,"Yes","Yes",{"$nulls":6},37,12,210,0,0,0,0,0,0,0,0,0,0,0,222,0,0,0,222,0,0,0,0,0,0,0,0,0,0,0,0,0,0,0,0,0,0,0,0,0,0,"2014-08-01","Yes","No","Privately owned ",null,"yes",null,null,"Yes we are allowed to upgrade the infrastructure, but upgrades are not being made (eg. cannot afford to, do not plan on staying here,do not want to make upgrades)","No","None (0%)","No","Only a minority meet their needs (25-49%) ","A majority (50-74%)","No",{"$nulls":4},"All or nearly all had enough water (91-100%) ","All or nearly all were able to access  (91-100%) ","No","Yes","Yes",{"$nulls":4},"Shelter/Housing","Employment/livelihood ","Health",null,"Stay in the current location","Most would still not return ","Undecided/ Unknown"]
[110302552,"2022-05-15","Dahuk","Sumel","Fayida","Urban","Big Area/Sector","8369-Shariya","8369-شاريا","Field visit","Yes","Shekh khidre village","قرية شيخ خدري","Cluster",41,"Yes",60,360,"No",0,0,"No",0,0,"No",0,0,"Yes",{"$nulls":4},"Yes",null,null,60,6,0,0,0,0,354,0,0,0,0,0,0,0,360,0,0,0,360,0,0,0,0,0,0,0,0,0,0,0,0,0,0,0,0,0,0,0,0,0,0,"2014-08-01","No",null,"Privately owned ",null,"yes",null,null,"Yes we are allowed to upgrade the infrastructure, but upgrades are not being made (eg. cannot afford to, do not plan on staying here,do not want to make upgrades)","Yes, some","None (0%)","No","Only a minority meet their needs (25-49%) ","A majority (50-74%)","No",{"$nulls":4},"All or nearly all had enough water (91-100%) ","All or nearly all were able to access  (91-100%) ","No","Yes","Yes",{"$nulls":4},"Shelter/Housing","Employment/livelihood ","Health",null,"Stay in the current location","Some would return","Undecided/ Unknown"]
[110302558,"2022-05-16","Dahuk","Sumel","Fayida","Urban","Big Area/Sector","8369-Shariya","8369-شاريا","Field visit","Yes","West of Khrshniya near School building","غرب خرشنيا قرب بناية المدرسة","Cluster",51,"Yes",51,306,"No",0,0,"No",0,0,"No",0,0,"Yes","Yes",{"$nulls":6},51,222,84,0,0,0,0,0,0,0,0,0,0,0,306,0,0,0,306,0,0,0,0,0,0,0,0,0,0,0,0,0,0,0,0,0,0,0,0,0,0,"2014-08-01","No",null,"Privately owned ",null,"yes",null,null,"Yes we are allowed to upgrade the infrastructure, but upgrades are not being made (eg. cannot afford to, do not plan on staying here,do not want to make upgrades)","No","None (0%)","No","Only a minority meet their needs (25-49%) ","A majority (50-74%)","No",{"$nulls":4},"All or nearly all had enough water (91-100%) ","All or nearly all were able to access  (91-100%) ","No","Yes","Yes",{"$nulls":4},"Shelter/Housing","Employment/livelihood ","Health",null,"Stay in the current location","Some would return","Undecided/ Unknown"]
[110302553,"2022-05-12","Dahuk","Sumel","Fayida","Urban","Big Area/Sector","8369-Shariya","8369-شاريا","Field visit","Yes","Shekh khdir 1 near Lalish center 2","شيخ خدري 1 قريبة من مركز لالش ٢","Cluster",8,"Yes",11,66,"No",0,0,"No",0,0,"No",0,0,"Yes",{"$nulls":4},"Yes",null,null,11]
[110302554,"2022-05-12","Dahuk","Sumel","Fayida","Urban","Big Area/Sector","8369-Shariya","8369-شاريا","Field visit","Yes","Shekh khdri 2 near lalish center 2","شيخ خدري ٢ قرب مركز لالش ٢","Cluster",8,"Yes",12,72,"No",0,0,"No",0,0,"No",0,0,"Yes","Yes",{"$nulls":6},12]
[110302555,"2022-05-15","Dahuk","Sumel","Fayida","Urban","Big Area/Sector","8369-Shariya","8369-شاريا","Field visit","Yes","Shekh khdri near Dasan School","شيخ خدري قرب مدرسة داسن","Cluster",38,"Yes",52,312,"No",0,0,"No",0,0,"No",0,0,"Yes",{"$nulls":4},"Yes",null,null,52,234,0,0,0,0,78,0,0,0,0,0,0,0,312,0,0,0,312,0,0,0,0,0,0,0,0,0,0,0,0,0,0,0,0,0,0,0,0,0,0,"2014-08-01","No",null,"Privately owned ",null,"yes",null,null,"Yes we are allowed to upgrade the infrastructure, but upgrades are not being made (eg. cannot afford to, do not plan on staying here,do not want to make upgrades)","Yes, some","None (0%)","No","Only a minority meet their needs (25-49%) ","A majority (50-74%)","No",{"$nulls":4},"All or nearly all had enough water (91-100%) ","All or nearly all were able to access  (91-100%) ","No","Yes","Yes",{"$nulls":4},"Employment/livelihood ","Shelter/Housing","Health",null,"Stay in the current location","Some would return","Undecided/ Unknown"]
[110302557,"2022-05-12","Dahuk","Sumel","Fayida","Urban","Big Area/Sector","8369-Shariya","8369-شاريا","Field visit","Yes","Skekh khdri west of Dasan school","شيخ خدري غرب مدرسة داسن","Cluster",64,"Yes",69,414,"No",0,0,"No",0,0,"No",0,0,"Yes",{"$nulls":4},"Yes",null,null,69,342,0,0,0,0,72,0,0,0,0,0,0,0,414,0,0,0,414,0,0,0,0,0,0,0,0,0,0,0,0,0,0,0,0,0,0,0,0,0,0,"2014-08-01","No",null,"Privately owned ",null,"yes",null,null,"Yes we are allowed to upgrade the infrastructure, but upgrades are not being made (eg. cannot afford to, do not plan on staying here,do not want to make upgrades)","Yes, some","None (0%)","No","Only a minority meet their needs (25-49%) ","A majority (50-74%)","No",{"$nulls":4},"All or nearly all had enough water (91-100%) ","All or nearly all were able to access  (91-100%) ","No","Yes","Yes",{"$nulls":4},"Employment/livelihood ","Shelter/Housing","Health",null,"Stay in the current location","Some would return","Undecided/ Unknown"]
[110302519,"2022-05-16","Dahuk","Sumel","Fayida","Urban","Big Area/Sector","8369-Shariya","8369-شاريا","Field visit","Yes","Hawari UB in the north east","هويري هياكل في الشمال الشرقي","Cluster",10,"Yes",11,66,"No",0,0,"No",0,0,"No",0,0,{"$nulls":5},"Yes",null,null,11]
[110302518,"2022-05-17","Dahuk","Sumel","Fayida","Urban","Big Area/Sector","8369-Shariya","8369-شاريا","Field visit","Yes","Hawari tents and mud/block structure house in the North East","هويري خيم و منازل من طين و من كتل بلوك في الشمال الشرقي","Cluster",70,"Yes",76,456,"No",0,0,"No",0,0,"No",0,0,"Yes","Yes",{"$nulls":6},76,126,330,0,0,0,0,0,0,0,0,0,0,0,456,0,0,0,456,0,0,0,0,0,0,0,0,0,0,0,0,0,0,0,0,0,0,0,0,0,0,"2014-08-01","No",null,"Privately owned ",null,"yes",null,null,"Yes we are allowed to upgrade the infrastructure, but upgrades are not being made (eg. cannot afford to, do not plan on staying here,do not want to make upgrades)","No","None (0%)","No","Only a minority meet their needs (25-49%) ","A majority (50-74%)","No",{"$nulls":4},"All or nearly all had enough water (91-100%) ","All or nearly all were able to access  (91-100%) ","No","Yes","Yes",{"$nulls":4},"Employment/livelihood ","Shelter/Housing","Health",null,"Stay in the current location","Some would return","Undecided/ Unknown"]
[110302559,"2022-05-17","Dahuk","Sumel","Fayida","Urban","Big Area/Sector","8369-Shariya","8369-شاريا","Field visit","Yes","Sharya Gri Pani near kindergarten","شاريا كري باني قرب الروضة","Cluster",3,"Yes",7,42,"No",0,0,"No",0,0,"No",0,0,{"$nulls":5},"Yes",null,null,7]
[110302524,"2022-05-17","Dahuk","Sumel","Fayida","Urban","Big Area/Sector","8369-Shariya","8369-شاريا","Field visit","Yes","Gre pane tents and UB close to shariya road 2","خيم و هيكل كرى بانى قرب شارع شاريا","Cluster",6,"Yes",13,78,"No",0,0,"No",0,0,"No",0,0,"Yes",{"$nulls":4},"Yes",null,null,13]
[110302525,"2022-05-17","Dahuk","Sumel","Fayida","Urban","Big Area/Sector","8369-Shariya","8369-شاريا","Field visit","Yes","Gre pane UB near shariya camp","كرى بانى هياكل قرب شاريا كمب","Cluster",5,"Yes",13,78,"No",0,0,"No",0,0,"No",0,0,{"$nulls":5},"Yes",null,null,13]
[110302527,"2022-05-12","Dahuk","Sumel","Fayida","Urban","Big Area/Sector","8369-Shariya","8369-شاريا","Field visit","Yes","Shariya UB sawth of qrepane village","هياكل شاريا جنوب قرية كري باني","Cluster",4,"Yes",8,48,"No",0,0,"No",0,0,"No",0,0,{"$nulls":5},"Yes",null,null,8]
[110302526,"2022-05-12","Dahuk","Sumel","Fayida","Urban","Big Area/Sector","8369-Shariya","8369-شاريا","Field visit","Yes","Shariya UB north grepane village","هياكل شمال قرية كري باني","Cluster",14,"Yes",22,132,"No",0,0,"No",0,0,"No",0,0,{"$nulls":5},"Yes",null,null,22,0,0,0,0,0,132,0,0,0,0,0,0,0,132,0,0,0,132,0,0,0,0,0,0,0,0,0,0,0,0,0,0,0,0,0,0,0,0,0,0,"2014-08-01","Yes","No","Privately owned ",null,null,"yes",null,"Yes we are allowed to upgrade the infrastructure, but upgrades are not being made (eg. cannot afford to, do not plan on staying here,do not want to make upgrades)","Yes, some","None (0%)","No","Only a minority meet their needs (25-49%) ","Only a minority (25-49%) ","Yes","yes",{"$nulls":3},"All or nearly all had enough water (91-100%) ","All or nearly all were able to access  (91-100%) ","No","Yes","Yes",{"$nulls":4},"Shelter/Housing","Health","Employment/livelihood ",null,"Stay in the current location","Most would still not return ","Undecided/ Unknown"]
[110302529,"2022-05-12","Dahuk","Sumel","Fayida","Urban","Big Area/Sector","8369-Shariya","8369-شاريا","Field visit","Yes","Shariya Mud & block structures in kelabadre village","بيوت طينية و مصنوعة من كتل بلوك قرية كيلة بدري","Cluster",48,"Yes",48,288,"No",0,0,"No",0,0,"No",0,0,null,"Yes",{"$nulls":6},48,0,288,0,0,0,0,0,0,0,0,0,0,0,288,0,0,0,288,0,0,0,0,0,0,0,0,0,0,0,0,0,0,0,0,0,0,0,0,0,0,"2014-08-01","Don’t know",null,"Privately owned ",null,null,"yes",null,"Yes we are allowed to upgrade the infrastructure, but upgrades are not being made (eg. cannot afford to, do not plan on staying here,do not want to make upgrades)","No","None (0%)","No","Very few meet their needs (1-24%)","Very few (1-24%)","No",{"$nulls":4},"All or nearly all had enough water (91-100%) ","All or nearly all were able to access  (91-100%) ","No","Yes","Yes",{"$nulls":4},"Shelter/Housing","Employment/livelihood ","Health",null,"Stay in the current location","Most would still not return ","Stay in the current location"]
[110302528,"2022-05-12","Dahuk","Sumel","Fayida","Urban","Big Area/Sector","8369-Shariya","8369-شاريا","Field visit","Yes","Sharya UB kela badre village","هياكل شاريا قرية كيلة بدري","Cluster",19,"Yes",36,216,"No",0,0,"No",0,0,"No",0,0,{"$nulls":5},"Yes",null,null,36,0,0,0,0,0,216,0,0,0,0,0,0,0,216,0,0,0,216,0,0,0,0,0,0,0,0,0,0,0,0,0,0,0,0,0,0,0,0,0,0,"2014-08-01","Yes","Do not know","Privately owned ",null,null,"yes",null,"Yes we are allowed to upgrade the infrastructure, but upgrades are not being made (eg. cannot afford to, do not plan on staying here,do not want to make upgrades)","Yes, some","None (0%)","No","Very few meet their needs (1-24%)","Very few (1-24%)","No",{"$nulls":4},"All or nearly all had enough water (91-100%) ","All or nearly all were able to access  (91-100%) ","No","Yes","Yes",{"$nulls":4},"Shelter/Housing","Health","Employment/livelihood ",null,"Stay in the current location","Most would still not return ","Stay in the current location"]
[110302531,"2022-05-17","Dahuk","Sumel","Fayida","Urban","Big Area/Sector","8369-Shariya","8369-شاريا","Field visit","Yes","Mud & block structures South east shariya","بيوت مصنعة منطين و كتل من بلوك في جنوب شرق شاريا","Cluster",6,"Yes",7,42,"No",0,0,"No",0,0,"No",0,0,null,"Yes",{"$nulls":6},7]
[110302532,"2022-05-12","Dahuk","Sumel","Fayida","Urban","Big Area/Sector","8369-Shariya","8369-شاريا","Field visit","Yes","Block structures behind sharia school","بيوت مصنعة من كتل بلوك خلف مدرسة شاريا","Cluster",5,"Yes",6,36,"No",0,0,"No",0,0,"No",0,0,null,"Yes",{"$nulls":6},6]
[110302533,"2022-05-16","Dahuk","Sumel","Fayida","Urban","Big Area/Sector","8369-Shariya","8369-شاريا","Field visit","Yes","Tents East of sharia","خيم شرق شاريا","Cluster",12,"Yes",12,72,"No",0,0,"No",0,0,"No",0,0,"Yes",{"$nulls":7},12]
[110302535,"2022-05-17","Dahuk","Sumel","Fayida","Urban","Big Area/Sector","8369-Shariya","8369-شاريا","Field visit","Yes","Tents of sharia south JRS organization","خيم شاريا جنوب منظمة JRS","Cluster",8,"Yes",9,54,"No",0,0,"No",0,0,"No",0,0,"Yes",{"$nulls":7},9]
[110302536,"2022-05-12","Dahuk","Sumel","Fayida","Urban","Big Area/Sector","8369-Shariya","8369-شاريا","Field visit","Yes","South west JRS organization office in sharya","هياكل وخيم جنوب غرب منظمة JRS","Cluster",3,"Yes",5,30,"No",0,0,"No",0,0,"No",0,0,"Yes",{"$nulls":4},"Yes",null,null,5]
[110302537,"2022-05-12","Dahuk","Sumel","Fayida","Urban","Big Area/Sector","8369-Shariya","8369-شاريا","Field visit","Yes","Tents & block structures North JRS Organization",8,"Cluster",8,"Yes",8,48,"No",0,0,"No",0,0,"No",0,0,"Yes","Yes",{"$nulls":6},8]
[110302538,"2022-05-12","Dahuk","Sumel","Fayida","Urban","Big Area/Sector","8369-Shariya","8369-شاريا","Field visit","Yes","Shariya Tents In front of kelabadre","خيم شاريا مقبل كيلة بدري","Cluster",18,"Yes",20,120,"No",0,0,"No",0,0,"No",0,0,"Yes",{"$nulls":7},20,120,0,0,0,0,0,0,0,0,0,0,0,0,120,0,0,0,120,0,0,0,0,0,0,0,0,0,0,0,0,0,0,0,0,0,0,0,0,0,0,"2014-08-01","No",null,"Public-state/government/local authorities",null,null,"yes",null,"No ","No","Do not know ","No","Very few meet their needs (1-24%)","Very few (1-24%)","No",{"$nulls":4},"All or nearly all had enough water (91-100%) ","All or nearly all were able to access  (91-100%) ","No","Yes","Yes",{"$nulls":4},"Shelter/Housing","Employment/livelihood ","Health",null,"Stay in the current location","Most would still not return ","Stay in the current location"]
[110302539,"2022-05-12","Dahuk","Sumel","Fayida","Urban","Big Area/Sector","8369-Shariya","8369-شاريا","Field visit","Yes","Tents close to bayboon garden","خيم شاريا قرب حديقة بيبون","Cluster",7,"Yes",9,54,"No",0,0,"No",0,0,"No",0,0,"Yes",{"$nulls":7},9]
[110302530,"2022-05-15","Dahuk","Sumel","Fayida","Urban","Big Area/Sector","8369-Shariya","8369-شاريا","Field visit","Yes","Tents & Block structures of shariya village","خيم و بيوت مصنوعة من كتل بلوك في قرية شاريا","Cluster",51,"Yes",54,324,"No",0,0,"No",0,0,"No",0,0,"Yes","Yes",{"$nulls":6},54,108,216,0,0,0,0,0,0,0,0,0,0,0,324,0,0,0,324,0,0,0,0,0,0,0,0,0,0,0,0,0,0,0,0,0,0,0,0,0,0,"2014-08-01","Yes","No","Privately owned ",null,"yes",null,null,"Yes we are allowed to upgrade the infrastructure, but upgrades are not being made (eg. cannot afford to, do not plan on staying here,do not want to make upgrades)","No","None (0%)","No","Only a minority meet their needs (25-49%) ","A majority (50-74%)","No",{"$nulls":4},"Around half (41%-60%) ","All or nearly all were able to access  (91-100%) ","Yes","Yes","No",{"$nulls":4},"Shelter/Housing","Employment/livelihood ","Drinking water",null,"Stay in the current location","Most would still not return ","Undecided/ Unknown"]
[110302540,"2022-05-15","Dahuk","Sumel","Fayida","Urban","Big Area/Sector","8369-Shariya","8369-شاريا","Field visit","Yes","Rkava UB West rkava school","هياكل ركافا غرب مدرسة ركافا","Cluster",4,"Yes",5,30,"No",0,0,"No",0,0,"No",0,0,{"$nulls":5},"Yes",null,null,5]
[110302541,"2022-05-15","Dahuk","Sumel","Fayida","Urban","Big Area/Sector","8369-Shariya","8369-شاريا","Field visit","Yes","Shariya tents & block structures East khrshnia","خيم بيوت مصنعة من طين و كتل بلوك شرق خرشنيا","Cluster",4,"Yes",6,36,"No",0,0,"No",0,0,"No",0,0,"Yes","Yes",{"$nulls":6},6]
[110302542,"2022-05-17","Dahuk","Sumel","Fayida","Urban","Big Area/Sector","8369-Shariya","8369-شاريا","Field visit","Yes","UB of sina close to communications tower","هياكل سينا قرب برج اتصالات","Cluster",2,"Yes",5,30,"No",0,0,"No",0,0,"No",0,0,{"$nulls":5},"Yes",null,null,5]
[110302543,"2022-05-15","Dahuk","Sumel","Fayida","Urban","Big Area/Sector","8369-Shariya","8369-شاريا","Field visit","Yes","UB Soth east Rkava","هياكل جنوب شرق ركافا","Cluster",4,"Yes",6,36,"No",0,0,"No",0,0,"No",0,0,{"$nulls":5},"Yes",null,null,6]
[110302544,"2022-05-15","Dahuk","Sumel","Fayida","Urban","Big Area/Sector","8369-Shariya","8369-شاريا","Field visit","Yes","Shariya tents South khrshnia school","خيم شاريا جنوب مدرسة خرشنيا","Cluster",4,"Yes",5,30,"No",0,0,"No",0,0,"No",0,0,"Yes",{"$nulls":7},5]
[110302545,"2022-05-15","Dahuk","Sumel","Fayida","Urban","Big Area/Sector","8369-Shariya","8369-شاريا","Field visit","Yes","Shariya Tent & block structures South of khrshnia","خيم و بيوت مصنوعة من طين جنوب خرشنيا","Cluster",6,"Yes",8,48,"No",0,0,"No",0,0,"No",0,0,"Yes","Yes",{"$nulls":6},8]
[110302546,"2022-05-16","Dahuk","Sumel","Fayida","Urban","Big Area/Sector","8369-Shariya","8369-شاريا","Field visit","Yes","Shariya mud & block structures south west khrshnia","بيوت مصنعة من طين و كتل بلوك جنوب غرب خرشنيا","Cluster",4,"Yes",5,30,"No",0,0,"No",0,0,"No",0,0,null,"Yes",{"$nulls":6},{"$f":"Q131+T131","v":5}]
[110302547,"2022-05-15","Dahuk","Sumel","Fayida","Urban","Big Area/Sector","8369-Shariya","8369-شاريا","Field visit","Yes","Shariya (khrshnia) Tents in front of shekh khdr","خيم شاريا مقابل شيخ خدر","Cluster",4,"Yes",5,30,"No",0,0,"No",0,0,"No",0,0,"Yes",{"$nulls":7},5]
[110302520,"2022-05-17","Dahuk","Sumel","Fayida","Urban","Big Area/Sector","8369-Shariya","8369-شاريا","Field visit","Yes","Gre pane tents and mud/ block structure house behind shariya camp","كرى بانى خيم و منازل من طين و من كتل بلوك خلف شاريا كمب","Cluster",33,"Yes",45,270,"No",0,0,"No",0,0,"No",0,0,"Yes","Yes",{"$nulls":6},45,210,60,0,0,0,0,0,0,0,0,0,0,0,270,0,0,0,270,0,0,0,0,0,0,0,0,0,0,0,0,0,0,0,0,0,0,0,0,0,0,"2014-08-01","Yes","No","Public-state/government/local authorities",null,"yes",null,null,"Yes we are allowed to upgrade the infrastructure, but upgrades are not being made (eg. cannot afford to, do not plan on staying here,do not want to make upgrades)","No","None (0%)","No","Very few meet their needs (1-24%)","Only a minority (25-49%) ","No",{"$nulls":4},"All or nearly all had enough water (91-100%) ","All or nearly all were able to access  (91-100%) ","No","Yes","Yes",{"$nulls":4},"Shelter/Housing","Employment/livelihood ","NFI",null,"Stay in the current location","Most would still not return ","Stay in the current location"]
[110302521,"2022-05-16","Dahuk","Sumel","Fayida","Urban","Big Area/Sector","8369-Shariya","8369-شاريا","Field visit","Yes","Gre pane tents and mud/ block structure house behind shariya camp2","كرى بانى خيم و منازل من طين و من كتل بلوك خلف شاريا كمب ٢","Cluster",80,"Yes",98,588,"No",0,0,"No",0,0,"No",0,0,"Yes","Yes",{"$nulls":6},98,468,120,0,0,0,0,0,0,0,0,0,0,0,588,0,0,0,588,0,0,0,0,0,0,0,0,0,0,0,0,0,0,0,0,0,0,0,0,0,0,"2014-08-01","Yes","Do not know","Public-state/government/local authorities",null,"yes",null,null,"Yes we are allowed to upgrade the infrastructure, but upgrades are not being made (eg. cannot afford to, do not plan on staying here,do not want to make upgrades)","No","None (0%)","No","Very few meet their needs (1-24%)","Only a minority (25-49%) ","No",{"$nulls":4},"All or nearly all had enough water (91-100%) ","All or nearly all were able to access  (91-100%) ","No","Yes","Yes",{"$nulls":4},"Shelter/Housing","Employment/livelihood ","Other","Cash","Stay in the current location","Most would still not return ","Stay in the current location"]
[110302522,"2022-05-15","Dahuk","Sumel","Fayida","Urban","Big Area/Sector","8369-Shariya","8369-شاريا","Field visit","Yes","Gre pane tents and mud/ block structure house behind shariya camp 3","كرى بانى خيم و منازل من طين و كتل من بلوك خلف شاريا كمب ٣","Cluster",120,"Yes",145,870,"No",0,0,"No",0,0,"No",0,0,"Yes","Yes",{"$nulls":6},145,690,180,0,0,0,0,0,0,0,0,0,0,0,870,0,0,0,870,0,0,0,0,0,0,0,0,0,0,0,0,0,0,0,0,0,0,0,0,0,0,"2014-08-01","Yes","Do not know","Public-state/government/local authorities",null,"yes",null,null,"Yes we are allowed to upgrade the infrastructure, but upgrades are not being made (eg. cannot afford to, do not plan on staying here,do not want to make upgrades)","No","None (0%)","No","Very few meet their needs (1-24%)","Only a minority (25-49%) ","No",{"$nulls":4},"All or nearly all had enough water (91-100%) ","All or nearly all were able to access  (91-100%) ","No","Yes","Yes",{"$nulls":4},"Shelter/Housing","Employment/livelihood ","NFI",null,"Stay in the current location","Most would still not return ","Undecided/ Unknown"]
[110302501,"2022-05-12","Dahuk","Sumel","Fayida","Urban","Big Area/Sector","8369-Shariya","8369-شاريا","Field visit","Yes","Old Rikava village tents and mud/block structure house in the South Rikava","خيم و منازل من طين و كتل من بلوك في الجنوب قرية ركافا قديمة","Cluster",16,"Yes",17,102,"No",0,0,"No",0,0,"No",0,0,"Yes","Yes",{"$nulls":6},17,18,84,0,0,0,0,0,0,0,0,0,0,0,102,0,0,0,102,0,0,0,0,0,0,0,0,0,0,0,0,0,0,0,0,0,0,0,0,0,0,"2014-08-01","Yes","No","Privately owned ",null,null,"yes",null,"Yes we are allowed to upgrade the infrastructure, but upgrades are not being made (eg. cannot afford to, do not plan on staying here,do not want to make upgrades)","No","None (0%)","No","Only a minority meet their needs (25-49%) ","A majority (50-74%)","No",{"$nulls":4},"All or nearly all had enough water (91-100%) ","All or nearly all were able to access  (91-100%) ","No","Yes","Yes",{"$nulls":4},"NFI","Employment/livelihood ","Health",null,"Stay in the current location","Most would still not return ","Undecided/ Unknown"]
[110302502,"2022-05-12","Dahuk","Sumel","Fayida","Urban","Big Area/Sector","8369-Shariya","8369-شاريا","Field visit","Yes","Old Rikava village tents and mud/block structure house in the South rikava 2","خيم و منازل من طين و من كتل بلوك في الجنوب قرية ركافا قديمة ٢","Cluster",7,"Yes",8,48,"No",0,0,"No",0,0,"No",0,0,null,"Yes",{"$nulls":6},8]
[110302503,"2022-05-15","Dahuk","Sumel","Fayida","Urban","Big Area/Sector","8369-Shariya","8369-شاريا","Field visit","Yes","Old Rikava village UB in the South rikava","هياكل قرية  ركافا قديمة في الجنوب ركافا","Cluster",14,"Yes",25,150,"No",0,0,"No",0,0,"No",0,0,{"$nulls":5},"Yes",null,null,25,0,0,0,0,0,150,0,0,0,0,0,0,0,150,0,0,0,150,0,0,0,0,0,0,0,0,0,0,0,0,0,0,0,0,0,0,0,0,0,0,"2014-08-01","No",null,"Privately owned ",null,"yes",null,null,"Yes we are allowed to upgrade the infrastructure, but upgrades are not being made (eg. cannot afford to, do not plan on staying here,do not want to make upgrades)","No","None (0%)","No","Very few meet their needs (1-24%)","A majority (50-74%)","No",{"$nulls":4},"All or nearly all had enough water (91-100%) ","All or nearly all were able to access  (91-100%) ","No","Yes","Yes",{"$nulls":4},"NFI","Employment/livelihood ","Health",null,"Stay in the current location","Most would still not return ","Undecided/ Unknown"]
[110302511,"2022-05-15","Dahuk","Sumel","Fayida","Urban","Big Area/Sector","8369-Shariya","8369-شاريا","Field visit","Yes","Old Rikava village Tents and mud/block structure house in the South","خيم و منازل من طين و من كتل من بلوك في الجنوب قرية ركافا قديمة","Cluster",11,"Yes",11,66,"No",0,0,"No",0,0,"No",0,0,null,"Yes",{"$nulls":6},11]
[110302510,"2022-05-15","Dahuk","Sumel","Fayida","Urban","Big Area/Sector","8369-Shariya","8369-شاريا","Field visit","Yes","Old Rikava village UB in the South","هياكل قرية ركافا قديمة في الجنوب","Cluster",4,"Yes",7,42,"No",0,0,"No",0,0,"No",0,0,{"$nulls":5},"Yes",null,null,7]
[110302504,"2022-05-12","Dahuk","Sumel","Fayida","Urban","Big Area/Sector","8369-Shariya","8369-شاريا","Field visit","Yes","Old Rikava village mud and block structure house in the South 3","منازل من طين و كتل من بلوك في الجنوب قرية ركافا قديمة ٣","Cluster",22,"Yes",24,144,"No",0,0,"No",0,0,"No",0,0,null,"Yes",{"$nulls":6},24,0,144,0,0,0,0,0,0,0,0,0,0,0,144,0,0,0,144,0,0,0,0,0,0,0,0,0,0,0,0,0,0,0,0,0,0,0,0,0,0,"2014-08-01","No",null,"Privately owned ",null,"yes",null,null,"Yes we are allowed to upgrade the infrastructure, but upgrades are not being made (eg. cannot afford to, do not plan on staying here,do not want to make upgrades)","No","None (0%)","No","Only a minority meet their needs (25-49%) ","A majority (50-74%)","No",{"$nulls":4},"All or nearly all had enough water (91-100%) ","All or nearly all were able to access  (91-100%) ","No","No","Yes",{"$nulls":4},"NFI","Health","Employment/livelihood ",null,"Stay in the current location","Most would still not return ","Undecided/ Unknown"]
[110302512,"2022-05-19","Dahuk","Sumel","Fayida","Urban","Big Area/Sector","8369-Shariya","8369-شاريا","Field visit","Yes","Shariya Village UB","هياكل قرية شاريا","Cluster",45,"Yes",110,660,"No",0,0,"No",0,0,"No",0,0,{"$nulls":5},"Yes",null,null,110,0,0,0,0,0,660,0,0,0,0,0,0,0,660,0,0,0,660,0,0,0,0,0,0,0,0,0,0,0,0,0,0,0,0,0,0,0,0,0,0,"2014-08-01","Yes","No","Privately owned ",null,"yes",null,null,"Yes we are allowed to upgrade the infrastructure, but upgrades are not being made (eg. cannot afford to, do not plan on staying here,do not want to make upgrades)","Yes, some","None (0%)","No","Only a minority meet their needs (25-49%) ","A majority (50-74%)","No",{"$nulls":4},"Around half (41%-60%) ","All or nearly all were able to access  (91-100%) ","Yes","Yes","No",{"$nulls":4},"Other","Employment/livelihood ","Drinking water","Cash","Stay in the current location","Most would still not return ","Undecided/ Unknown"]
[110302509,"2022-05-16","Dahuk","Sumel","Fayida","Urban","Big Area/Sector","8369-Shariya","8369-شاريا","Field visit","Yes","Old Kher shina village UB in the South","هياكل قرية خرشينة قديمة في الجنوب","Cluster",4,"Yes",9,54,"No",0,0,"No",0,0,"No",0,0,{"$nulls":5},"Yes",null,null,9]
[110302508,"2022-05-16","Dahuk","Sumel","Fayida","Urban","Big Area/Sector","8369-Shariya","8369-شاريا","Field visit","Yes","Old Kher shina village mud/ block structure house in the north west 2","منازل من طين و من كتل بلوك في الشمال غربي قرية خرشينة قديمة","Cluster",10,"Yes",10,60,"No",0,0,"No",0,0,"No",0,0,null,"Yes",{"$nulls":6},10]
[110302506,"2022-05-16","Dahuk","Sumel","Fayida","Urban","Big Area/Sector","8369-Shariya","8369-شاريا","Field visit","Yes","Old Kher shina village UB in the North west","هياكل قرية خرشينة قديمة في الشمال غربي","Cluster",8,"Yes",18,108,"No",0,0,"No",0,0,"No",0,0,{"$nulls":5},"Yes",null,null,18,0,0,0,0,0,108,0,0,0,0,0,0,0,108,0,0,0,108,0,0,0,0,0,0,0,0,0,0,0,0,0,0,0,0,0,0,0,0,0,0,"2014-08-01","Yes","No","Privately owned ",null,"yes",null,null,"Yes we are allowed to upgrade the infrastructure, but upgrades are not being made (eg. cannot afford to, do not plan on staying here,do not want to make upgrades)","Yes, some","None (0%)","No","Only a minority meet their needs (25-49%) ","A majority (50-74%)","No",{"$nulls":4},"All or nearly all had enough water (91-100%) ","All or nearly all were able to access  (91-100%) ","No","Yes","Yes",{"$nulls":4},"Food","Employment/livelihood ","NFI",null,"Stay in the current location","Most would still not return ","Undecided/ Unknown"]
[110302505,"2022-05-17","Dahuk","Sumel","Fayida","Urban","Big Area/Sector","8369-Shariya","8369-شاريا","Field visit","Yes","Old kher shina village tents and mud/block structure house in the north west","خيم و منازل من طين و من كتل بلوك في الشمال غربي قرية خرشينة قديمة","Cluster",30,"Yes",32,192,"No",0,0,"No",0,0,"No",0,0,"Yes","Yes",{"$nulls":6},32,30,162,0,0,0,0,0,0,0,0,0,0,0,192,0,0,0,192,0,0,0,0,0,0,0,0,0,0,0,0,0,0,0,0,0,0,0,0,0,0,"2014-08-01","No",null,"Privately owned ",null,"yes",null,null,"Yes we are allowed to upgrade the infrastructure, but upgrades are not being made (eg. cannot afford to, do not plan on staying here,do not want to make upgrades)","No","None (0%)","No","Only a minority meet their needs (25-49%) ","A majority (50-74%)","Yes","yes",{"$nulls":3},"All or nearly all had enough water (91-100%) ","All or nearly all were able to access  (91-100%) ","No","Yes","Yes",{"$nulls":4},"Other","Employment/livelihood ","NFI","Cash","Stay in the current location","Most would still not return ","Undecided/ Unknown"]
[110302507,"2022-05-17","Dahuk","Sumel","Fayida","Urban","Big Area/Sector","8369-Shariya","8369-شاريا","Field visit","Yes","Old Kher shina village UB in the north west 2","هياكل قرية خرشينة قديمة في الشمال غربي ٢","Cluster",9,"Yes",17,102,"No",0,0,"No",0,0,"No",0,0,{"$nulls":5},"Yes",null,null,17,0,0,0,0,0,102,0,0,0,0,0,0,0,102,0,0,0,102,0,0,0,0,0,0,0,0,0,0,0,0,0,0,0,0,0,0,0,0,0,0,"2014-08-01","No",null,"Privately owned ",null,"yes",null,null,"Yes we are allowed to upgrade the infrastructure, but upgrades are not being made (eg. cannot afford to, do not plan on staying here,do not want to make upgrades)","Yes, some","None (0%)","No","Only a minority meet their needs (25-49%) ","A majority (50-74%)","No",{"$nulls":4},"All or nearly all had enough water (91-100%) ","All or nearly all were able to access  (91-100%) ","No","Yes","Yes",{"$nulls":4},"Other","Food","Employment/livelihood ","Cash","Stay in the current location","Most would still not return ","Undecided/ Unknown"]
[110302513,"2022-05-18","Dahuk","Sumel","Fayida","Urban","Big Area/Sector","8369-Shariya","8369-شاريا","Field visit","Yes","Kalabadre tents and mud/ block structure house near mizgen school","كلابدري خيم  و منازل من طين و  كتل من بلوك قرب مدرسة مزكين","Cluster",23,"Yes",23,138,"No",0,0,"No",0,0,"No",0,0,"Yes","Yes",{"$nulls":6},23,120,18,0,0,0,0,0,0,0,0,0,0,0,138,0,0,0,138,0,0,0,0,0,0,0,0,0,0,0,0,0,0,0,0,0,0,0,0,0,0,"2014-08-01","No",null,"Public-state/government/local authorities",null,"yes",null,null,"Yes we are allowed to upgrade the infrastructure, but upgrades are not being made (eg. cannot afford to, do not plan on staying here,do not want to make upgrades)","No","None (0%)","No","Very few meet their needs (1-24%)","Most or all (75% -100%)","Yes","yes",{"$nulls":3},"All or nearly all had enough water (91-100%) ","All or nearly all were able to access  (91-100%) ","No","Yes","Yes",{"$nulls":4},"Food","Employment/livelihood ","NFI",null,"Stay in the current location","Most would still not return ","Undecided/ Unknown"]
[110302516,"2022-05-18","Dahuk","Sumel","Fayida","Urban","Big Area/Sector","8369-Shariya","8369-شاريا","Field visit","Yes","Kalabadre tents & block structure house behind zawa mountain","كلابدري خيم و منازل من طين و من كتل بلوك خلف جبل زاوا","Cluster",5,"Yes",5,30,"No",0,0,"No",0,0,"No",0,0,"Yes",{"$nulls":7},5]
[110302517,"2022-05-19","Dahuk","Sumel","Fayida","Urban","Big Area/Sector","8369-Shariya","8369-شاريا","Field visit","Yes","Kalabadre UB and tents on shariya Street","كلابدري هياكل و خيم  علي شارع شاريا","Cluster",15,"Yes",15,90,"No",0,0,"No",0,0,"No",0,0,"Yes","Yes",{"$nulls":6},15,42,48,0,0,0,0,0,0,0,0,0,0,0,90,0,0,0,90,0,0,0,0,0,0,0,0,0,0,0,0,0,0,0,0,0,0,0,0,0,0,"2014-08-01","Yes","No","Privately owned ",null,"yes",null,null,"Yes we are allowed to upgrade the infrastructure, but upgrades are not being made (eg. cannot afford to, do not plan on staying here,do not want to make upgrades)","No","None (0%)","No","Very few meet their needs (1-24%)","Only a minority (25-49%) ","No",{"$nulls":4},"All or nearly all had enough water (91-100%) ","All or nearly all were able to access  (91-100%) ","No","Yes","Yes",{"$nulls":4},"Employment/livelihood ","Food","NFI",null,"Stay in the current location","Most would still not return ","Undecided/ Unknown"]
[110303502,"2022-05-10","Dahuk","Sumel","Markaz Sumel","Rural","Village","27126-Haweri","27126-هويري","Field visit","Yes","UB close to Haweri Hall","هياكل قرب قاعة هويري","Cluster",3,"Yes",5,30,"No",0,0,"No",0,0,"No",0,0,{"$nulls":5},"Yes",null,null,5]
[110303501,"2022-05-09","Dahuk","Sumel","Markaz Sumel","Rural","Village","27126-Haweri","27126-هويري","Field visit","Yes","Haweri center UB","هياكل مركز هويري","Cluster",5,"Yes",5,30,"No",0,0,"No",0,0,"No",0,0,{"$nulls":5},"Yes",null,null,5]
[110303805,"2022-05-09","Dahuk","Sumel","Markaz Sumel","Rural","Village","27121-Khanke Qadima","27121-خانكي قديمة","Field visit","Yes","Tents Close to old khanke school","خيم قرب مدرسة خانكي القديمة","Cluster",7,"Yes",7,42,"No",0,0,"No",0,0,"No",0,0,"Yes",{"$nulls":7},7]
[110303801,"2022-05-11","Dahuk","Sumel","Markaz Sumel","Rural","Village","27121-Khanke Qadima","27121-خانكي قديمة","Field visit","Yes","UB of old khanke close to kamona street","هياكل خانكي قديمة قرب طريق قرية كمونا","Cluster",5,"Yes",10,60,"No",0,0,"No",0,0,"No",0,0,{"$nulls":5},"Yes",null,null,10]
[110303806,"2022-05-11","Dahuk","Sumel","Markaz Sumel","Rural","Village","27121-Khanke Qadima","27121-خانكي قديمة","Field visit","Yes","UB of old khanke Close to shekh shamo house","هياكل خانكي قديمة قرب بيت شيخ شمو","Cluster",4,"Yes",7,42,"No",0,0,"No",0,0,"No",0,0,{"$nulls":5},"Yes",null,null,7]
[110303803,"2022-05-11","Dahuk","Sumel","Markaz Sumel","Rural","Village","27121-Khanke Qadima","27121-خانكي قديمة","Field visit","Yes","Tents top side of old khanke","خيم بدايية خانكي قديمة","Cluster",11,"Yes",11,66,"No",0,0,"No",0,0,"No",0,0,"Yes",{"$nulls":7},11]
[110303802,"2022-05-10","Dahuk","Sumel","Markaz Sumel","Rural","Village","27121-Khanke Qadima","27121-خانكي قديمة","Field visit","Yes","Tents & UB of old khanke Close to orphanage","خيمات و هياكل خانكي قديمة قرب دار الايتام","Cluster",11,"Yes",13,78,"No",0,0,"No",0,0,"No",0,0,"Yes",{"$nulls":7},13]
[110303804,"2022-05-10","Dahuk","Sumel","Markaz Sumel","Rural","Village","27121-Khanke Qadima","27121-خانكي قديمة","Field visit","Yes","Tents Close to Electric generation of old khanke","خيم قرب مولدة كهرباء خانكي قديمة","Cluster",6,"Yes",6,36,"No",0,0,"No",0,0,"No",0,0,"Yes",{"$nulls":7},6]
[110303903,"2022-05-09","Dahuk","Sumel","Markaz Sumel","Rural","Village","8800-Kherava","8800-خيرافا","Field visit","Yes","Kherava Block structure house East 2","شرق خيرافا ٢ كتل من بلوك منازل","Cluster",4,"Yes",7,42,"No",0,0,"No",0,0,"No",0,0,null,"Yes",{"$nulls":6},7]
[110303902,"2022-05-09","Dahuk","Sumel","Markaz Sumel","Rural","Village","8800-Kherava","8800-خيرافا","Field visit","Yes","Kherava UB East","شرق خيرافا","Cluster",2,"Yes",5,30,"No",0,0,"No",0,0,"No",0,0,{"$nulls":5},"Yes",null,null,5]
[110303901,"2022-05-09","Dahuk","Sumel","Markaz Sumel","Rural","Village","8800-Kherava","8800-خيرافا","Field visit","Yes","Kherava UB near water tank","هياكل خيرافا قرب تانك مياه","Cluster",3,"Yes",6,36,"No",0,0,"No",0,0,"No",0,0,{"$nulls":5},"Yes",null,null,6]
[110303904,"2022-05-09","Dahuk","Sumel","Markaz Sumel","Rural","Village","8800-Kherava","8800-خيرافا","Field visit","Yes","Kherava UB and Tents near khanki hospital","هياكل و خيم قرب مستشفى خانكي","Cluster",5,"Yes",6,36,"No",0,0,"No",0,0,"No",0,0,{"$nulls":5},"Yes",null,null,6]
[110304713,"2022-05-10","Dahuk","Sumel","Markaz Sumel","Rural","Village","27124-New Zinya","27124-زينيا جديدة","Field visit","Yes","New zinya mud / block structure house West zinya 2","زينيا جديدة منازل من طين و كتل من بلوك  غرب زينيا ٢","Cluster",7,"Yes",8,48,"No",0,0,"No",0,0,"No",0,0,"Yes",{"$nulls":7},8]
[110304705,"2022-05-11","Dahuk","Sumel","Markaz Sumel","Rural","Village","27124-New Zinya","27124-زينيا جديدة","Field visit","Yes","New zainya Tent & mud & block made In front of khanke casino","خيم و بيوت مصنوعة من طين و كتل بلوك في زينيات جديدة مقابل خانكي كازينو","Cluster",19,"Yes",25,150,"No",0,0,"No",0,0,"No",0,0,"Yes","Yes",{"$nulls":6},25,60,90,0,0,0,0,0,0,0,0,0,0,0,150,0,0,0,150,0,0,0,0,0,0,0,0,0,0,0,0,0,0,0,0,0,0,0,0,0,0,"2014-08-01","Yes","No","I don't know",{"$nulls":3},"yes","Yes we are allowed to upgrade the infrastructure, but upgrades are not being made (eg. cannot afford to, do not plan on staying here,do not want to make upgrades)","No","None (0%)","No","Very few meet their needs (1-24%)","Very few (1-24%)","No",{"$nulls":4},"All or nearly all had enough water (91-100%) ","All or nearly all were able to access  (91-100%) ","No","Yes","Yes",{"$nulls":4},"Shelter/Housing","Employment/livelihood ","Health",null,"Stay in the current location","Most would still not return ","Undecided/ Unknown"]
[110304721,"2022-05-10","Dahuk","Sumel","Markaz Sumel","Rural","Village","27124-New Zinya","27124-زينيا جديدة","Field visit","Yes","New zinya mud/block structure house near khanki camp gate 2","زينيا جديدة منازل من طين و كتل من بلوك  قرب بوابة مخيم خانكي ٢","Cluster",8,"Yes",11,66,"No",0,0,"No",0,0,"No",0,0,null,"Yes",{"$nulls":6},11]
[110304709,"2022-05-11","Dahuk","Sumel","Markaz Sumel","Rural","Village","27124-New Zinya","27124-زينيا جديدة","Field visit","Yes","New zinya tents and block structure house near Bewar shop","زينيا جديدة خيم و كتل من بلوك منازل قرب اسواق بيوار","Cluster",20,"Yes",23,138,"No",0,0,"No",0,0,"No",0,0,"Yes","Yes",{"$nulls":6},23,42,96,0,0,0,0,0,0,0,0,0,0,0,138,0,0,0,138,0,0,0,0,0,0,0,0,0,0,0,0,0,0,0,0,0,0,0,0,0,0,"2014-08-01","No",null,"Privately owned ",null,"yes",null,null,"Yes we are allowed to upgrade the infrastructure, but upgrades are not being made (eg. cannot afford to, do not plan on staying here,do not want to make upgrades)","No","None (0%)","Yes","Very few meet their needs (1-24%)","Only a minority (25-49%) ","No",{"$nulls":4},"All or nearly all had enough water (91-100%) ","All or nearly all were able to access  (91-100%) ","No","Yes","Yes",{"$nulls":4},"Shelter/Housing","Employment/livelihood ","NFI",null,"Stay in the current location","Most would still not return ","Undecided/ Unknown"]
[110304714,"2022-05-10","Dahuk","Sumel","Markaz Sumel","Rural","Village","27124-New Zinya","27124-زينيا جديدة","Field visit","Yes","New zinya tents and mud/  block structure house south zinya","زينيا جديدة خيم و منازل من طين و كتل من بلوك جنوب زينيا","Cluster",14,"Yes",18,108,"No",0,0,"No",0,0,"No",0,0,"Yes","Yes",{"$nulls":6},18,30,78,0,0,0,0,0,0,0,0,0,0,0,108,0,0,0,108,0,0,0,0,0,0,0,0,0,0,0,0,0,0,0,0,0,0,0,0,0,0,"2014-08-01","No",null,"Public-state/government/local authorities",null,"yes",null,null,"Yes we are allowed to upgrade the infrastructure, but upgrades are not being made (eg. cannot afford to, do not plan on staying here,do not want to make upgrades)","No","None (0%)","No","Very few meet their needs (1-24%)","Very few (1-24%)","No",{"$nulls":4},"All or nearly all had enough water (91-100%) ","All or nearly all were able to access  (91-100%) ","No","Yes","Yes",{"$nulls":4},"Employment/livelihood ","Shelter/Housing","NFI",null,"Stay in the current location","Most would still not return ","Stay in the current location"]
[110304710,"2022-05-10","Dahuk","Sumel","Markaz Sumel","Rural","Village","27124-New Zinya","27124-زينيا جديدة","Field visit","Yes","New zinya tents and mud/ block structure house close to GYM","زينيا جديدة خيم و منازل من طين و كتل من بلوك قرب قاعة رياضة","Cluster",15,"Yes",15,90,"No",0,0,"No",0,0,"No",0,0,"Yes","Yes",{"$nulls":6},15,30,60,0,0,0,0,0,0,0,0,0,0,0,90,0,0,0,90,0,0,0,0,0,0,0,0,0,0,0,0,0,0,0,0,0,0,0,0,0,0,"2014-08-01","No",null,"Privately owned ",null,"yes",null,null,"Yes we are allowed to upgrade the infrastructure, but upgrades are not being made (eg. cannot afford to, do not plan on staying here,do not want to make upgrades)","No","None (0%)","No","Only a minority meet their needs (25-49%) ","A majority (50-74%)","Yes","yes",{"$nulls":3},"All or nearly all had enough water (91-100%) ","All or nearly all were able to access  (91-100%) ","No","Yes","Yes",{"$nulls":4},"Shelter/Housing","NFI","Employment/livelihood ",null,"Stay in the current location","Most would still not return ","Undecided/ Unknown"]
[110304719,"2022-05-10","Dahuk","Sumel","Markaz Sumel","Rural","Village","27124-New Zinya","27124-زينيا جديدة","Field visit","Yes","New zinya tents and mud/ block structure house close khanki hall","زينيا جديدة خيم و منازل من طين و كتل من بلوك قرب قاعة خانكي","Cluster",20,"Yes",25,150,"No",0,0,"No",0,0,"No",0,0,"Yes","Yes",{"$nulls":6},25,36,114,0,0,0,0,0,0,0,0,0,0,0,150,0,0,0,150,0,0,0,0,0,0,0,0,0,0,0,0,0,0,0,0,0,0,0,0,0,0,"2014-08-01","Yes","No","Public-state/government/local authorities",null,"yes",null,null,"Yes we are allowed to upgrade the infrastructure, but upgrades are not being made (eg. cannot afford to, do not plan on staying here,do not want to make upgrades)","No","None (0%)","No","Only a minority meet their needs (25-49%) ","A majority (50-74%)","No",{"$nulls":4},"All or nearly all had enough water (91-100%) ","All or nearly all were able to access  (91-100%) ","No","Yes","Yes",{"$nulls":4},"Shelter/Housing","Employment/livelihood ","Health",null,"Stay in the current location","Most would still not return ","Undecided/ Unknown"]
[110304717,"2022-05-11","Dahuk","Sumel","Markaz Sumel","Rural","Village","27124-New Zinya","27124-زينيا جديدة","Field visit","Yes","New zinya tents and mud/ block structure house behind khanki camp wall 2","زينيا جديدة خيم و منازل من طين و كتل من بلوك خلف جدار خانني كمب ٢","Cluster",15,"Yes",18,108,"No",0,0,"No",0,0,"No",0,0,"Yes","Yes",{"$nulls":6},18,36,72,0,0,0,0,0,0,0,0,0,0,0,108,0,0,0,108,0,0,0,0,0,0,0,0,0,0,0,0,0,0,0,0,0,0,0,0,0,0,"2014-08-01","No",null,"Privately owned ",null,"yes",null,null,"Yes we are allowed to upgrade the infrastructure, but upgrades are not being made (eg. cannot afford to, do not plan on staying here,do not want to make upgrades)","No","None (0%)","No","Very few meet their needs (1-24%)","A majority (50-74%)","Yes","yes",{"$nulls":3},"All or nearly all had enough water (91-100%) ","All or nearly all were able to access  (91-100%) ","No","Yes","Yes",{"$nulls":4},"Employment/livelihood ","Shelter/Housing","NFI",null,"Stay in the current location","Most would still not return ","Undecided/ Unknown"]
[110304716,"2022-05-11","Dahuk","Sumel","Markaz Sumel","Rural","Village","27124-New Zinya","27124-زينيا جديدة","Field visit","Yes","New zinya tents and mud/ block structure house behind khanki camp wall","زينيا جديدة خيم و منازل من طين و كتل من بلوك خلف جدار خانكى كمب","Cluster",17,"Yes",18,108,"No",0,0,"No",0,0,"No",0,0,"Yes","Yes",{"$nulls":6},18,24,84,0,0,0,0,0,0,0,0,0,0,0,108,0,0,0,108,0,0,0,0,0,0,0,0,0,0,0,0,0,0,0,0,0,0,0,0,0,0,"2014-08-01","No",null,"Public-state/government/local authorities",null,"yes",null,null,"Yes we are allowed to upgrade the infrastructure, but upgrades are not being made (eg. cannot afford to, do not plan on staying here,do not want to make upgrades)","No","None (0%)","No","Only a minority meet their needs (25-49%) ","A majority (50-74%)","No",{"$nulls":4},"All or nearly all had enough water (91-100%) ","All or nearly all were able to access  (91-100%) ","No","Yes","Yes",{"$nulls":4},"Other","Employment/livelihood ","Shelter/Housing","Cash","Stay in the current location","Most would still not return ","Undecided/ Unknown"]
[110304711,"2022-05-11","Dahuk","Sumel","Markaz Sumel","Rural","Village","27124-New Zinya","27124-زينيا جديدة","Field visit","Yes","New zinya tents and mud/ block structure house behind football yard","زينيا جديدة خيم و منازل من طين و كتل من بلوك خلف ملعب كرة قدم","Cluster",26,"Yes",28,168,"No",0,0,"No",0,0,"No",0,0,"Yes","Yes",{"$nulls":6},28,60,108,0,0,0,0,0,0,0,0,0,0,0,168,0,0,0,168,0,0,0,0,0,0,0,0,0,0,0,0,0,0,0,0,0,0,0,0,0,0,"2015-02-01","Yes","No","Public-state/government/local authorities",null,"yes",null,null,"Yes we are allowed to upgrade the infrastructure, but upgrades are not being made (eg. cannot afford to, do not plan on staying here,do not want to make upgrades)","No","None (0%)","No","Only a minority meet their needs (25-49%) ","A majority (50-74%)","Yes","yes",{"$nulls":3},"All or nearly all had enough water (91-100%) ","All or nearly all were able to access  (91-100%) ","No","Yes","Yes",{"$nulls":4},"Other","NFI","Employment/livelihood ","Cash","Stay in the current location","Most would still not return ","Undecided/ Unknown"]
[110304715,"2022-05-11","Dahuk","Sumel","Markaz Sumel","Rural","Village","27124-New Zinya","27124-زينيا جديدة","Field visit","Yes","New zinya tents and mud/ block structure house North East football yard","زينيا جديدة خيم و منازل من طين و كتل من بلوك شمال شرق ملعب كرة القدم","Cluster",29,"Yes",32,192,"No",0,0,"No",0,0,"No",0,0,"Yes","Yes",{"$nulls":6},32,54,138,0,0,0,0,0,0,0,0,0,0,0,192,0,0,0,192,0,0,0,0,0,0,0,0,0,0,0,0,0,0,0,0,0,0,0,0,0,0,"2014-08-01","Yes","No","Public-state/government/local authorities",null,"yes",null,null,"Yes we are allowed to upgrade the infrastructure, but upgrades are not being made (eg. cannot afford to, do not plan on staying here,do not want to make upgrades)","No","None (0%)","No","Only a minority meet their needs (25-49%) ","A majority (50-74%)","No",{"$nulls":4},"All or nearly all had enough water (91-100%) ","All or nearly all were able to access  (91-100%) ","No","Yes","Yes",{"$nulls":4},"Shelter/Housing","Employment/livelihood ","Health",null,"Stay in the current location","Some would return","Undecided/ Unknown"]
[110304703,"2022-05-11","Dahuk","Sumel","Markaz Sumel","Rural","Village","27124-New Zinya","27124-زينيا جديدة","Field visit","Yes","North west football yard of New Zainya","شمال غرب ساحة قدم زينيات جديدة","Cluster",9,"Yes",10,60,"No",0,0,"No",0,0,"No",0,0,"Yes","Yes",{"$nulls":6},10]
[110304702,"2022-05-11","Dahuk","Sumel","Markaz Sumel","Rural","Village","27124-New Zinya","27124-زينيا جديدة","Field visit","Yes","North West New zainya","شمال غرب زينيات جديدة","Cluster",7,"Yes",9,54,"No",0,0,"No",0,0,"No",0,0,"Yes","Yes",{"$nulls":6},9]
[110304712,"2022-05-10","Dahuk","Sumel","Markaz Sumel","Rural","Village","27124-New Zinya","27124-زينيا جديدة","Field visit","Yes","New zinya tents and mud/ block structure house West zinya","خيم و منازل من طين و كتل من بلوك غرب زينيا","Cluster",11,"Yes",14,84,"No",0,0,"No",0,0,"No",0,0,"Yes","Yes",{"$nulls":6},14]
[110304707,"2022-05-10","Dahuk","Sumel","Markaz Sumel","Rural","Village","27124-New Zinya","27124-زينيا جديدة","Field visit","Yes","Tents of new zainya close to khanke street","خيم زينيات جديدة قرب شارع خانكي","Cluster",9,"Yes",9,54,"No",0,0,"No",0,0,"No",0,0,"Yes",{"$nulls":7},9]
[110304704,"2022-05-10","Dahuk","Sumel","Markaz Sumel","Rural","Village","27124-New Zinya","27124-زينيا جديدة","Field visit","Yes","Tents &block structures Between Football yard & Electricgenerator of new zainya","خيم و بيوت مصنعة من كتل بلوك مابين ساحة كرة القدم و مولدة كهرباء زينيات جديدة","Cluster",35,"Yes",37,222,"No",0,0,"No",0,0,"No",0,0,"Yes","Yes",{"$nulls":6},37,36,186,0,0,0,0,0,0,0,0,0,0,0,222,0,0,0,222,0,0,0,0,0,0,0,0,0,0,0,0,0,0,0,0,0,0,0,0,0,0,"2014-08-01","No",null,"Public-state/government/local authorities",null,"yes",null,null,"Yes we are allowed to upgrade the infrastructure, but upgrades are not being made (eg. cannot afford to, do not plan on staying here,do not want to make upgrades)","No","None (0%)","No","Only a minority meet their needs (25-49%) ","A majority (50-74%)","No",{"$nulls":4},"All or nearly all had enough water (91-100%) ","All or nearly all were able to access  (91-100%) ","No","Yes","Yes",{"$nulls":4},"Shelter/Housing","Employment/livelihood ","Health",null,"Stay in the current location","Some would return","Undecided/ Unknown"]
[110304701,"2022-05-10","Dahuk","Sumel","Markaz Sumel","Rural","Village","27124-New Zinya","27124-زينيا جديدة","Field visit","Yes","Tents & block structures Notrh East New Zinya","خيم و بيوت مصنعة من كتل بلوك شمال شرق زينيات جديدة","Cluster",10,"Yes",14,84,"No",0,0,"No",0,0,"No",0,0,"Yes","Yes",{"$nulls":6},14]
[110304706,"2022-05-10","Dahuk","Sumel","Markaz Sumel","Rural","Village","27124-New Zinya","27124-زينيا جديدة","Field visit","Yes","Tents & block structures of new zainya Between communications tower & khanke camp","خيم بيوت مصنوعة من كتل بلوك زينيات جديدة مابين برج الاتصالات و مخيم خانكي","Cluster",22,"Yes",26,156,"No",0,0,"No",0,0,"No",0,0,"Yes","Yes",{"$nulls":6},26,108,48,0,0,0,0,0,0,0,0,0,0,0,156,0,0,0,156,0,0,0,0,0,0,0,0,0,0,0,0,0,0,0,0,0,0,0,0,0,0,"2014-08-01","No",null,"Public-state/government/local authorities",null,"yes",null,null,"Yes we are allowed to upgrade the infrastructure, but upgrades are not being made (eg. cannot afford to, do not plan on staying here,do not want to make upgrades)","No","None (0%)","No","Only a minority meet their needs (25-49%) ","Only a minority (25-49%) ","No",{"$nulls":4},"All or nearly all had enough water (91-100%) ","All or nearly all were able to access  (91-100%) ","No","Yes","Yes",{"$nulls":4},"Shelter/Housing","Employment/livelihood ","Health",null,"Stay in the current location","Most would still not return ","Undecided/ Unknown"]
[110304708,"2022-05-10","Dahuk","Sumel","Markaz Sumel","Rural","Village","27124-New Zinya","27124-زينيا جديدة","Field visit","Yes","Tents & mud house of new zainya Right side of khanke Camp road","خيم و بيوت طينية في زينيات جديدة عن طريق مخيم خانكي","Cluster",7,"Yes",9,54,"No",0,0,"No",0,0,"No",0,0,"Yes","Yes",{"$nulls":6},9]
[110304720,"2022-05-10","Dahuk","Sumel","Markaz Sumel","Rural","Village","27124-New Zinya","27124-زينيا جديدة","Field visit","Yes","New zinya tents and mud/block structure house near khanki camp gate","زينيا جديدة خيم و منازل من طين و كتل من بلوك قرب بوابة مخيم خانكي","Cluster",10,"Yes",11,66,"No",0,0,"No",0,0,"No",0,0,"Yes","Yes",{"$nulls":6},11]
[110304001,"2022-05-10","Dahuk","Sumel","Markaz Sumel","Rural","Village","27127-Old Mam Shvana","27127-مام شفانا قديمة","Field visit","Yes","Tent & mud houses of old mam shvana","خيم و بيوت مصنعة من طين مام شفان قديمة","Cluster",50,"Yes",52,312,"No",0,0,"No",0,0,"No",0,0,"Yes","Yes",{"$nulls":6},52,78,234,0,0,0,0,0,0,0,0,0,0,0,312,0,0,0,312,0,0,0,0,0,0,0,0,0,0,0,0,0,0,0,0,0,0,0,0,0,0,"2014-08-01","No",null,"Public-state/government/local authorities",null,"yes",null,null,"Yes we are allowed to upgrade the infrastructure, but upgrades are not being made (eg. cannot afford to, do not plan on staying here,do not want to make upgrades)","No","None (0%)","No","Only a minority meet their needs (25-49%) ","A majority (50-74%)","No",{"$nulls":4},"All or nearly all had enough water (91-100%) ","All or nearly all were able to access  (91-100%) ","No","Yes","Yes",{"$nulls":4},"Shelter/Housing","Employment/livelihood ","NFI",null,"Stay in the current location","Most would still not return ","Undecided/ Unknown"]
[110304303,"2022-05-09","Dahuk","Sumel","Markaz Sumel","Rural","Village","27125-Old Qasr Yazddin","27125-قسريزدين قديمة","Field visit","Yes","Tents & mud structures on of Left side of qasr yazddin road","خيم و بيوت طينية جانب الايسر من طريق قصر يزدين","Cluster",5,"Yes",6,36,"No",0,0,"No",0,0,"No",0,0,"Yes","Yes",{"$nulls":6},6]
[110304304,"2022-05-09","Dahuk","Sumel","Markaz Sumel","Rural","Village","27125-Old Qasr Yazddin","27125-قسريزدين قديمة","Field visit","Yes","Mud & block structures Close to school","بيوت طينية قرب مدرسة قصر يزدين","Cluster",4,"Yes",5,30,"No",0,0,"No",0,0,"No",0,0,null,"Yes",{"$nulls":6},5]
[110304305,"2022-05-09","Dahuk","Sumel","Markaz Sumel","Rural","Village","27125-Old Qasr Yazddin","27125-قسريزدين قديمة","Field visit","Yes","Tent & block structures Behind the qasr yazddin school","خيم و بيوت مصنعة من كتل بلوك خلف مدرسة قصر يزدين","Cluster",9,"Yes",11,66,"No",0,0,"No",0,0,"No",0,0,"Yes","Yes",{"$nulls":6},11]
[110304302,"2022-05-09","Dahuk","Sumel","Markaz Sumel","Rural","Village","27125-Old Qasr Yazddin","27125-قسريزدين قديمة","Field visit","Yes","Right side of qasr yasddin road tents & block structures","خيم و بيوت مصنعة من كتل بلوك يمين طريق قصر يزدين","Cluster",4,"Yes",5,30,"No",0,0,"No",0,0,"No",0,0,"Yes","Yes",{"$nulls":6},5]
[110304301,"2022-05-09","Dahuk","Sumel","Markaz Sumel","Rural","Village","27125-Old Qasr Yazddin","27125-قسريزدين قديمة","Field visit","Yes","Old Qaser yazdin tents and mud/ block structure on Semel road","قسريزدين قديمة  خيم و منازل من طين و كتل من بلوك على طريق سميل","Cluster",32,"Yes",38,228,"No",0,0,"No",0,0,"No",0,0,"Yes","Yes",{"$nulls":6},38,156,72,0,0,0,0,0,0,0,0,0,0,0,228,0,0,0,228,0,0,0,0,0,0,0,0,0,0,0,0,0,0,0,0,0,0,0,0,0,0,"2014-08-01","No",null,"Privately owned ",null,"yes",null,null,"Yes we are allowed to upgrade the infrastructure, but upgrades are not being made (eg. cannot afford to, do not plan on staying here,do not want to make upgrades)","No","None (0%)","No","Very few meet their needs (1-24%)","Only a minority (25-49%) ","No",{"$nulls":4},"All or nearly all had enough water (91-100%) ","All or nearly all were able to access  (91-100%) ","Yes","Yes","Yes",{"$nulls":4},"Shelter/Housing","Drinking water","Employment/livelihood ",null,"Stay in the current location","Most would still not return ","Undecided/ Unknown"]
[110304601,"2022-05-09","Dahuk","Sumel","Markaz Sumel","Rural","Village","27130-Old Sorka","27130-صوركا قديمة","Field visit","Yes","UB of old sorka","هياكل صوركا قديمة","Cluster",2,"Yes",5,30,"No",0,0,"No",0,0,"No",0,0,{"$nulls":5},"Yes",null,null,5]
[110304203,"2022-05-11","Dahuk","Sumel","Markaz Sumel","Rural","Village","8582-Qasr Yazddin","8582-قسر يزدين","Field visit","Yes","Qaser yazdin tent and  mud block structures close to lalish hall","قسريزدين خيم و منازل من طين و كتل من بلوك قرب لالش هول","Cluster",220,"Yes",255,{"v":1530,"d":"1,530"},"No",0,0,"No",0,0,"No",0,0,"Yes","Yes",{"$nulls":6},255,{"v":1050,"d":"1,050"},480,0,0,0,0,0,0,0,0,0,0,0,{"v":1530,"d":"1,530"},0,0,0,{"v":1530,"d":"1,530"},0,0,0,0,0,0,0,0,0,0,0,0,0,0,0,0,0,0,0,0,0,0,"2014-08-01","No",null,"Privately owned ",null,"yes",null,null,"Yes we are allowed to upgrade the infrastructure, but upgrades are not being made (eg. cannot afford to, do not plan on staying here,do not want to make upgrades)","No","None (0%)","No","Very few meet their needs (1-24%)","Only a minority (25-49%) ","No",{"$nulls":4},"All or nearly all had enough water (91-100%) ","All or nearly all were able to access  (91-100%) ","No","Yes","Yes",{"$nulls":4},"Shelter/Housing","Employment/livelihood ","NFI",null,"Stay in the current location","Most would still not return ","Undecided/ Unknown"]
[110304201,"2022-05-11","Dahuk","Sumel","Markaz Sumel","Rural","Village","8582-Qasr Yazddin","8582-قسر يزدين","Field visit","Yes","Qaser yazdin UB West qaser yazdin","هياكل قسريزدين غرب قسريزدين","Cluster",2,"Yes",5,30,"No",0,0,"No",0,0,"No",0,0,{"$nulls":5},"Yes",null,null,5]
[110304202,"2022-05-11","Dahuk","Sumel","Markaz Sumel","Rural","Village","8582-Qasr Yazddin","8582-قسر يزدين","Field visit","Yes","Qaser yazdin UB West Qaser yazdin 2","هياكل غرب قسريزدين ٢","Cluster",2,"Yes",5,30,"No",0,0,"No",0,0,"No",0,0,{"$nulls":5},"Yes",null,null,5]
[110302301,"2022-05-08","Dahuk","Sumel","Markaz Sumel","Rural","Village","7989-Seje","7989-سيجي","Field visit","Yes","Close to mokhtar's house","هياكل قرب بيت مختار","Cluster",3,"Yes",8,48,"No",0,0,"No",0,0,"No",0,0,{"$nulls":5},"Yes",null,null,8]
[110302312,"2022-05-08","Dahuk","Sumel","Markaz Sumel","Rural","Village","7989-Seje","7989-سيجي","Field visit","Yes","East of Seji village","شرق قرية سيجي","Cluster",18,"Yes",30,180,"No",0,0,"No",0,0,"No",0,0,{"$nulls":5},"Yes",null,null,30,0,0,0,0,0,180,0,0,0,0,0,0,0,180,0,0,0,180,0,0,0,0,0,0,0,0,0,0,0,0,0,0,0,0,0,0,0,0,0,0,"2014-08-01","No",null,"Privately owned ",null,"yes",null,null,"Yes we are allowed to upgrade the infrastructure, but upgrades are not being made (eg. cannot afford to, do not plan on staying here,do not want to make upgrades)","Yes, some","None (0%)","No","Only a minority meet their needs (25-49%) ","None (0%)","No",{"$nulls":4},"All or nearly all had enough water (91-100%) ","All or nearly all were able to access  (91-100%) ","No","Yes","Yes",{"$nulls":4},"Employment/livelihood ","Shelter/Housing","Health",null,"Stay in the current location","Most would still not return ","Stay in the current location"]
[110302311,"2022-05-08","Dahuk","Sumel","Markaz Sumel","Rural","Village","7989-Seje","7989-سيجي","Field visit","Yes","Seji village Near Seji IDP'S school 2","قرية سيجي قريبة من مدرسة سيجي للنازحين ٢","Cluster",14,"Yes",23,138,"No",0,0,"No",0,0,"No",0,0,{"$nulls":5},"Yes",null,null,{"$f":"Q195+T195","v":23},0,0,0,0,0,138,0,0,0,0,0,0,0,138,0,0,0,138,0,0,0,0,0,0,0,0,0,0,0,0,0,0,0,0,0,0,0,0,0,0,"2014-08-01","No",null,"Privately owned ",null,"yes",null,null,"Yes we are allowed to upgrade the infrastructure, but upgrades are not being made (eg. cannot afford to, do not plan on staying here,do not want to make upgrades)","Yes, most ","None (0%)","No","Very few meet their needs (1-24%)","Very few (1-24%)","No",{"$nulls":4},"All or nearly all had enough water (91-100%) ","All or nearly all were able to access  (91-100%) ","No","Yes","Yes",{"$nulls":4},"Shelter/Housing","Employment/livelihood ","Health",null,"Stay in the current location","Most would still not return ","Undecided/ Unknown"]
[110302305,"2022-05-08","Dahuk","Sumel","Markaz Sumel","Rural","Village","7989-Seje","7989-سيجي","Field visit","Yes","UB north-East of seje kindergarten","هياكل شمال شرق روضة اطفال سيجي","Cluster",9,"Yes",14,84,"No",0,0,"No",0,0,"No",0,0,{"$nulls":5},"Yes",null,null,14]
[110302304,"2022-05-08","Dahuk","Sumel","Markaz Sumel","Rural","Village","7989-Seje","7989-سيجي","Field visit","Yes","UB north of seje kindergarten","هياكل شمال روضة الاطفال سيجي","Cluster",8,"Yes",12,72,"No",0,0,"No",0,0,"No",0,0,{"$nulls":5},"Yes",null,null,12]
[110302306,"2022-05-08","Dahuk","Sumel","Markaz Sumel","Rural","Village","7989-Seje","7989-سيجي","Field visit","Yes","UB East of seje kindergarten","هياكل شرق روضة اطفال سيجي","Cluster",9,"Yes",18,108,"No",0,0,"No",0,0,"No",0,0,{"$nulls":5},"Yes",null,null,18,0,0,0,0,0,108,0,0,0,0,0,0,0,108,0,0,0,108,0,0,0,0,0,0,0,0,0,0,0,0,0,0,0,0,0,0,0,0,0,0,"2014-08-01","No",null,"Privately owned ",null,"yes",null,null,"Yes we are allowed to upgrade the infrastructure, but upgrades are not being made (eg. cannot afford to, do not plan on staying here,do not want to make upgrades)","Yes, most ","None (0%)","No","Very few meet their needs (1-24%)","Very few (1-24%)","No",{"$nulls":4},"All or nearly all had enough water (91-100%) ","All or nearly all were able to access  (91-100%) ","No","Yes","Yes",{"$nulls":4},"Health","Shelter/Housing","Employment/livelihood ",null,"Stay in the current location","Most would still not return ","Stay in the current location"]
[110302307,"2022-05-08","Dahuk","Sumel","Markaz Sumel","Rural","Village","7989-Seje","7989-سيجي","Field visit","Yes","UB of East seje","هياكل شرق سيجي","Cluster",5,"Yes",8,48,"No",0,0,"No",0,0,"No",0,0,{"$nulls":5},"Yes",null,null,8]
[110302308,"2022-05-08","Dahuk","Sumel","Markaz Sumel","Rural","Village","7989-Seje","7989-سيجي","Field visit","Yes","UB Soth-East seje","هياكل جنوب شرق سيجي","Cluster",14,"Yes",22,132,"No",0,0,"No",0,0,"No",0,0,{"$nulls":5},"Yes",null,null,22,0,0,0,0,0,132,0,0,0,0,0,0,0,132,0,0,0,132,0,0,0,0,0,0,0,0,0,0,0,0,0,0,0,0,0,0,0,0,0,0,"2014-08-01","Yes","No","Privately owned ",null,"yes",null,null,"Yes we are allowed to upgrade the infrastructure, but upgrades are not being made (eg. cannot afford to, do not plan on staying here,do not want to make upgrades)","Yes, most ","None (0%)","No","Very few meet their needs (1-24%)","Only a minority (25-49%) ","No",{"$nulls":4},"All or nearly all had enough water (91-100%) ","All or nearly all were able to access  (91-100%) ","No","Yes","Yes",{"$nulls":4},"Shelter/Housing","Employment/livelihood ","Health",null,"Stay in the current location","Most would still not return ","Undecided/ Unknown"]
[110302302,"2022-05-08","Dahuk","Sumel","Markaz Sumel","Rural","Village","7989-Seje","7989-سيجي","Field visit","Yes","UB in front of Electric generator of seje","هياكل مقابل مولدة كهرباء سيجي","Cluster",6,"Yes",8,48,"No",0,0,"No",0,0,"No",0,0,{"$nulls":5},"Yes",null,null,8]
[110302313,"2022-05-08","Dahuk","Sumel","Markaz Sumel","Rural","Village","7989-Seje","7989-سيجي","Field visit","Yes","UB North seje","هياكل شمال سيجي","Cluster",11,"Yes",18,108,"No",0,0,"No",0,0,"No",0,0,{"$nulls":5},"Yes",null,null,18,0,0,0,0,0,108,0,0,0,0,0,0,0,108,0,0,0,108,0,0,0,0,0,0,0,0,0,0,0,0,0,0,0,0,0,0,0,0,0,0,"2014-08-01","No",null,"Privately owned ",null,"yes",null,null,"Yes we are allowed to upgrade the infrastructure, but upgrades are not being made (eg. cannot afford to, do not plan on staying here,do not want to make upgrades)","Yes, most ","None (0%)","No","Very few meet their needs (1-24%)","Very few (1-24%)","No",{"$nulls":4},"All or nearly all had enough water (91-100%) ","All or nearly all were able to access  (91-100%) ","No","Yes","Yes",{"$nulls":4},"Shelter/Housing","Health","Employment/livelihood ",null,"Stay in the current location","Do not know (for KI)","Undecided/ Unknown"]
[110302303,"2022-05-08","Dahuk","Sumel","Markaz Sumel","Rural","Village","7989-Seje","7989-سيجي","Field visit","Yes","UB west of kindergarten of seje","هياكل غرب روضة الاطفال سيجي","Cluster",4,"Yes",7,42,"No",0,0,"No",0,0,"No",0,0,{"$nulls":5},"Yes",null,null,7]
[110302309,"2022-05-08","Dahuk","Sumel","Markaz Sumel","Rural","Village","7989-Seje","7989-سيجي","Field visit","Yes","Seji village near Korek telecom tower","قرية سيجي قريبة من برج كورك","Cluster",7,"Yes",13,78,"No",0,0,"No",0,0,"No",0,0,{"$nulls":5},"Yes",null,null,13]
[110302310,"2022-05-08","Dahuk","Sumel","Markaz Sumel","Rural","Village","7989-Seje","7989-سيجي","Field visit","Yes","Seji village Near seji IDP'S school 1","قرية سيجي قريبة من مدرسة سيجي للنازحين ١","Cluster",16,"Yes",27,162,"No",0,0,"No",0,0,"No",0,0,{"$nulls":5},"Yes",null,null,27,0,0,0,0,0,162,0,0,0,0,0,0,0,162,0,0,0,162,0,0,0,0,0,0,0,0,0,0,0,0,0,0,0,0,0,0,0,0,0,0,"2014-08-01","Don’t know",null,"Privately owned ",null,"yes",null,null,"Yes we are allowed to upgrade the infrastructure, but upgrades are not being made (eg. cannot afford to, do not plan on staying here,do not want to make upgrades)","Yes, most ","None (0%)","No","Very few meet their needs (1-24%)","Very few (1-24%)","No",{"$nulls":4},"All or nearly all had enough water (91-100%) ","All or nearly all were able to access  (91-100%) ","No","Yes","Yes",{"$nulls":4},"Shelter/Housing","Health","Employment/livelihood ",null,"Stay in the current location","Most would still not return ","Undecided/ Unknown"]
[110302901,"2022-04-26","Dahuk","Sumel","Markaz Sumel","Urban","Neighborhood","24596-Tanahi","24596-تناهي","Field visit","Yes","Tanahi Near Nawro city","تناهي قريبة من نورو ستي","Cluster",14,"Yes",20,120,"No",0,0,"No",0,0,"No",0,0,"Yes",{"$nulls":4},"Yes",null,null,20,30,0,0,0,0,90,0,0,0,0,0,0,0,120,0,0,0,120,0,0,0,0,0,0,0,0,0,0,0,0,0,0,0,0,0,0,0,0,0,0,"2014-08-01","No",null,"Privately owned ",null,"yes",null,null,"Yes we are allowed to upgrade the infrastructure, but upgrades are not being made (eg. cannot afford to, do not plan on staying here,do not want to make upgrades)","Yes, some","None (0%)","No","Only a minority meet their needs (25-49%) ","Most or all (75% -100%)","No",{"$nulls":4},"All or nearly all had enough water (91-100%) ","All or nearly all were able to access  (91-100%) ","No","Yes","Yes",{"$nulls":4},"Employment/livelihood ","Shelter/Housing","NFI",null,"Stay in the current location","Most or all would return","Undecided/ Unknown"]
[110401301,"2022-05-26","Dahuk","Zakho","Darkar","Urban","Big Area/Sector","8084-Darkar","8084-دركار","Field visit","Yes","Darkar UB near Darkar school","هياكل دركار قرب مدرسة دركار","Cluster",5,"Yes",6,36,"No",0,0,"No",0,0,"No",0,0,{"$nulls":5},"Yes",null,null,6]
[110401302,"2022-05-26","Dahuk","Zakho","Darkar","Urban","Big Area/Sector","8084-Darkar","8084-دركار","Field visit","Yes","Darker UB near fatima mosque","هياكل دركار قرب جامع فاتما","Cluster",5,"Yes",7,42,"No",0,0,"No",0,0,"No",0,0,{"$nulls":5},"Yes",null,null,7]
[110406301,"2022-05-24","Dahuk","Zakho","Markaz Zakho","Urban","Big Area/Sector","32032-Firqa Sector","32032-قطاع فرقة","Field visit","Yes","Firqa UB close to indusrtry","هياكل فرقة قرب صناعة","Cluster",3,"Yes",5,30,"No",0,0,"No",0,0,"No",0,0,{"$nulls":5},"Yes",null,null,5]
[110405904,"2022-05-24","Dahuk","Zakho","Markaz Zakho","Urban","Big Area/Sector","32028-Khrababka Sector","32028-قطاع خرابابكا","Field visit","Yes","Blockstructures north east of khrababka","بيوت مصنعة من كتل بلوك شمال شرق خرابابكا","Cluster",3,"Yes",5,30,"No",0,0,"No",0,0,"No",0,0,{"$nulls":5},"Yes",null,null,5]
[110405905,"2022-05-24","Dahuk","Zakho","Markaz Zakho","Urban","Big Area/Sector","32028-Khrababka Sector","32028-قطاع خرابابكا","Field visit","Yes","Khrababka UB Close to football yard","هيكل خرابابكا قرب ساحة كرة القدم","Cluster",4,"Yes",5,30,"No",0,0,"No",0,0,"No",0,0,{"$nulls":5},"Yes",null,null,5]
[110405903,"2022-05-24","Dahuk","Zakho","Markaz Zakho","Urban","Big Area/Sector","32028-Khrababka Sector","32028-قطاع خرابابكا","Field visit","Yes","North west Khrababka block structures","بيوت مصنعة من كتل بلوك شمال غرب khrababka","Cluster",4,"Yes",5,30,"No",0,0,"No",0,0,"No",0,0,null,"Yes",{"$nulls":6},5]
[110405907,"2022-05-24","Dahuk","Zakho","Markaz Zakho","Urban","Big Area/Sector","32028-Khrababka Sector","32028-قطاع خرابابكا","Field visit","Yes","Khrababka UB Chamsirmo village","هياكل خرابابكا في قرية جم سيرمو","Cluster",9,"Yes",13,78,"No",0,0,"No",0,0,"No",0,0,{"$nulls":5},"Yes",null,null,13]
[110406401,"2022-05-24","Dahuk","Zakho","Markaz Zakho","Urban","Big Area/Sector","32033-Kochka Honari","32033-قطاع كوجكا هوناري","Field visit","Yes","Kochka honari near pra zeren oile station","كوجكا هونري قريبة من محطة برا زيرين","Cluster",2,"Yes",8,48,"No",0,0,"No",0,0,"No",0,0,{"$nulls":5},"Yes",null,null,8]
[110401904,"2022-05-22","Dahuk","Zakho","Rizgari","Rural","Big Area/Sector","25992-Diraboon","25992-ديربون","Field visit","Yes","Derabon near helth center","ديربون قريبة من المركز الصحي","Cluster",13,"Yes",14,84,"No",0,0,"No",0,0,"No",0,0,"Yes","Yes",{"$nulls":6},14]
[110401907,"2022-05-23","Dahuk","Zakho","Rizgari","Rural","Big Area/Sector","25992-Diraboon","25992-ديربون","Field visit","Yes","Derabon near Lalish Center","ديربون قرب مركز لالش","Cluster",28,"Yes",31,186,"No",0,0,"No",0,0,"No",0,0,"Yes",{"$nulls":6},"Yes",31,144,0,0,0,0,0,0,42,0,0,0,0,0,186,0,0,0,186,0,0,0,0,0,0,0,0,0,0,0,0,0,0,0,0,0,0,0,0,0,0,"2014-08-01","Yes","No","Privately owned ",null,"yes",null,null,"Yes we are allowed to upgrade the infrastructure, but upgrades are not being made (eg. cannot afford to, do not plan on staying here,do not want to make upgrades)","No","None (0%)","No","Only a minority meet their needs (25-49%) ","Most or all (75% -100%)","No",{"$nulls":4},"All or nearly all had enough water (91-100%) ","All or nearly all were able to access  (91-100%) ","No","Yes","Yes",{"$nulls":4},"Employment/livelihood ","Shelter/Housing","NFI",null,"Stay in the current location","Most would still not return ","Undecided/ Unknown"]
[110401901,"2022-05-22","Dahuk","Zakho","Rizgari","Rural","Big Area/Sector","25992-Diraboon","25992-ديربون","Field visit","Yes","Derabon Between Cemetery and Elictricity directorate","ديربون بين المقبرة ودائرة الكهرباء","Cluster",78,"Yes",92,552,"No",0,0,"No",0,0,"No",0,0,"Yes","Yes",{"$nulls":6},92,12,540,0,0,0,0,0,0,0,0,0,0,0,552,0,0,0,552,0,0,0,0,0,0,0,0,0,0,0,0,0,0,0,0,0,0,0,0,0,0,"2014-08-01","Yes","No","Privately owned ",null,"yes",null,null,"Yes we are allowed to upgrade the infrastructure, but upgrades are not being made (eg. cannot afford to, do not plan on staying here,do not want to make upgrades)","Yes, some","None (0%)","No","Only a minority meet their needs (25-49%) ","Most or all (75% -100%)","No",{"$nulls":4},"All or nearly all had enough water (91-100%) ","All or nearly all were able to access  (91-100%) ","No","Yes","Yes",{"$nulls":4},"Employment/livelihood ","Shelter/Housing","NFI",null,"Stay in the current location","Most would still not return ","Undecided/ Unknown"]
[110401903,"2022-05-22","Dahuk","Zakho","Rizgari","Rural","Big Area/Sector","25992-Diraboon","25992-ديربون","Field visit","Yes","Derabun mud & block structures houses between cemetery & main street","بيوت مصنعة من طين و كتل بلوك في ديربون مابين مقبرة وشارع الرئيسي","Cluster",6,"Yes",6,36,"No",0,0,"No",0,0,"No",0,0,null,"Yes",{"$nulls":6},6]
[110401902,"2022-05-22","Dahuk","Zakho","Rizgari","Rural","Big Area/Sector","25992-Diraboon","25992-ديربون","Field visit","Yes","Derabun tents in (saro kani)","خيم ديربون قرب (سروكاني)","Cluster",9,"Yes",9,54,"No",0,0,"No",0,0,"No",0,0,"Yes",{"$nulls":7},9]
[110401905,"2022-05-23","Dahuk","Zakho","Rizgari","Rural","Big Area/Sector","25992-Diraboon","25992-ديربون","Field visit","Yes","Derabon near Arten oil statio","ديربون قرب محطة ارتين","Cluster",34,"Yes",36,216,"No",0,0,"No",0,0,"No",0,0,"Yes","Yes",{"$nulls":6},36,24,192,0,0,0,0,0,0,0,0,0,0,0,216,0,0,0,216,0,0,0,0,0,0,0,0,0,0,0,0,0,0,0,0,0,0,0,0,0,0,"2014-08-01","No",null,"Privately owned ",null,"yes",null,null,"Yes we are allowed to upgrade the infrastructure, but upgrades are not being made (eg. cannot afford to, do not plan on staying here,do not want to make upgrades)","No","None (0%)","No","Only a minority meet their needs (25-49%) ","Most or all (75% -100%)","No",{"$nulls":4},"All or nearly all had enough water (91-100%) ","All or nearly all were able to access  (91-100%) ","No","Yes","Yes",{"$nulls":4},"Employment/livelihood ","Shelter/Housing","NFI",null,"Stay in the current location","Most would still not return ","Undecided/ Unknown"]
[110401906,"2022-05-23","Dahuk","Zakho","Rizgari","Rural","Big Area/Sector","25992-Diraboon","25992-ديربون","Field visit","Yes","Derabon near derabon school","ديربون قرب مدرسة ديربون","Cluster",10,"Yes",12,72,"No",0,0,"No",0,0,"No",0,0,"Yes",{"$nulls":4},"Yes",null,null,12]
[110401601,"2022-05-22","Dahuk","Zakho","Rizgari","Rural","Village","23620-Fishkhaboor","23620-فيشخابور","Field visit","Yes","Near Feshkhabor Church","قرب كنيسة فيشخابور","Cluster",10,"Yes",16,96,"No",0,0,"No",0,0,"No",0,0,"Yes",{"$nulls":4},"Yes",null,null,16,24,0,0,0,0,72,0,0,0,0,0,0,0,96,0,0,0,96,0,0,0,0,0,0,0,0,0,0,0,0,0,0,0,0,0,0,0,0,0,0,"2014-08-01","Yes","No","Public-state/government/local authorities",null,"yes",null,null,"Yes we are allowed to upgrade the infrastructure, but upgrades are not being made (eg. cannot afford to, do not plan on staying here,do not want to make upgrades)","No","None (0%)","No","Only a minority meet their needs (25-49%) ","A majority (50-74%)","No",{"$nulls":4},"All or nearly all had enough water (91-100%) ","All or nearly all were able to access  (91-100%) ","No","Yes","Yes",{"$nulls":4},"Employment/livelihood ","Shelter/Housing","NFI",null,"Stay in the current location","Most would still not return ","Undecided/ Unknown"]
[240100601,"2022-06-13","Diyala","Al-Khalis","Hibhib","Urban","Big Area/Sector","23966-Al Hadid","23966-الحديد","Field visit","Yes","Arbaeen Street","شارع اربعين","Site",null,"Yes",10,60,"No",0,0,"No",0,0,"No",0,0,{"$nulls":5},"Yes",null,null,10]
[240300802,"2022-06-20","Diyala","Ba'quba","Ba'quba Center","Urban","Neighborhood","11189-Al Mafraq","11189-المفرق","Field visit","No","Al Mafraq hajj nasser","المفرق قرب  طريق حجي ناصر","Site",null,"Yes",11,66,"No",0,0,"No",0,0,"No",0,0,{"$nulls":5},"Yes",null,null,11]
[240300801,"2022-06-20","Diyala","Ba'quba","Ba'quba Center","Urban","Neighborhood","11189-Al Mafraq","11189-المفرق","Field visit","No","AL Mafraq   near the intersection","المفرق قرب الفلكة","Site",null,"Yes",13,78,"No",0,0,"No",0,0,"No",0,0,{"$nulls":5},"Yes",null,null,13]
[240304001,"2022-06-23","Diyala","Ba'quba","Ba'quba Center","Urban","Neighborhood","21413-Al-Mualimeen-Shahid wadah Qtr","21413-حي المعلمين-الشهيد وضاح","Field visit","Yes","Shahid Waddah Mosque","الشهيد وضاح  (جامع الشهيد وضاح)","Site",null,"Yes",8,48,"No",0,0,"No",0,0,"No",0,0,{"$nulls":5},"Yes",null,null,8]
[1202159,"2022-04-18","Erbil","Erbil","AinKawa","Urban","Site","34268-Um Al-nur site","34268-مبنى مؤقت ام النور ","Field visit","Yes","Um Al-nur site","مبنى مؤقت ام النور ","Site",null,"Yes",14,84,"No",0,0,"No",0,0,"No",0,0,"Yes",{"$nulls":7},14]
[1202147,"2022-06-22","Erbil","Erbil","Banslawa - Kasnazan","Urban","Site","33152-Dashti bahasht","33152-دشتي بهشت","Field visit","Yes","Dashti bahasht","دشتي بهشت","Site",null,"Yes",45,270,"No",0,0,"No",0,0,"No",0,0,{"$nulls":5},"Yes",null,null,45,0,0,0,0,0,270,0,0,0,0,0,0,270,0,0,0,0,0,0,0,0,0,270,0,0,0,0,0,0,0,0,0,0,0,0,0,0,0,0,0,"2017-10-01","No",null,"Privately owned ",null,"yes",null,null,"Yes they are allowed to upgrade the infrastructure, and upgrades are being made","No","Do not know ","No","A majority meet their needs (50-74%)","Most or all (75% -100%)","Yes",null,null,"yes",null,"Most families (76%-90%)","All or nearly all were able to access  (91-100%) ","No","Yes","Yes",null,"yes",null,"yes","NFI",{"$nulls":3},"Stay in the current location","Most would still not return ","Stay in the current location"]
[1202140,"2022-05-09","Erbil","Erbil","Markaz Erbil","Urban","Site","29558-Al Saxra Complex ","29558-مجمع الصخرة","Field visit","Yes","Al Saxra Complex ","مجمع الصخرة","Site",null,"Yes",28,168,"No",0,0,"No",0,0,"No",0,0,{"$nulls":6},"Yes",null,28,0,0,0,0,0,0,168,0,0,0,0,0,0,168,0,0,0,168,0,0,0,0,0,0,0,0,0,0,0,0,0,0,0,0,0,0,0,0,0,0,"2014-08-01","No",null,"Privately owned ","yes",{"$nulls":3},"No ","Yes, all,","Very few (1%-10%)","Yes","A majority meet their needs (50-74%)","A majority (50-74%)","Yes",null,"yes",null,null,"Most families (76%-90%)","All or nearly all were able to access  (91-100%) ","Yes","Yes","Yes",{"$nulls":3},"yes","NFI",{"$nulls":3},"Stay in the current location","Most would still not return ","Stay in the current location"]
[1202051,"2022-05-09","Erbil","Erbil","Markaz Erbil","Urban","Site","24507-Nisthtiman Comercial Complex","24507-مجمع نشتيمان التجاري","Field visit","Yes","Nisthtiman Comercial Complex","مجمع نشتيمان التجاري","Site",null,"Yes",8,48,"No",0,0,"No",0,0,"No",0,0,{"$nulls":6},"Yes",null,8]
[1202157,"2022-05-15","Erbil","Erbil","Markaz Erbil","Urban","Site","34231-Unfinished site-Divan hotel","34231-مبنى غير مكتمل-فدق ديفان","Field visit","Yes","Unfinished site-Divan hotel","مبنى غير مكتمل-فدق ديفان","Site",null,"Yes",18,108,"No",0,0,"No",0,0,"No",0,0,{"$nulls":5},"Yes",null,null,18,0,0,0,0,0,108,0,0,0,0,0,0,0,108,0,0,0,108,0,0,0,0,0,0,0,0,0,0,0,0,0,0,0,0,0,0,0,0,0,0,"2014-08-01","No",null,"Privately owned ",null,"yes",null,null,"No ","No","Very few (1%-10%)","Yes","Only a minority meet their needs (25-49%) ","Only a minority (25-49%) ","No",{"$nulls":4},"All or nearly all had enough water (91-100%) ","All or nearly all were able to access  (91-100%) ","No","Yes","Yes",{"$nulls":3},"yes","Employment/livelihood ","Food","NFI",null,"Stay in the current location","Some would return","Stay in the current location"]
[1207017,"2022-05-15","Erbil","Soran","Markaz Soran","Rural","Site","31780-Delzyan","31780-دلزيان","Field visit","Yes","Delzyan","دلزيان","Site",null,"Yes",12,72,"No",0,0,"No",0,0,"No",0,0,"Yes",{"$nulls":7},12]
[2502054,"2022-05-10","Kerbala","Al-Hindiya","Al-Jadwal Al-Ghrabi","Urban","Site","32057-Abu Tharr complex","32057-مجمع ابا ذر","Field visit","Yes","Abu Tharr complex","مجمع ابا ذر","Site",null,"Yes",25,150,"No",0,0,"No",0,0,"No",0,0,null,null,"Yes",{"$nulls":5},25,0,0,150,0,0,0,0,0,0,0,0,0,0,150,0,0,150,0,0,0,0,0,0,0,0,0,0,0,0,0,0,0,0,0,0,0,0,0,0,0,"2017-07-01","No",null,"Religious authorities",null,null,"yes",null,"No ","No","Some (26%-40%) ","No","Very few meet their needs (1-24%)","None (0%)","No",{"$nulls":4},"All or nearly all had enough water (91-100%) ","All or nearly all were able to access  (91-100%) ","No","Yes","Yes",null,null,"yes","yes","Shelter/Housing","Employment/livelihood ","Health",null,"Stay in the current location","Most would still not return ","Stay in the current location"]
[250202401,"2022-05-10","Kerbala","Al-Hindiya","Al-Jadwal Al-Ghrabi","Urban","Neighborhood","13985-Mantakat Al hnedea","13985-منطقة الهندية","Field visit","No","Najaf street near grain mills","شارع النجف قرب مطحنة الحبوب","Cluster",2,"Yes",6,36,"No",0,0,"No",0,0,"No",0,0,{"$nulls":4},"Yes",{"$nulls":3},6]
[260201101,"2022-06-20","Kirkuk","Daquq","Laylan","Rural","Village","25739-Laylan-Bash Bulaq village","25739-قرية باش بولاق","Field visit","Yes","Shrinja Bulaq school","مدرسة شركة بولاق","Site",null,"Yes",50,300,"No",0,0,"No",0,0,"No",0,0,null,"Yes",{"$nulls":6},50,0,300,0,0,0,0,0,0,0,0,0,0,300,0,0,0,0,0,300,0,0,0,0,0,0,0,0,0,0,0,0,0,0,0,0,0,0,0,0,0,"2014-10-01","No",null,"Public-state/government/local authorities",null,"yes",null,null,"Yes they are allowed to upgrade the infrastructure, and upgrades are being made","No","None (0%)","No","Only a minority meet their needs (25-49%) ","A majority (50-74%)","No",{"$nulls":4},"Few families had enough water (1%-40%)","Around half (41%-60%)","Yes","Yes","No",{"$nulls":4},"Drinking water","Employment/livelihood ","Food",null,"Stay in the current location","Some would return","Stay in the current location"]
[260201301,"2022-06-20","Kirkuk","Daquq","Taza Khurmatu","Rural","Village","14960-Taza-Omer Bin Khattab","14960-قرية عمر بن الخطاب","Field visit","No","site 1","سايت 1","Cluster",3,"Yes",40,240,"No",0,0,"No",0,0,"No",0,0,null,"Yes",{"$nulls":6},40,0,240,0,0,0,0,0,0,0,0,0,0,90,90,60,0,0,90,150,0,0,0,0,0,0,0,0,0,0,0,0,0,0,0,0,0,0,0,0,0,"2014-08-01","No",null,"Public-state/government/local authorities",null,"yes",null,null,"Yes they are allowed to upgrade the infrastructure, and upgrades are being made","No","Very few (1%-10%)","No","Only a minority meet their needs (25-49%) ","Very few (1-24%)","No",{"$nulls":4},"More than half (61%-75%) ","Most families (76%-90%)","Yes","Yes","No",{"$nulls":4},"Drinking water","Employment/livelihood ",null,null,"Stay in the current location","Some would return","Stay in the current location"]
[260201302,"2022-06-20","Kirkuk","Daquq","Taza Khurmatu","Rural","Village","14960-Taza-Omer Bin Khattab","14960-قرية عمر بن الخطاب","Field visit","No","site 2","سايت  2","Cluster",2,"Yes",30,180,"No",0,0,"No",0,0,"No",0,0,null,"Yes",{"$nulls":6},30,0,180,0,0,0,0,0,0,0,0,0,0,0,90,90,0,0,30,150,0,0,0,0,0,0,0,0,0,0,0,0,0,0,0,0,0,0,0,0,0,"2014-10-01","No",null,"Public-state/government/local authorities",null,"yes",null,null,"Yes they are allowed to upgrade the infrastructure, and upgrades are being made","No","A few (11%-25%) ","No","Only a minority meet their needs (25-49%) ","Very few (1-24%)","No",{"$nulls":4},"More than half (61%-75%) ","More than half (61%-75%) ","Yes","Yes","No",{"$nulls":4},"Drinking water","Food","Employment/livelihood ",null,"Stay in the current location","Some would return","Stay in the current location"]
[260300501,"2022-06-16","Kirkuk","Kirkuk","Markaz Kirkuk","Urban","Big Area/Sector","14984-Al Taakhi","14984-حي التأخي","Field visit","Yes","Surur school","مدرسة السرور","Site",null,"Yes",6,36,"No",0,0,"No",0,0,"No",0,0,{"$nulls":3},"Yes",{"$nulls":4},6]
[260300601,"2022-05-26","Kirkuk","Kirkuk","Markaz Kirkuk","Urban","Big Area/Sector","24084-Al Tadamon(Hawkari)","24084-حي التضامن-هاوكاري-","Field visit","Yes","site1 near school","سايت 1 قرب مدرسة الابتدائية","Site",null,"Yes",10,60,"No",0,0,"Yes",null,null,"No",0,0,null,"Yes",{"$nulls":6},10]
[260300701,"2022-05-29","Kirkuk","Kirkuk","Markaz Kirkuk","Rural","Village","24453-Al Takhi Village","24453-قرية تأخي","Field visit","No","Sabah jenerator","مولدة صباح","Site",null,"Yes",6,36,"No",0,0,"No",0,0,"No",0,0,null,"Yes",{"$nulls":6},6]
[260300901,"2022-06-08","Kirkuk","Kirkuk","Markaz Kirkuk","Urban","Big Area/Sector","15433-Amal al shaabi","15433-حي العمل الشعبي","Field visit","Yes","Near Mukhtar house taha","قرب بيت المختار طه","Site",null,"Yes",6,36,"No",0,0,"No",0,0,"No",0,0,null,"Yes",{"$nulls":6},6]
[260300902,"2022-06-08","Kirkuk","Kirkuk","Markaz Kirkuk","Urban","Big Area/Sector","15433-Amal al shaabi","15433-حي العمل الشعبي","Field visit","No","Site 2","سايت 2","Site",null,"Yes",14,84,"No",0,0,"No",0,0,"No",0,0,null,"Yes",{"$nulls":6},14]
[260301301,"2022-06-16","Kirkuk","Kirkuk","Markaz Kirkuk","Urban","Neighborhood","15603-Hay 1 Athar","15603-حي 1 اذار","Field visit","Yes","Entrance of hay 1 athar","مدخل ١ اذار","Site",null,"Yes",20,120,"No",0,0,"No",0,0,"No",0,0,null,"Yes",{"$nulls":6},20,0,120,0,0,0,0,0,0,0,0,0,0,120,0,0,0,0,0,0,120,0,0,0,0,0,0,0,0,0,0,0,0,0,0,0,0,0,0,0,0,"2016-01-01","No",null,"Public-state/government/local authorities",null,null,"yes",null,"No they are not allowed to upgrade the infrastructure, but upgrades are being made anyway","No","A few (11%-25%) ","Yes","Only a minority meet their needs (25-49%) ","Very few (1-24%)","No",{"$nulls":4},"Around half (41%-60%) ","All or nearly all were able to access  (91-100%) ","Yes","Yes","No",{"$nulls":4},"Drinking water","Shelter/Housing","NFI",null,"Undecided/ Unknown","Most would still not return ","Stay within this area, but not in an informal site (locally integrate)"]
[260301603,"2022-06-07","Kirkuk","Kirkuk","Markaz Kirkuk","Urban","Big Area/Sector","22296-Hay Al Jamia-Mahalla 622","22296-حي الجامعة-622","Field visit","Yes","Near Salam school","قرب مدرسة السلام","Site",null,"Yes",90,540,"No",0,0,"No",0,0,"No",0,0,null,"Yes",{"$nulls":6},90,0,540,0,0,0,0,0,0,0,0,0,0,240,0,300,0,360,0,0,30,120,30,0,0,0,0,0,0,0,0,0,0,0,0,0,0,0,0,0,0,"2014-06-01","No",null,"Public-state/government/local authorities",null,null,"yes",null,"No they are not allowed to upgrade the infrastructure, but upgrades are being made anyway","Yes, some","Very few (1%-10%)","Yes","Only a minority meet their needs (25-49%) ","Very few (1-24%)","No",{"$nulls":4},"Most families (76%-90%)","Most families (76%-90%)","No","Yes","No",{"$nulls":4},"Shelter/Housing","Other",null,"Cash","Stay in the current location","Most would still not return ","Stay in the current location"]
[260301601,"2022-06-07","Kirkuk","Kirkuk","Markaz Kirkuk","Urban","Big Area/Sector","22296-Hay Al Jamia-Mahalla 622","22296-حي الجامعة-622","Field visit","Yes","Near bus station","قرب  موقف الباصات","Site",null,"Yes",145,870,"No",0,0,"No",0,0,"No",0,0,null,"Yes",{"$nulls":6},145,0,870,0,0,0,0,0,0,0,0,0,0,600,0,270,0,30,60,210,330,180,60,0,0,0,0,0,0,0,0,0,0,0,0,0,0,0,0,0,0,"2015-04-01","Yes","No","Public-state/government/local authorities",null,null,"yes",null,"No they are not allowed to upgrade the infrastructure, but upgrades are being made anyway","Yes, some","Very few (1%-10%)","Yes","A majority meet their needs (50-74%)","A majority (50-74%)","No",{"$nulls":4},"Most families (76%-90%)","Most families (76%-90%)","No","No","No",{"$nulls":4},"Shelter/Housing","NFI","Food",null,"Stay in the current location","Some would return","Stay in the current location"]
[260301602,"2022-06-07","Kirkuk","Kirkuk","Markaz Kirkuk","Urban","Big Area/Sector","22296-Hay Al Jamia-Mahalla 622","22296-حي الجامعة-622","Field visit","Yes","Near nadir generator","قرب مولدة ناصر","Site",null,"Yes",80,480,"No",0,0,"No",0,0,"No",0,0,null,"Yes",{"$nulls":6},80,0,480,0,0,0,0,0,0,0,30,0,0,330,0,120,0,0,90,150,120,60,60,0,0,0,0,0,0,0,0,0,0,0,0,0,0,0,0,0,0,"2014-09-01","No",null,"Public-state/government/local authorities",null,null,"yes",null,"No they are not allowed to upgrade the infrastructure, but upgrades are being made anyway","Yes, some","Very few (1%-10%)","No","A majority meet their needs (50-74%)","Very few (1-24%)","No",{"$nulls":4},"All or nearly all had enough water (91-100%) ","All or nearly all were able to access  (91-100%) ","No","Yes","No",{"$nulls":4},"Shelter/Housing","Food","NFI",null,"Stay in the current location","Some would return","Stay in the current location"]
[260301604,"2022-06-07","Kirkuk","Kirkuk","Markaz Kirkuk","Urban","Big Area/Sector","22296-Hay Al Jamia-Mahalla 622","22296-حي الجامعة-622","Field visit","Yes","Near to nasir generator 2","قرب مولدة ناصر","Site",null,"Yes",105,630,"No",0,0,"No",0,0,"No",0,0,null,"Yes",{"$nulls":6},105,0,630,0,0,0,0,0,0,0,0,0,90,450,0,90,0,180,30,300,60,30,0,30,0,0,0,0,0,0,0,0,0,0,0,0,0,0,0,0,0,"2014-09-01","No",null,"Public-state/government/local authorities",null,null,"yes",null,"No they are not allowed to upgrade the infrastructure, but upgrades are being made anyway","Yes, some","Very few (1%-10%)","Yes","A majority meet their needs (50-74%)","A majority (50-74%)","No",{"$nulls":4},"Most families (76%-90%)","Most families (76%-90%)","No","Yes","No",{"$nulls":4},"Shelter/Housing","Food","Other","Cash","Stay in the current location","Some would return","Stay in the current location"]
[260301605,"2022-06-07","Kirkuk","Kirkuk","Markaz Kirkuk","Urban","Big Area/Sector","22296-Hay Al Jamia-Mahalla 622","22296-حي الجامعة-622","Field visit","No","Muhsin abodulah","محسن عبدالله","Site",null,"Yes",75,450,"No",0,0,"No",0,0,"No",0,0,null,"Yes",{"$nulls":6},75,0,450,0,0,0,0,0,0,0,0,0,0,450,0,0,0,180,0,90,90,30,60,0,0,0,0,0,0,0,0,0,0,0,0,0,0,0,0,0,0,"2014-07-01","No",null,"Public-state/government/local authorities",null,null,"yes",null,"No they are not allowed to upgrade the infrastructure, but upgrades are being made anyway","Yes, some","Very few (1%-10%)","Yes","A majority meet their needs (50-74%)","A majority (50-74%)","No",{"$nulls":4},"Most families (76%-90%)","Most families (76%-90%)","No","Yes","No",{"$nulls":4},"Shelter/Housing","NFI","Food",null,"Stay in the current location","Some would return","Stay in the current location"]
[260301607,"2022-06-07","Kirkuk","Kirkuk","Markaz Kirkuk","Urban","Big Area/Sector","22296-Hay Al Jamia-Mahalla 622","22296-حي الجامعة-622","Field visit","Yes","Near cement factory","قرب معمل السمنت","Site",null,"Yes",55,330,"No",0,0,"No",0,0,"No",0,0,null,"Yes",{"$nulls":6},55,0,330,0,0,0,0,0,0,0,0,0,0,240,0,90,0,120,0,30,30,30,90,30,0,0,0,0,0,0,0,0,0,0,0,0,0,0,0,0,0,"2014-07-01","No",null,"Public-state/government/local authorities",null,null,"yes",null,"No they are not allowed to upgrade the infrastructure, but upgrades are being made anyway","Yes, some","Very few (1%-10%)","Yes","A majority meet their needs (50-74%)","A majority (50-74%)","No",{"$nulls":4},"Most families (76%-90%)","Most families (76%-90%)","No","Yes","No",{"$nulls":4},"Shelter/Housing","Other",null,"Cash","Stay in the current location","Most would still not return ","Stay in the current location"]
[260301608,"2022-06-07","Kirkuk","Kirkuk","Markaz Kirkuk","Urban","Big Area/Sector","22296-Hay Al Jamia-Mahalla 622","22296-حي الجامعة-622","Field visit","No","Near cement factory","قرب معمل السمنت","Site",null,"Yes",65,390,"No",0,0,"No",0,0,"No",0,0,null,"Yes",{"$nulls":6},65,0,390,0,0,0,0,0,0,0,0,0,0,360,0,30,0,60,0,30,60,60,120,60,0,0,0,0,0,0,0,0,0,0,0,0,0,0,0,0,0,"2016-10-01","No",null,"Public-state/government/local authorities",null,null,"yes",null,"No they are not allowed to upgrade the infrastructure, but upgrades are being made anyway","Yes, some","None (0%)","Yes","A majority meet their needs (50-74%)","A majority (50-74%)","No",{"$nulls":4},"Most families (76%-90%)","Most families (76%-90%)","No","Yes","No",{"$nulls":4},"Shelter/Housing","Food","NFI",null,"Stay in the current location","Some would return","Stay in the current location"]
[260301609,"2022-06-07","Kirkuk","Kirkuk","Markaz Kirkuk","Urban","Big Area/Sector","22296-Hay Al Jamia-Mahalla 622","22296-حي الجامعة-622","Field visit","No","Near ghad school","قرب مدرسة الغد","Site",null,"Yes",55,330,"No",0,0,"No",0,0,"No",0,0,null,"Yes",{"$nulls":6},55,0,330,0,0,0,0,0,0,0,0,0,0,270,0,60,0,60,0,120,60,90,0,0,0,0,0,0,0,0,0,0,0,0,0,0,0,0,0,0,0,"2014-09-01","No",null,"Public-state/government/local authorities",null,null,"yes",null,"No they are not allowed to upgrade the infrastructure, but upgrades are being made anyway","Yes, some","Very few (1%-10%)","Yes","A majority meet their needs (50-74%)","A majority (50-74%)","No",{"$nulls":4},"Most families (76%-90%)","Most families (76%-90%)","No","Yes","No",{"$nulls":4},"Shelter/Housing","Rehabilitation/construction of infrastructure and services(roads, sewage system, electricity, garbage, etc)","Food",null,"Stay in the current location","Some would return","Stay in the current location"]
[260301610,"2022-06-07","Kirkuk","Kirkuk","Markaz Kirkuk","Urban","Big Area/Sector","22296-Hay Al Jamia-Mahalla 622","22296-حي الجامعة-622","Field visit","No","Near ghad school","قرب مدرسة الغد","Site",null,"Yes",120,720,"No",0,0,"No",0,0,"No",0,0,null,"Yes",{"$nulls":6},120,0,720,0,0,0,0,0,0,0,0,0,120,600,0,0,150,180,60,150,90,60,30,0,0,0,0,0,0,0,0,0,0,0,0,0,0,0,0,0,0,"2014-07-01","Yes","Yes, some","Public-state/government/local authorities",null,null,"yes",null,"No they are not allowed to upgrade the infrastructure, but upgrades are being made anyway","Yes, some","Very few (1%-10%)","Yes","A majority meet their needs (50-74%)","A majority (50-74%)","No",{"$nulls":4},"Most families (76%-90%)","Most families (76%-90%)","No","Yes","No",{"$nulls":4},"Shelter/Housing","Employment/livelihood ","Food",null,"Stay in the current location","Some would return","Stay in the current location"]
[260302001,"2022-06-16","Kirkuk","Kirkuk","Markaz Kirkuk","Urban","Neighborhood","24780-Hay Al Sekak","24780-حي السكك","Field visit","Yes","Alghufran mousqe","جامع الغفران","Cluster",2,"Yes",40,240,"No",0,0,"No",0,0,"No",0,0,null,"Yes",{"$nulls":6},40,0,240,0,0,0,0,0,0,0,30,0,0,120,0,90,0,30,60,60,90,0,0,0,0,0,0,0,0,0,0,0,0,0,0,0,0,0,0,0,0,"2014-06-01","No",null,"Public-state/government/local authorities",null,null,"yes",null,"No they are not allowed to upgrade the infrastructure, but upgrades are being made anyway","No","Very few (1%-10%)","Yes","Very few meet their needs (1-24%)","Very few (1-24%)","No",{"$nulls":4},"More than half (61%-75%) ","All or nearly all were able to access  (91-100%) ","Yes","Yes","No",{"$nulls":4},"Food","NFI","Shelter/Housing",null,"Stay in the current location","Most would still not return ","Stay within this area, but not in an informal site (locally integrate)"]
[260306802,"2022-04-25","Kirkuk","Kirkuk","Markaz Kirkuk","Urban","Neighborhood","31728-Hay Al-Askary 1","31728-حي العسكري 1","Field visit","No","site 1","سايت 1","Site",null,"Yes",220,{"v":1320,"d":"1,320"},"No",0,0,"No",0,0,"No",0,0,null,"Yes",{"$nulls":6},220,0,{"v":1320,"d":"1,320"},0,0,0,0,0,0,0,0,0,96,720,6,498,30,120,90,270,150,180,330,150,0,0,0,0,0,0,0,0,0,0,0,0,0,0,0,0,0,"2016-10-01","Yes","No","Public-state/government/local authorities",null,null,"yes",null,"No they are not allowed to upgrade the infrastructure, but upgrades are being made anyway","Yes, some","A few (11%-25%) ","Yes","Only a minority meet their needs (25-49%) ","Only a minority (25-49%) ","Yes","yes",{"$nulls":3},"All or nearly all had enough water (91-100%) ","All or nearly all were able to access  (91-100%) ","No","Yes","Yes",{"$nulls":4},"Shelter/Housing","Food","Employment/livelihood ",null,"Stay in the current location","Some would return","Return to their place of origin"]
[260302301,"2022-05-29","Kirkuk","Kirkuk","Markaz Kirkuk","Urban","Neighborhood","15650-Hay Al-Nasir 2","15650-حي النصر 2","Field visit","Yes","site 1","سايت 1","Site",null,"Yes",12,72,"No",0,0,"No",0,0,"No",0,0,null,"Yes",{"$nulls":6},12]
[260302302,"2022-05-29","Kirkuk","Kirkuk","Markaz Kirkuk","Urban","Neighborhood","15650-Hay Al-Nasir 2","15650-حي النصر 2","Field visit","Yes","site 2","سايت 2","Site",null,"Yes",40,240,"No",0,0,"No",0,0,"No",0,0,null,"Yes",{"$nulls":6},40,0,240,0,0,0,0,0,0,0,0,0,0,150,0,90,0,0,60,120,60,0,0,0,0,0,0,0,0,0,0,0,0,0,0,0,0,0,0,0,0,"2014-10-01","No",null,"Public-state/government/local authorities",null,null,"yes",null,"No they are not allowed to upgrade the infrastructure, but upgrades are being made anyway","Yes, some","Very few (1%-10%)","No","Very few meet their needs (1-24%)","Only a minority (25-49%) ","No",{"$nulls":4},"All or nearly all had enough water (91-100%) ","All or nearly all were able to access  (91-100%) ","Yes","Yes","No",{"$nulls":4},"Drinking water","Employment/livelihood ","Shelter/Housing",null,"Stay in the current location","Some would return","Stay within this area, but not in an informal site (locally integrate)"]
[260302401,"2022-05-26","Kirkuk","Kirkuk","Markaz Kirkuk","Urban","Neighborhood","15639-Hay Al-Nedaa","15639-حي النداء","Field visit","No","Ahmed khalaf","احمد خلف","Site",null,"Yes",40,240,"No",0,0,"Yes",null,null,"No",0,0,null,"Yes",{"$nulls":6},40,0,240,0,0,0,0,0,0,0,0,0,0,240,0,0,0,0,0,0,150,90,0,0,0,0,0,0,0,0,0,0,0,0,0,0,0,0,0,0,0,"2015-11-01","No",null,"Public-state/government/local authorities",null,null,"yes",null,"Yes we are allowed to upgrade the infrastructure, but upgrades are not being made (eg. cannot afford to, do not plan on staying here,do not want to make upgrades)","Yes, some","None (0%)","No","Only a minority meet their needs (25-49%) ","None (0%)","No",{"$nulls":4},"Most families (76%-90%)","All or nearly all were able to access  (91-100%) ","No","Yes","Yes",{"$nulls":4},"Employment/livelihood ","Food","NFI",null,"Stay in the current location","Most or all would return","Return to their place of origin"]
[260302403,"2022-05-26","Kirkuk","Kirkuk","Markaz Kirkuk","Urban","Neighborhood","15639-Hay Al-Nedaa","15639-حي النداء","Field visit","No","Site 1","سايت ١","Site",null,"Yes",50,300,"No",0,0,"Yes",null,null,"No",0,0,null,"Yes",{"$nulls":6},50,0,300,0,0,0,0,0,0,0,0,0,0,300,0,0,0,0,0,0,210,90,0,0,0,0,0,0,0,0,0,0,0,0,0,0,0,0,0,0,0,"2016-07-01","No",null,"Public-state/government/local authorities",null,null,"yes",null,"Yes we are allowed to upgrade the infrastructure, but upgrades are not being made (eg. cannot afford to, do not plan on staying here,do not want to make upgrades)","Yes, some","None (0%)","No","Only a minority meet their needs (25-49%) ","None (0%)","No",{"$nulls":4},"All or nearly all had enough water (91-100%) ","All or nearly all were able to access  (91-100%) ","No","Yes","Yes",{"$nulls":4},"NFI","Employment/livelihood ","Food",null,"Stay in the current location","Most or all would return","Return to their place of origin"]
[260302501,"2022-05-25","Kirkuk","Kirkuk","Markaz Kirkuk","Rural","Village","15658-Hay Al-Sinay","15658-حي الصناعي","Field visit","No","site 1","سايت واحد","Site",null,"Yes",40,240,"No",0,0,"Yes",null,null,"No",0,0,null,"Yes",{"$nulls":6},{"$f":"Q259+T259","v":40},0,240,0,0,0,0,0,0,0,0,0,0,240,0,0,0,0,0,0,0,60,60,120,0,0,0,0,0,0,0,0,0,0,0,0,0,0,0,0,0,"2017-07-01","No",null,"Public-state/government/local authorities",null,"yes",null,null,"Yes we are allowed to upgrade the infrastructure, but upgrades are not being made (eg. cannot afford to, do not plan on staying here,do not want to make upgrades)","Yes, some","None (0%)","No","Only a minority meet their needs (25-49%) ","None (0%)","No",{"$nulls":4},"Around half (41%-60%) ","All or nearly all were able to access  (91-100%) ","No","Yes","Yes",{"$nulls":4},"Drinking water","Employment/livelihood ","Food",null,"Stay in the current location","Most or all would return","Return to their place of origin"]
[260302502,"2022-05-25","Kirkuk","Kirkuk","Markaz Kirkuk","Rural","Village","15658-Hay Al-Sinay","15658-حي الصناعي","Field visit","No","site 2","سايت 2","Site",null,"Yes",30,180,"No",0,0,"Yes",null,null,"No",0,0,null,"Yes",{"$nulls":6},30,0,180,0,0,0,0,0,0,0,0,0,0,150,0,30,0,0,0,0,60,30,30,60,0,0,0,0,0,0,0,0,0,0,0,0,0,0,0,0,0,"2017-08-01","No",null,"Public-state/government/local authorities",null,"yes",null,null,"Yes we are allowed to upgrade the infrastructure, but upgrades are not being made (eg. cannot afford to, do not plan on staying here,do not want to make upgrades)","Yes, some","None (0%)","No","Only a minority meet their needs (25-49%) ","None (0%)","No",{"$nulls":4},"Most families (76%-90%)","All or nearly all were able to access  (91-100%) ","No","Yes","Yes",{"$nulls":4},"Employment/livelihood ","Food","NFI",null,"Stay in the current location","Most or all would return","Return to their place of origin"]
[260302601,"2022-06-05","Kirkuk","Kirkuk","Markaz Kirkuk","Urban","Big Area/Sector","15550-Hay Al-Urooba","15550-حي العروبة","Field visit","Yes","Site 1","سايت ١","Site",null,"Yes",45,270,"No",0,0,"No",0,0,"No",0,0,null,"Yes",{"$nulls":6},45,0,270,0,0,0,0,0,0,0,0,0,120,108,24,18,0,48,0,0,90,30,42,60,0,0,0,0,0,0,0,0,0,0,0,0,0,0,0,0,0,"2015-05-01","No",null,"Public-state/government/local authorities",null,null,"yes",null,"No they are not allowed to upgrade the infrastructure, but upgrades are being made anyway","Yes, some","Very few (1%-10%)","No","Very few meet their needs (1-24%)","Only a minority (25-49%) ","No",{"$nulls":4},"Most families (76%-90%)","All or nearly all were able to access  (91-100%) ","Yes","Yes","No",{"$nulls":4},"Drinking water","Employment/livelihood ","Shelter/Housing",null,"Stay in the current location","Some would return","Stay within this area, but not in an informal site (locally integrate)"]
[260302602,"2022-06-05","Kirkuk","Kirkuk","Markaz Kirkuk","Urban","Big Area/Sector","15550-Hay Al-Urooba","15550-حي العروبة","Field visit","Yes","Site 2","سايت ٢","Site",null,"Yes",40,240,"No",0,0,"No",0,0,"No",0,0,null,"Yes",{"$nulls":6},40,0,240,0,0,0,0,0,0,0,0,0,60,150,30,0,0,60,0,60,90,0,0,30,0,0,0,0,0,0,0,0,0,0,0,0,0,0,0,0,0,"2015-07-01","No",null,"Public-state/government/local authorities",null,null,"yes",null,"No they are not allowed to upgrade the infrastructure, but upgrades are being made anyway","Yes, some","Very few (1%-10%)","No","Very few meet their needs (1-24%)","Very few (1-24%)","No",{"$nulls":4},"Most families (76%-90%)","All or nearly all were able to access  (91-100%) ","Yes","No","No",{"$nulls":4},"Drinking water","Shelter/Housing","Employment/livelihood ",null,"Stay in the current location","Some would return","Stay within this area, but not in an informal site (locally integrate)"]
[260302603,"2022-06-05","Kirkuk","Kirkuk","Markaz Kirkuk","Urban","Big Area/Sector","15550-Hay Al-Urooba","15550-حي العروبة","Field visit","Yes","Site 3","سايت ٣","Cluster",2,"Yes",40,240,"No",0,0,"No",0,0,"No",0,0,null,"Yes",{"$nulls":6},40,0,240,0,0,0,0,0,0,0,0,0,0,210,30,0,0,30,0,60,120,0,30,0,0,0,0,0,0,0,0,0,0,0,0,0,0,0,0,0,0,"2015-09-01","No",null,"Public-state/government/local authorities",null,null,"yes",null,"No they are not allowed to upgrade the infrastructure, but upgrades are being made anyway","Yes, some","Very few (1%-10%)","No","Very few meet their needs (1-24%)","Only a minority (25-49%) ","No",{"$nulls":4},"Most families (76%-90%)","All or nearly all were able to access  (91-100%) ","Yes","Yes","No",{"$nulls":4},"Drinking water","Employment/livelihood ","Shelter/Housing",null,"Stay in the current location","Some would return","Stay in the current location"]
[260302604,"2022-06-23","Kirkuk","Kirkuk","Markaz Kirkuk","Urban","Big Area/Sector","15550-Hay Al-Urooba","15550-حي العروبة","Field visit","Yes","Public Building ( Kinder Garten )","مبني عام ( رياض اطفال )","Site",null,"Yes",8,48,"No",0,0,"No",0,0,"No",0,0,{"$nulls":3},"Yes",{"$nulls":4},8]
[260302701,"2022-05-26","Kirkuk","Kirkuk","Markaz Kirkuk","Urban","Neighborhood","23899-Hay Al-Zawraa","23899-حي الزوراء","Field visit","Yes","Near shams petrol station","قرب بنزين خانة الشمس","Site",null,"Yes",10,60,"No",0,0,"Yes",null,null,"No",0,0,null,"Yes",{"$nulls":6},10]
[260302702,"2022-05-26","Kirkuk","Kirkuk","Markaz Kirkuk","Urban","Neighborhood","23899-Hay Al-Zawraa","23899-حي الزوراء","Field visit","Yes","Beside petroleum product company kirkuk","قرب شركة المنتوجات النفطية فرع كركوك","Site",null,"Yes",65,390,"No",0,0,"Yes",null,null,"No",0,0,null,"Yes",{"$nulls":6},65,0,390,0,0,0,0,0,0,0,0,0,0,360,0,30,0,0,0,0,150,120,120,0,0,0,0,0,0,0,0,0,0,0,0,0,0,0,0,0,0,"2018-05-01","No",null,"Public-state/government/local authorities",null,null,"yes",null,"Yes we are allowed to upgrade the infrastructure, but upgrades are not being made (eg. cannot afford to, do not plan on staying here,do not want to make upgrades)","Yes, some","None (0%)","No","A majority meet their needs (50-74%)","None (0%)","No",{"$nulls":4},"Most families (76%-90%)","All or nearly all were able to access  (91-100%) ","No","Yes","Yes",{"$nulls":4},"Employment/livelihood ","Food","NFI",null,"Stay in the current location","Most or all would return","Return to their place of origin"]
[260304502,"2022-06-29","Kirkuk","Kirkuk","Markaz Kirkuk","Urban","Neighborhood","23634-Runaki","23634-حي روناكي","Field visit","Yes","Site 2","سايت 2","Site",null,"Yes",25,150,"No",0,0,"No",0,0,"No",0,0,null,"Yes",{"$nulls":6},25,0,150,0,0,0,0,0,0,0,0,0,0,150,0,0,0,60,30,30,30,0,0,0,0,0,0,0,0,0,0,0,0,0,0,0,0,0,0,0,0,"2014-07-01","No",null,"Public-state/government/local authorities",null,null,"yes",null,"No they are not allowed to upgrade the infrastructure, but upgrades are being made anyway","No","None (0%)","No","Very few meet their needs (1-24%)","Only a minority (25-49%) ","No",{"$nulls":4},"More than half (61%-75%) ","All or nearly all were able to access  (91-100%) ","Yes","Yes","No",{"$nulls":4},"Drinking water","Employment/livelihood ","Shelter/Housing",null,"Stay in the current location","Some would return","Stay in the current location"]
[260304501,"2022-05-30","Kirkuk","Kirkuk","Markaz Kirkuk","Urban","Neighborhood","23634-Runaki","23634-حي روناكي","Field visit","Yes","Public Building ( Youth center )","مبنى حكومي ( مركز شباب  )","Site",null,"Yes",5,30,"No",0,0,"No",0,0,"No",0,0,{"$nulls":6},"Yes",null,5]
[260304701,"2022-05-25","Kirkuk","Kirkuk","Markaz Kirkuk","Rural","Village","24422-Sayada village","24422-قرية صيادة","Field visit","Yes","Entrance of Alsayyada","مدخل الصيادة","Site",null,"Yes",45,270,"No",0,0,"Yes",null,null,"No",0,0,null,"Yes",{"$nulls":6},45,0,270,0,0,0,0,0,0,0,0,0,0,150,0,120,0,0,30,30,30,60,54,66,0,0,0,0,0,0,0,0,0,0,0,0,0,0,0,0,0,"2014-08-01","No",null,"Public-state/government/local authorities",null,null,"yes",null,"Yes we are allowed to upgrade the infrastructure, but upgrades are not being made (eg. cannot afford to, do not plan on staying here,do not want to make upgrades)","Yes, some","None (0%)","No","A majority meet their needs (50-74%)","None (0%)","No",{"$nulls":4},"More than half (61%-75%) ","All or nearly all were able to access  (91-100%) ","No","Yes","Yes",{"$nulls":4},"Shelter/Housing","Employment/livelihood ","Food",null,"Stay in the current location","Most or all would return","Return to their place of origin"]
[3205001,"2022-05-05","Missan","Amara","Markaz Al-Amara","Urban","Site","24808-Eye of Missan","24808-عيون ميسان","Field visit","Yes","Eye of Missan","عيون ميسان","Site",null,"Yes",6,36,"No",0,0,"Yes",100,600,"No",0,0,null,null,"Yes",{"$nulls":5},6]
[320503501,"2022-05-18","Missan","Amara","Markaz Al-Amara","Rural","Village","16822-Hay Al-Dafas","16822-قرية الدفاس","Field visit","Yes","Bioot ghaza","بيوت غزه","Site",null,"Yes",5,30,"No",0,0,"Yes",750,{"v":4500,"d":"4,500"},"Yes",2,12,null,"Yes",{"$nulls":6},5]
[3403078,"2022-06-05","Najaf","Najaf","Markaz Al-Najaf","Urban","Site","29598-Al Salam Complex","29598-مجمع السلام","Field visit","Yes","Al Salam Complex","مجمع السلام","Site",null,"Yes",90,540,"No",0,0,"Yes",25,150,"No",0,0,{"$nulls":6},"Yes",null,90,0,0,0,0,0,0,540,0,0,0,0,0,0,540,0,0,540,0,0,0,0,0,0,0,0,0,0,0,0,0,0,0,0,0,0,0,0,0,0,0,"2016-01-01","No",null,"Religious authorities","yes",{"$nulls":3},"Yes we are allowed to upgrade the infrastructure, but upgrades are not being made (eg. cannot afford to, do not plan on staying here,do not want to make upgrades)","No","None (0%)","Yes","Very few meet their needs (1-24%)","None (0%)","Yes",null,"yes",null,null,"More than half (61%-75%) ","Most families (76%-90%)","No","Yes","Yes",{"$nulls":3},"yes","Employment/livelihood ","Shelter/Housing","NFI",null,"Stay in the current location","Most or all would return","Undecided/ Unknown"]
[270102801,"2022-06-16","Ninewa","Akre","Daratu","Rural","Village","8780-Zanganan","8780-زنكنان","Field visit","Yes","Zanganan mud house near graveyard of Zanganan","بيوت طنية قرب مقبرة زنكنان","Cluster",4,"Yes",6,36,"No",0,0,"No",0,0,"No",0,0,null,"Yes",{"$nulls":6},6]
[270204801,"2022-06-12","Ninewa","Al-Ba'aj","Markaz Al-Ba'aj","Urban","Neighborhood","34009- Al Intisar","34009-حي الانتصار","Field visit","Yes","Almoasker","المعسكر","Cluster",19,"Yes",30,180,"No",0,0,"No",0,0,"No",0,0,null,"Yes",{"$nulls":6},30,0,180,0,0,0,0,0,0,0,0,0,0,0,180,0,0,0,0,0,0,0,180,0,0,0,0,0,0,0,0,0,0,0,0,0,0,0,0,0,0,"2021-01-01","Yes","Yes, all,","Public-state/government/local authorities",null,null,"yes",null,"Yes we are allowed to upgrade the infrastructure, but upgrades are not being made (eg. cannot afford to, do not plan on staying here,do not want to make upgrades)","Yes, some","Very few (1%-10%)","No","Only a minority meet their needs (25-49%) ","Only a minority (25-49%) ","No",{"$nulls":4},"Around half (41%-60%) ","Most families (76%-90%)","Yes","Yes","No",{"$nulls":4},"Drinking water","Shelter/Housing","Employment/livelihood ",null,"Undecided/ Unknown","Some would return","Undecided/ Unknown"]
[270204802,"2022-06-12","Ninewa","Al-Ba'aj","Markaz Al-Ba'aj","Urban","Neighborhood","34009- Al Intisar","34009-حي الانتصار","Field visit","Yes","al intsar gharbe","الانتصار غربي","Cluster",3,"Yes",7,42,"No",0,0,"No",0,0,"No",0,0,"Yes","Yes",{"$nulls":6},7]
[270205302,"2022-06-12","Ninewa","Al-Ba'aj","Markaz Al-Ba'aj","Urban","Neighborhood","34013-Al Askari","34013-حي العسكري","Field visit","Yes","Al Askary","العسكري","Cluster",11,"Yes",22,132,"No",0,0,"No",0,0,"No",0,0,null,"Yes",{"$nulls":6},22,0,132,0,0,0,0,0,0,0,0,0,0,0,132,0,0,0,0,0,0,0,132,0,0,0,0,0,0,0,0,0,0,0,0,0,0,0,0,0,0,"2021-01-01","Yes","Yes, some","Public-state/government/local authorities",null,null,"yes",null,"Yes we are allowed to upgrade the infrastructure, but upgrades are not being made (eg. cannot afford to, do not plan on staying here,do not want to make upgrades)","Yes, some","Very few (1%-10%)","No","Only a minority meet their needs (25-49%) ","Only a minority (25-49%) ","No",{"$nulls":4},"Around half (41%-60%) ","Most families (76%-90%)","Yes","Yes","No",{"$nulls":4},"Shelter/Housing","Employment/livelihood ","Drinking water",null,"Undecided/ Unknown","Some would return","Undecided/ Unknown"]
[270205301,"2022-06-12","Ninewa","Al-Ba'aj","Markaz Al-Ba'aj","Urban","Neighborhood","34013-Al Askari","34013-حي العسكري","Field visit","Yes","Al Aloua","العلوه","Cluster",8,"Yes",14,84,"No",0,0,"No",0,0,"No",0,0,null,"Yes",{"$nulls":6},14]
[270204901,"2022-06-12","Ninewa","Al-Ba'aj","Markaz Al-Ba'aj","Urban","Neighborhood","34010-Al-Dubaat","34010-حي الضباط","Field visit","Yes","Dubaat garby","ضباط غربي","Cluster",2,"Yes",6,36,"No",0,0,"No",0,0,"No",0,0,null,"Yes",{"$nulls":6},6]
[270205002,"2022-06-12","Ninewa","Al-Ba'aj","Markaz Al-Ba'aj","Urban","Neighborhood","34011-Al-Thawra","34011-حي الثوره","Field visit","Yes","Al Tahora jnoby","الثوره جنوبي","Cluster",15,"Yes",25,150,"No",0,0,"No",0,0,"No",0,0,null,"Yes",{"$nulls":6},25,0,150,0,0,0,0,0,0,0,0,0,0,0,150,0,0,0,0,0,0,0,150,0,0,0,0,0,0,0,0,0,0,0,0,0,0,0,0,0,0,"2019-05-01","No",null,"Public-state/government/local authorities",null,null,"yes",null,"Yes we are allowed to upgrade the infrastructure, but upgrades are not being made (eg. cannot afford to, do not plan on staying here,do not want to make upgrades)","Yes, some","A few (11%-25%) ","No","Only a minority meet their needs (25-49%) ","Only a minority (25-49%) ","No",{"$nulls":4},"Few families had enough water (1%-40%)","More than half (61%-75%) ","Yes","Yes","No",{"$nulls":4},"Drinking water","Shelter/Housing","Employment/livelihood ",null,"Undecided/ Unknown","Some would return","Undecided/ Unknown"]
[270205001,"2022-06-12","Ninewa","Al-Ba'aj","Markaz Al-Ba'aj","Urban","Neighborhood","34011-Al-Thawra","34011-حي الثوره","Field visit","Yes","Thawra Kharby","ثوره غربي","Cluster",13,"Yes",46,276,"No",0,0,"No",0,0,"No",0,0,null,"Yes",{"$nulls":6},46,0,276,0,0,0,0,0,0,0,0,0,0,0,276,0,0,0,0,0,0,0,276,0,0,0,0,0,0,0,0,0,0,0,0,0,0,0,0,0,0,"2020-01-01","No",null,"Public-state/government/local authorities",null,null,"yes",null,"Yes we are allowed to upgrade the infrastructure, but upgrades are not being made (eg. cannot afford to, do not plan on staying here,do not want to make upgrades)","Yes, some","A few (11%-25%) ","No","Only a minority meet their needs (25-49%) ","Only a minority (25-49%) ","No",{"$nulls":4},"Around half (41%-60%) ","More than half (61%-75%) ","Yes","Yes","No",{"$nulls":4},"Drinking water","Shelter/Housing","Employment/livelihood ",null,"Undecided/ Unknown","Some would return","Undecided/ Unknown"]
[270205101,"2022-06-12","Ninewa","Al-Ba'aj","Markaz Al-Ba'aj","Urban","Neighborhood","34012-Alqadisya","34012-حي القادسيه","Field visit","Yes","Almaml","المعمل","Cluster",11,"Yes",23,138,"No",0,0,"No",0,0,"No",0,0,null,"Yes",{"$nulls":6},23,0,138,0,0,0,0,0,0,0,0,0,0,0,138,0,0,0,0,0,0,0,138,0,0,0,0,0,0,0,0,0,0,0,0,0,0,0,0,0,0,"2019-05-01","No",null,"Public-state/government/local authorities",null,null,"yes",null,"Yes we are allowed to upgrade the infrastructure, but upgrades are not being made (eg. cannot afford to, do not plan on staying here,do not want to make upgrades)","Yes, some","Very few (1%-10%)","No","Only a minority meet their needs (25-49%) ","Only a minority (25-49%) ","No",{"$nulls":4},"Around half (41%-60%) ","Most families (76%-90%)","Yes","Yes","No",{"$nulls":4},"Drinking water","Shelter/Housing","Employment/livelihood ",null,"Undecided/ Unknown","Some would return","Undecided/ Unknown"]
[270205401,"2022-06-12","Ninewa","Al-Ba'aj","Markaz Al-Ba'aj","Urban","Neighborhood","34014-Hateen","34014-حي حطين","Field visit","Yes","Hateen Sharge","حطين شرقي","Cluster",8,"Yes",18,108,"No",0,0,"No",0,0,"No",0,0,null,"Yes",{"$nulls":6},18,0,108,0,0,0,0,0,0,0,0,0,0,0,108,0,0,0,0,0,0,0,108,0,0,0,0,0,0,0,0,0,0,0,0,0,0,0,0,0,0,"2019-05-01","No",null,"Public-state/government/local authorities",null,null,"yes",null,"Yes we are allowed to upgrade the infrastructure, but upgrades are not being made (eg. cannot afford to, do not plan on staying here,do not want to make upgrades)","Yes, some","Very few (1%-10%)","No","Only a minority meet their needs (25-49%) ","Only a minority (25-49%) ","No",{"$nulls":4},"Around half (41%-60%) ","Most families (76%-90%)","Yes","Yes","No",{"$nulls":4},"Drinking water","Shelter/Housing","Employment/livelihood ",null,"Undecided/ Unknown","Some would return","Undecided/ Unknown"]
[270205402,"2022-06-14","Ninewa","Al-Ba'aj","Markaz Al-Ba'aj","Urban","Neighborhood","34014-Hateen","34014-حي حطين","Field visit","No","Hittin southerner","حطين الجنوبي","Cluster",11,"Yes",16,96,"No",0,0,"No",0,0,"No",0,0,null,"Yes",{"$nulls":6},16,0,96,0,0,0,0,0,0,0,0,0,0,0,96,0,0,0,0,0,0,0,96,0,0,0,0,0,0,0,0,0,0,0,0,0,0,0,0,0,0,"2020-01-01","No",null,"Public-state/government/local authorities",null,null,"yes",null,"Yes we are allowed to upgrade the infrastructure, but upgrades are not being made (eg. cannot afford to, do not plan on staying here,do not want to make upgrades)","Yes, most ","Very few (1%-10%)","No","Very few meet their needs (1-24%)","Only a minority (25-49%) ","No",{"$nulls":4},"Around half (41%-60%) ","Most families (76%-90%)","Yes","Yes","No",{"$nulls":4},"Shelter/Housing","Employment/livelihood ","Drinking water",null,"Stay in the current location","Some would return","Stay within this area, but not in an informal site (locally integrate)"]
[270400901,"2022-06-13","Ninewa","Al-Shikhan","Atroush","Rural","Village","18213-Lalish","18213-لالش","Field visit","Yes","Lalsh tents","خيم لالش","Cluster",4,"Yes",6,36,"No",0,0,"No",0,0,"No",0,0,"Yes",{"$nulls":7},6]
[270402701,"2022-06-13","Ninewa","Al-Shikhan","Ba'adre","Rural","Village","18251-Almaman","18251-آلممان","Field visit","Yes","Almaman village","قرية الممان","Cluster",7,"Yes",7,42,"No",0,0,"No",0,0,"No",0,0,{"$nulls":5},"Yes",null,null,7]
[270400201,"2022-06-14","Ninewa","Al-Shikhan","Ba'adre","Urban","Big Area/Sector","17752-Baadre","17752-باعدري","Field visit","Yes","Near Ba'adri health center","قرب مركز باعدري الصحي","Cluster",15,"Yes",25,150,"No",0,0,"No",0,0,"No",0,0,{"$nulls":5},"Yes",null,null,25,0,0,0,0,0,150,0,0,0,0,0,0,0,150,0,0,0,150,0,0,0,0,0,0,0,0,0,0,0,0,0,0,0,0,0,0,0,0,0,0,"2014-08-01","No",null,"Privately owned ",null,"yes",null,null,"Yes we are allowed to upgrade the infrastructure, but upgrades are not being made (eg. cannot afford to, do not plan on staying here,do not want to make upgrades)","No","None (0%)","No","Only a minority meet their needs (25-49%) ","A majority (50-74%)","No",{"$nulls":4},"All or nearly all had enough water (91-100%) ","All or nearly all were able to access  (91-100%) ","No","Yes","Yes",{"$nulls":4},"Employment/livelihood ","Shelter/Housing","NFI",null,"Stay in the current location","Some would return","Undecided/ Unknown"]
[270400203,"2022-06-14","Ninewa","Al-Shikhan","Ba'adre","Urban","Big Area/Sector","17752-Baadre","17752-باعدري","Field visit","Yes","Near Metra School","قرب مدرسة ميترا","Cluster",8,"Yes",11,66,"No",0,0,"No",0,0,"No",0,0,{"$nulls":5},"Yes",null,null,11]
[270400205,"2022-06-14","Ninewa","Al-Shikhan","Ba'adre","Urban","Big Area/Sector","17752-Baadre","17752-باعدري","Field visit","Yes","Near Cemetery","قرب المقبرة","Cluster",4,"Yes",11,66,"No",0,0,"No",0,0,"No",0,0,{"$nulls":5},"Yes",null,null,11]
[270400701,"2022-06-13","Ninewa","Al-Shikhan","Ba'adre","Rural","Village","25945-Esiyan Village","25945-قرية ايسيان","Field visit","Yes","Near Kurdistan rest","قريبة من مطعم كوردستان","Cluster",4,"Yes",5,30,"No",0,0,"No",0,0,"No",0,0,{"$nulls":5},"Yes",null,null,5]
[270400702,"2022-06-13","Ninewa","Al-Shikhan","Ba'adre","Rural","Village","25945-Esiyan Village","25945-قرية ايسيان","Field visit","Yes","East of Cemetery","شرق المقبرة","Cluster",7,"Yes",7,42,"No",0,0,"No",0,0,"No",0,0,{"$nulls":5},"Yes",null,null,7]
[270400704,"2022-06-13","Ninewa","Al-Shikhan","Ba'adre","Rural","Village","25945-Esiyan Village","25945-قرية ايسيان","Field visit","Yes","Near Brem Rasho's Farm","قرب مزرعه بريم رشو","Cluster",7,"Yes",7,42,"No",0,0,"No",0,0,"No",0,0,{"$nulls":5},"Yes",null,null,7]
[270400703,"2022-06-13","Ninewa","Al-Shikhan","Ba'adre","Rural","Village","25945-Esiyan Village","25945-قرية ايسيان","Field visit","Yes","Near health center","قرب المركز الصحي","Cluster",3,"Yes",6,36,"No",0,0,"No",0,0,"No",0,0,{"$nulls":5},"Yes",null,null,6]
[270400705,"2022-06-13","Ninewa","Al-Shikhan","Ba'adre","Rural","Village","25945-Esiyan Village","25945-قرية ايسيان","Field visit","Yes","Near Rehat Basic School","قرب مدرسة ريهات الاساس","Cluster",4,"Yes",6,36,"No",0,0,"No",0,0,"No",0,0,{"$nulls":5},"Yes",null,null,6]
[270400401,"2022-06-09","Ninewa","Al-Shikhan","Markaz Al-Shikhan","Rural","Village","18294-Berstik","18294-بيرستيك","Field visit","Yes","Berstek UB","هياكل في بيرستك","Cluster",7,"Yes",8,48,"No",0,0,"No",0,0,"No",0,0,{"$nulls":5},"Yes",null,null,8]
[270400402,"2022-06-09","Ninewa","Al-Shikhan","Markaz Al-Shikhan","Rural","Village","18294-Berstik","18294-بيرستيك","Field visit","Yes","Berstak Mud & Berstak Block structures","بيوت مصنوعة من طين و كتل بلوك في بيرستك","Cluster",6,"Yes",6,36,"No",0,0,"No",0,0,"No",0,0,null,"Yes",{"$nulls":6},6]
[270400501,"2022-06-09","Ninewa","Al-Shikhan","Markaz Al-Shikhan","Rural","Village","18265-Betnar","18265-بيتنار","Field visit","Yes","Betnar UB","هياكل في بيتنار","Cluster",4,"Yes",6,36,"No",0,0,"No",0,0,"No",0,0,{"$nulls":5},"Yes",null,null,6]
[270401601,"2022-06-09","Ninewa","Al-Shikhan","Markaz Al-Shikhan","Urban","Big Area/Sector","17333-Shekhan","17333-شيخان","Field visit","Yes","UB close to shekhan Cemetery","هياكل قرب مقبرة شيخان","Cluster",7,"Yes",14,84,"No",0,0,"No",0,0,"No",0,0,{"$nulls":5},"Yes",null,null,14]
[270401202,"2022-06-12","Ninewa","Al-Shikhan","Zilkan","Urban","Big Area/Sector","17535-Mahad","17535-مهد","Field visit","Yes","Mahad UB near graveyard of Mahad","هياكل مهد قرب مقبرة مهد","Cluster",4,"Yes",5,30,"No",0,0,"No",0,0,"No",0,0,{"$nulls":5},"Yes",null,null,5]
[270401203,"2022-06-12","Ninewa","Al-Shikhan","Zilkan","Urban","Big Area/Sector","17535-Mahad","17535-مهد","Field visit","Yes","Mahad UB South west of mahad","هياكل مهد جنوب غرب مهد","Cluster",3,"Yes",11,66,"No",0,0,"No",0,0,"No",0,0,{"$nulls":5},"Yes",null,null,11]
[270401204,"2022-06-12","Ninewa","Al-Shikhan","Zilkan","Urban","Big Area/Sector","17535-Mahad","17535-مهد","Field visit","Yes","Near Mahad garden","قرب حديقة مهد","Cluster",4,"Yes",5,30,"No",0,0,"No",0,0,"No",0,0,{"$nulls":5},"Yes",null,null,5]
[270500101,"2022-06-16","Ninewa","Hatra","Altal","Peri-urban","Big Area/Sector","27271-Tal abta","27271-تل عبطة","Field visit","Yes","Alyarmouk","اليرموك","Cluster",10,"Yes",10,60,"No",0,0,"No",0,0,"No",0,0,null,"Yes",{"$nulls":6},10]
[270500102,"2022-06-16","Ninewa","Hatra","Altal","Peri-urban","Big Area/Sector","27271-Tal abta","27271-تل عبطة","Field visit","Yes","Alnoor","النور","Cluster",10,"Yes",10,60,"No",0,0,"No",0,0,"No",0,0,null,"Yes",{"$nulls":6},10]
[270500103,"2022-06-16","Ninewa","Hatra","Altal","Peri-urban","Big Area/Sector","27271-Tal abta","27271-تل عبطة","Field visit","Yes","Almhazem","المحازم","Cluster",10,"Yes",10,60,"No",0,0,"No",0,0,"No",0,0,null,"Yes",{"$nulls":6},10]
[270500105,"2022-06-16","Ninewa","Hatra","Altal","Peri-urban","Big Area/Sector","27271-Tal abta","27271-تل عبطة","Field visit","Yes","Altiauna","الطياونة","Cluster",15,"Yes",15,90,"No",0,0,"No",0,0,"No",0,0,"Yes","Yes",{"$nulls":6},15,18,72,0,0,0,0,0,0,0,0,0,0,0,90,0,0,0,0,0,0,0,90,0,0,0,0,0,0,0,0,0,0,0,0,0,0,0,0,0,0,"2020-02-01","No",null,"Public-state/government/local authorities",null,null,"yes",null,"Yes we are allowed to upgrade the infrastructure, but upgrades are not being made (eg. cannot afford to, do not plan on staying here,do not want to make upgrades)","No","A few (11%-25%) ","No","Very few meet their needs (1-24%)","Most or all (75% -100%)","No",{"$nulls":4},"None (0%)","Most families (76%-90%)","No","Yes","No",{"$nulls":4},"Drinking water","Shelter/Housing","Employment/livelihood ",null,"Stay in the current location","Some would return","Stay in the current location"]
[270500104,"2022-06-16","Ninewa","Hatra","Altal","Peri-urban","Big Area/Sector","27271-Tal abta","27271-تل عبطة","Field visit","Yes","Al jazera","الجزيرة","Cluster",20,"Yes",28,168,"No",0,0,"No",0,0,"No",0,0,"Yes","Yes",{"$nulls":6},28,108,60,0,0,0,0,0,0,0,0,0,0,0,168,0,0,0,0,0,0,0,168,0,0,0,0,0,0,0,0,0,0,0,0,0,0,0,0,0,0,"2019-04-01","No",null,"Public-state/government/local authorities",null,null,"yes",null,"Yes we are allowed to upgrade the infrastructure, but upgrades are not being made (eg. cannot afford to, do not plan on staying here,do not want to make upgrades)","No","A few (11%-25%) ","No","Very few meet their needs (1-24%)","Most or all (75% -100%)","No",{"$nulls":4},"None (0%)","Most families (76%-90%)","No","Yes","No",{"$nulls":4},"Drinking water","Shelter/Housing","Employment/livelihood ",null,"Stay in the current location","Most or all would return","Stay in the current location"]
[270500109,"2022-06-19","Ninewa","Hatra","Altal","Peri-urban","Big Area/Sector","27271-Tal abta","27271-تل عبطة","Field visit","Yes","Almareth","المعارض","Cluster",35,"Yes",35,210,"No",0,0,"No",0,0,"No",0,0,"Yes","Yes",{"$nulls":6},35,30,180,0,0,0,0,0,0,0,0,0,0,0,210,0,0,0,0,0,0,0,210,0,0,0,0,0,0,0,0,0,0,0,0,0,0,0,0,0,0,"2019-05-01","Yes","Yes, some","Public-state/government/local authorities",null,null,"yes",null,"Yes we are allowed to upgrade the infrastructure, but upgrades are not being made (eg. cannot afford to, do not plan on staying here,do not want to make upgrades)","No","A few (11%-25%) ","No","Very few meet their needs (1-24%)","Most or all (75% -100%)","No",{"$nulls":4},"None (0%)","Most families (76%-90%)","No","Yes","No",{"$nulls":4},"Drinking water","NFI","Shelter/Housing",null,"Stay in the current location","Some would return","Stay in the current location"]
[270500110,"2022-06-19","Ninewa","Hatra","Altal","Peri-urban","Big Area/Sector","27271-Tal abta","27271-تل عبطة","Field visit","Yes","Alsaad","السعد","Cluster",5,"Yes",5,30,"No",0,0,"No",0,0,"No",0,0,"Yes","Yes",{"$nulls":6},5]
[270500111,"2022-06-19","Ninewa","Hatra","Altal","Peri-urban","Big Area/Sector","27271-Tal abta","27271-تل عبطة","Field visit","Yes","Altauafq A","التوافق A","Cluster",10,"Yes",10,60,"No",0,0,"No",0,0,"No",0,0,null,"Yes",{"$nulls":6},10]
[270500112,"2022-06-19","Ninewa","Hatra","Altal","Peri-urban","Big Area/Sector","27271-Tal abta","27271-تل عبطة","Field visit","Yes","Altauafq C","التوافق  C","Cluster",10,"Yes",10,60,"No",0,0,"No",0,0,"No",0,0,null,"Yes",{"$nulls":6},10]
[270500113,"2022-06-19","Ninewa","Hatra","Altal","Peri-urban","Big Area/Sector","27271-Tal abta","27271-تل عبطة","Field visit","Yes","Altauafq B","التوافق B","Cluster",10,"Yes",10,60,"No",0,0,"No",0,0,"No",0,0,null,"Yes",{"$nulls":6},10]
[270500114,"2022-06-19","Ninewa","Hatra","Altal","Peri-urban","Big Area/Sector","27271-Tal abta","27271-تل عبطة","Field visit","Yes","Al jazera 2","الجزيرة 2","Cluster",30,"Yes",30,180,"No",0,0,"No",0,0,"No",0,0,"Yes","Yes",{"$nulls":6},30,60,120,0,0,0,0,0,0,0,0,0,0,0,180,0,0,0,0,0,0,0,180,0,0,0,0,0,0,0,0,0,0,0,0,0,0,0,0,0,0,"2022-04-01","Yes","No","Public-state/government/local authorities",null,null,"yes",null,"Yes we are allowed to upgrade the infrastructure, but upgrades are not being made (eg. cannot afford to, do not plan on staying here,do not want to make upgrades)","Yes, some","A few (11%-25%) ","No","Very few meet their needs (1-24%)","Most or all (75% -100%)","No",{"$nulls":4},"None (0%)","Most families (76%-90%)","No","Yes","No",{"$nulls":4},"Drinking water","Shelter/Housing","NFI",null,"Stay in the current location","Most or all would return","Stay in the current location"]
[270504201,"2022-06-19","Ninewa","Hatra","Markaz Hatra","Urban","Big Area/Sector","17126-Markaz AL-Hatra","17126-مركز الحضر","By phone","Yes","Al-hwaseem","الحواسم","Cluster",14,"Yes",14,84,"No",0,0,"No",0,0,"No",0,0,"Yes",{"$nulls":7},14]
[270613501,"2022-05-18","Ninewa","Mosul","Al-Qayara","Rural","Village","31703-AL-Mahattah Al-ghaziyah Village","31703-قرية المحطة الغازية","Field visit","Yes","alsadi","الصد","Cluster",23,"Yes",26,156,"No",0,0,"No",0,0,"No",0,0,"Yes",{"$nulls":4},"Yes",null,null,26,36,0,0,0,0,120,0,0,0,0,0,0,0,156,0,0,0,0,0,0,0,156,0,0,0,0,0,0,0,0,0,0,0,0,0,0,0,0,0,0,"2020-01-01","Yes","Yes, most ","Privately owned ",null,"yes",null,null,"Yes we are allowed to upgrade the infrastructure, but upgrades are not being made (eg. cannot afford to, do not plan on staying here,do not want to make upgrades)","Yes, some","A few (11%-25%) ","No","Only a minority meet their needs (25-49%) ","A majority (50-74%)","No",{"$nulls":4},"More than half (61%-75%) ","All or nearly all were able to access  (91-100%) ","No","Yes","Yes",{"$nulls":4},"Employment/livelihood ","Shelter/Housing","NFI",null,"Stay within this area, but not in an informal site (locally integrate)","Most would still not return ","Undecided/ Unknown"]
[270641301,"2022-05-31","Ninewa","Mosul","Hamam al Aleel","Rural","Village","34217-AL-Dabajah village","34217-قرية الدباجة","By phone","Yes","AL- Dabajah","الدباجة","Cluster",38,"No",0,0,"Yes",38,228,"No",0,0,"No",0,0,null,null,"Yes",{"$nulls":5},38,0,0,228,0,0,0,0,0,0,0,0,0,0,0,0,0,0,0,0,0,0,0,0,0,0,0,0,0,0,0,0,228,0,0,0,0,0,228,0,0,"2019-11-01","No",null,"Privately owned ","yes",{"$nulls":3},"Yes they are allowed to upgrade the infrastructure, and upgrades are being made","No","None (0%)","No","Very few meet their needs (1-24%)","Most or all (75% -100%)","No",{"$nulls":4},"Few families had enough water (1%-40%)","All or nearly all were able to access  (91-100%) ","No","Yes","No",{"$nulls":4},"Drinking water","Shelter/Housing","Employment/livelihood "]
[270600601,"2022-06-02","Ninewa","Mosul","Markaz Mosul","Urban","Neighborhood","18377-Al rasheediya","18377-الرشيدية","Field visit","No","Near the agricultural area","قرب دائرة الزراعه","Site",null,"Yes",5,30,"No",0,0,"No",0,0,"No",0,0,{"$nulls":5},"Yes",null,null,5]
[270608201,"2022-05-24","Ninewa","Mosul","Markaz Mosul","Urban","Neighborhood","18365-Al-Amil","18365-العامل","Field visit","No","Al-Amel neighborhood near the Vocational Training Institute","حي العامل بالقرب من معهد التدريب المهني","Cluster",10,"Yes",10,60,"No",0,0,"No",0,0,"No",0,0,{"$nulls":5},"Yes",null,null,10]
[270601501,"2022-06-09","Ninewa","Mosul","Markaz Mosul","Urban","Neighborhood","18331-Al-Hadbaa","18331-الحدباء","Field visit","Yes","Al-Hadba Farms","مزارع الحدباء","Cluster",9,"Yes",9,54,"No",0,0,"No",0,0,"No",0,0,null,"Yes",{"$nulls":6},9]
[270638201,"2022-04-19","Ninewa","Mosul","Markaz Mosul","Peri-urban","Neighborhood","33935-Hawi alkanisa","33935-حاوي الكنيسة","Field visit","Yes","Alkanisa","الكنيسة","Cluster",3,"Yes",8,48,"No",0,0,"No",0,0,"No",0,0,{"$nulls":5},"Yes",null,null,8]
[270604302,"2022-06-08","Ninewa","Mosul","Markaz Mosul","Urban","Neighborhood","18314-Hay Al Intisar","18314-الانتصار","Field visit","Yes","Al-Shaheed Muhammad Yunus Al-Sabawi Primary School for Girls","مدرسة الشهيد محمد يونس السبعاوي الابتدائية للبنات","Cluster",15,"Yes",15,90,"No",0,0,"No",0,0,"No",0,0,null,"Yes",{"$nulls":6},15,0,90,0,0,0,0,0,0,0,0,0,0,0,90,0,0,0,18,0,0,0,72,0,0,0,0,0,0,0,0,0,0,0,0,0,0,0,0,0,0,"2017-10-01","No",null,"Public-state/government/local authorities",null,null,"yes",null,"No they are not allowed to upgrade the infrastructure, but upgrades are being made anyway","No","None (0%)","Yes","A majority meet their needs (50-74%)","Only a minority (25-49%) ","No",{"$nulls":4},"All or nearly all had enough water (91-100%) ","All or nearly all were able to access  (91-100%) ","No","Yes","No",{"$nulls":4},"Shelter/Housing","NFI","Food",null,"Stay in the current location","Some would return","Undecided/ Unknown"]
[270604303,"2022-06-08","Ninewa","Mosul","Markaz Mosul","Urban","Neighborhood","18314-Hay Al Intisar","18314-الانتصار","Field visit","Yes","Near the mosque of Khadija bint Khuwailid","قرب جامع خديجة بنت خويلد","Cluster",13,"Yes",13,78,"No",0,0,"No",0,0,"No",0,0,null,"Yes",{"$nulls":6},{"$f":"Q320+T320","v":13}]
[270604301,"2022-06-08","Ninewa","Mosul","Markaz Mosul","Urban","Neighborhood","18314-Hay Al Intisar","18314-الانتصار","Field visit","No","Pension market near the gas plant","سؤق المعاش قرب معمل الغاز","Cluster",45,"Yes",45,270,"No",0,0,"No",0,0,"No",0,0,{"$nulls":7},"Yes",45,0,0,0,0,0,0,0,270,0,0,0,0,0,270,0,0,0,0,0,0,0,270,0,0,0,0,0,0,0,0,0,0,0,0,0,0,0,0,0,0,"2017-10-01","No",null,"Public-state/government/local authorities",null,null,"yes",null,"No ","No","None (0%)","No","A majority meet their needs (50-74%)","Very few (1-24%)","Yes","yes",{"$nulls":3},"All or nearly all had enough water (91-100%) ","Most families (76%-90%)","No","Yes","No",{"$nulls":4},"Shelter/Housing","Employment/livelihood ","Food",null,"Stay in the current location","Some would return","Undecided/ Unknown"]
[270604801,"2022-06-18","Ninewa","Mosul","Markaz Mosul","Urban","Neighborhood","18370-Hay Al Tammem","18370-التاميم","Field visit","Yes","Unfinshed building near Fatimat Alzahraa's School","هيكل قرب مدرسة فاطمة الزهراء","Site",null,"Yes",22,132,"No",0,0,"No",0,0,"No",0,0,{"$nulls":5},"Yes",null,null,22,0,0,0,0,0,132,0,0,0,0,0,0,0,132,0,0,0,18,0,0,0,114,0,0,0,0,0,0,0,0,0,0,0,0,0,0,0,0,0,0,"2017-10-01","No",null,"Public-state/government/local authorities",null,null,"yes",null,"No they are not allowed to upgrade the infrastructure, but upgrades are being made anyway","No","Very few (1%-10%)","Yes","Only a minority meet their needs (25-49%) ","Only a minority (25-49%) ","No",{"$nulls":4},"Most families (76%-90%)","Most families (76%-90%)","Yes","Yes","No",{"$nulls":4},"NFI","Shelter/Housing","Employment/livelihood ",null,"Stay in the current location","Some would return","Stay in the current location"]
[270605001,"2022-06-16","Ninewa","Mosul","Markaz Mosul","Urban","Neighborhood","21647-Hay Al Zahraa","21647-حي الزهراء","Field visit","Yes","Unfinshed building near  Habibona Almustafa'sMosque","هيكل قرب جامع حبيبنا المصطفى","Site",null,"Yes",12,72,"No",0,0,"No",0,0,"No",0,0,{"$nulls":5},"Yes",null,null,12]
[270610601,"2022-05-31","Ninewa","Mosul","Markaz Mosul","Urban","Neighborhood","18363-Hay alsedeeq","18363-حي الصديق","Field visit","No","next to Silat al arham mosque","قرب جامع صلة الارحام","Cluster",4,"Yes",5,30,"No",0,0,"No",0,0,"No",0,0,{"$nulls":5},"Yes",null,null,5]
[270605301,"2022-05-24","Ninewa","Mosul","Markaz Mosul","Urban","Neighborhood","24635-Hay Nablus","24635-حي نابلس","Field visit","Yes","Alonsa","الونسة","Site",null,"Yes",10,60,"No",0,0,"No",0,0,"No",0,0,{"$nulls":5},"Yes",null,null,10]
[270627201,"2022-06-01","Ninewa","Mosul","Markaz Mosul","Urban","Neighborhood","33254-Msherfa 1","33254-مشيرفة 1","Field visit","Yes","Zaid I need Khattab","زيد ابن خطاب","Cluster",9,"No",0,0,"Yes",9,54,"No",0,0,"No",0,0,"Yes",{"$nulls":7},9]
[270619101,"2022-05-26","Ninewa","Mosul","Markaz Mosul","Urban","Neighborhood","31917-Yarmjah Al-sharqiya","31917-يارمجة الشرقية","Field visit","Yes","Near Al Miraj School","قرب مدرسة المعراج","Cluster",6,"Yes",7,42,"No",0,0,"No",0,0,"No",0,0,{"$nulls":5},"Yes",null,null,7]
[270619102,"2022-05-26","Ninewa","Mosul","Markaz Mosul","Urban","Neighborhood","31917-Yarmjah Al-sharqiya","31917-يارمجة الشرقية","Field visit","No","Near Al Qayyum neighborhood mosque","قرب جامع الحي القيوم","Cluster",5,"Yes",7,42,"No",0,0,"No",0,0,"No",0,0,"Yes",{"$nulls":7},7]
[270702101,"2022-05-25","Ninewa","Sinjar","Al-Shamal","Rural","Village","27366-Balif","27366-بليف","Field visit","No","East Balif","بليف شرقي","Cluster",3,"Yes",11,66,"No",0,0,"No",0,0,"No",0,0,{"$nulls":5},"Yes",null,null,11]
[270703401,"2022-06-07","Ninewa","Sinjar","Al-Shamal","Rural","Village","28418-Darki Qawala","28418-داركي قوالا","Field visit","No","Jebel Sinjar_Darki qawala southern","داركي قوالا جنوبي","Cluster",9,"Yes",50,300,"No",0,0,"No",0,0,"No",0,0,"Yes",{"$nulls":7},50,300,0,0,0,0,0,0,0,0,0,0,0,0,300,0,0,0,300,0,0,0,0,0,0,0,0,0,0,0,0,0,0,0,0,0,0,0,0,0,0,"2016-04-01","No",null,"Privately owned",null,null,"yes",null,"No ","No","Very few (1%-10%)","No","Only a minority meet their needs (25-49%) ","A majority (50-74%)","No",{"$nulls":4},"More than half (61%-75%) ","Most families (76%-90%)","No","Yes","Yes",{"$nulls":4},"Shelter/Housing","Access to solutions for displacement-related rights violations (justice, reparations and compensation)","Employment/livelihood ",null,"Stay in the current location","Some would return","Undecided/ Unknown"]
[270710001,"2022-05-24","Ninewa","Sinjar","Al-Shamal","Rural","Village","33999-Girshabak","33999-كرشبك ","Field visit","No","Northern Girshabak","كرشبك شمالي","Cluster",2,"No",0,0,"Yes",10,60,"No",0,0,"No",0,0,null,"Yes",{"$nulls":6},10]
[270701101,"2022-06-13","Ninewa","Sinjar","Al-Shamal","Rural","Village","27288-Karsi ","27288-كرسي","Field visit","No","Lower Karsi","كرسي السفلى","Cluster",28,"Yes",41,246,"No",0,0,"No",0,0,"No",0,0,"Yes",{"$nulls":7},41,246,0,0,0,0,0,0,0,0,0,0,0,0,246,0,0,0,246,0,0,0,0,0,0,0,0,0,0,0,0,0,0,0,0,0,0,0,0,0,0,"2015-04-01","No",null,"Privately owned",null,null,"yes",null,"No ","No","Very few (1%-10%)","No","Only a minority meet their needs (25-49%) ","A majority (50-74%)","No",{"$nulls":4},"More than half (61%-75%) ","All or nearly all were able to access  (91-100%) ","Yes","Yes","No",{"$nulls":4},"Shelter/Housing","Access to solutions for displacement-related rights violations (justice, reparations and compensation)","Employment/livelihood ",null,"Stay in the current location","Some would return","Stay within this area, but not in an informal site (locally integrate)"]
[270701201,"2022-06-06","Ninewa","Sinjar","Al-Shamal","Rural","Village","27358-Kolka","27358-كولكا","Field visit","No","Jebel Sinjar_Kolka Southern","كولكا جنوبي","Cluster",5,"Yes",10,60,"No",0,0,"No",0,0,"No",0,0,"Yes",{"$nulls":7},10]
[270701902,"2022-06-12","Ninewa","Sinjar","Al-Shamal","Rural","Village","27364-Melik","27364-ملك","Field visit","No","Melik-Qubani intersection","تقاطع ملك-قباني","Cluster",26,"Yes",50,300,"No",0,0,"No",0,0,"No",0,0,null,"Yes",{"$nulls":6},50,0,300,0,0,0,0,0,0,0,0,0,0,0,300,0,0,0,300,0,0,0,0,0,0,0,0,0,0,0,0,0,0,0,0,0,0,0,0,0,0,"2015-10-01","Yes","No","Privately owned",null,null,"yes",null,"No ","No","Very few (1%-10%)","No","Only a minority meet their needs (25-49%) ","A majority (50-74%)","No",{"$nulls":4},"Around half (41%-60%) ","All or nearly all were able to access  (91-100%) ","No","Yes","Yes",{"$nulls":4},"Shelter/Housing","Employment/livelihood ","Access to solutions for displacement-related rights violations (justice, reparations and compensation)",null,"Stay in the current location","Some would return","Undecided/ Unknown"]
[270701901,"2022-06-12","Ninewa","Sinjar","Al-Shamal","Rural","Village","27364-Melik","27364-ملك","Field visit","Yes","Jebel Sinjar_Qubani","قباني","Cluster",31,"Yes",58,348,"No",0,0,"No",0,0,"No",0,0,"Yes",{"$nulls":7},58,348,0,0,0,0,0,0,0,0,0,0,0,0,348,0,0,0,348,0,0,0,0,0,0,0,0,0,0,0,0,0,0,0,0,0,0,0,0,0,0,"2015-10-01","Yes","No","Privately owned",null,null,"yes",null,"No ","No","Very few (1%-10%)","No","Only a minority meet their needs (25-49%) ","A majority (50-74%)","No",{"$nulls":4},"Around half (41%-60%) ","All or nearly all were able to access  (91-100%) ","No","Yes","Yes",{"$nulls":4},"Shelter/Housing","Employment/livelihood ","Access to solutions for displacement-related rights violations (justice, reparations and compensation)",null,"Stay in the current location","Some would return","Undecided/ Unknown"]
[270701702,"2022-06-05","Ninewa","Sinjar","Al-Shamal","Rural","Village","27362-Sardashty","27362-سردشتي","Field visit","No","Jebel Sinjar_Sardashty Northern","سردشتي الشمالي","Cluster",79,"Yes",97,582,"No",0,0,"No",0,0,"No",0,0,"Yes",{"$nulls":7},97,582,0,0,0,0,0,0,0,0,0,0,0,0,582,0,0,0,582,0,0,0,0,0,0,0,0,0,0,0,0,0,0,0,0,0,0,0,0,0,0,"2015-10-01","Yes","No","Privately owned",null,null,"yes",null,"No ","No","Very few (1%-10%)","No","Only a minority meet their needs (25-49%) ","A majority (50-74%)","Yes","yes",{"$nulls":3},"More than half (61%-75%) ","Most families (76%-90%)","No","Yes","Yes",{"$nulls":4},"Shelter/Housing","Employment/livelihood ","Access to solutions for displacement-related rights violations (justice, reparations and compensation)",null,"Stay in the current location","Most or all would return","Return to their place of origin"]
[270701701,"2022-06-05","Ninewa","Sinjar","Al-Shamal","Rural","Village","27362-Sardashty","27362-سردشتي","Field visit","No","Jebel Sinjar_Sardashty Southern","سردشتي الجنوبي","Cluster",103,"Yes",142,852,"No",0,0,"No",0,0,"No",0,0,"Yes",{"$nulls":7},142,852,0,0,0,0,0,0,0,0,0,0,0,0,852,0,0,0,852,0,0,0,0,0,0,0,0,0,0,0,0,0,0,0,0,0,0,0,0,0,0,"2015-10-01","Yes","No","Privately owned",null,null,"yes",null,"No ","No","Very few (1%-10%)","No","Only a minority meet their needs (25-49%) ","A majority (50-74%)","Yes","yes",{"$nulls":3},"More than half (61%-75%) ","Most families (76%-90%)","No","Yes","No",{"$nulls":4},"Shelter/Housing","Employment/livelihood ","Access to solutions for displacement-related rights violations (justice, reparations and compensation)",null,"Stay in the current location","Some would return","Return to their place of origin"]
[270701301,"2022-06-06","Ninewa","Sinjar","Al-Shamal","Rural","Village","27359-Semi-Hester","27359-سمي هيستر","Field visit","No","Jebel Sinjar_Semi Hester Southern","سمي هيستر جنوبي","Cluster",7,"Yes",8,48,"No",0,0,"No",0,0,"No",0,0,"Yes",{"$nulls":7},8]
[270701601,"2022-06-12","Ninewa","Sinjar","Al-Shamal","Rural","Village","27361-Wary Bahdo","27361-واري بهدو","Field visit","Yes","Jebel Sinjar_KhederTala","خدر تعلى","Cluster",8,"Yes",39,234,"No",0,0,"No",0,0,"No",0,0,"Yes",{"$nulls":7},39,234,0,0,0,0,0,0,0,0,0,0,0,0,234,0,0,0,234,0,0,0,0,0,0,0,0,0,0,0,0,0,0,0,0,0,0,0,0,0,0,"2015-10-01","No",null,"Privately owned",null,null,"yes",null,"No ","No","Very few (1%-10%)","No","Only a minority meet their needs (25-49%) ","A majority (50-74%)","Yes","yes",{"$nulls":3},"Around half (41%-60%) ","Most families (76%-90%)","No","Yes","Yes",{"$nulls":4},"Shelter/Housing","Drinking water","Access to solutions for displacement-related rights violations (justice, reparations and compensation)",null,"Stay in the current location","Some would return","Undecided/ Unknown"]
[270701603,"2022-06-12","Ninewa","Sinjar","Al-Shamal","Rural","Village","27361-Wary Bahdo","27361-واري بهدو","Field visit","No","Hassan Said Sector","قاطع حسن سعيد","Cluster",5,"Yes",21,126,"No",0,0,"No",0,0,"No",0,0,"Yes",{"$nulls":7},21,126,0,0,0,0,0,0,0,0,0,0,0,0,126,0,0,0,126,0,0,0,0,0,0,0,0,0,0,0,0,0,0,0,0,0,0,0,0,0,0,"2015-10-01","No",null,"Privately owned",null,null,"yes",null,"No ","No","Very few (1%-10%)","No","Only a minority meet their needs (25-49%) ","A majority (50-74%)","Yes","yes",{"$nulls":3},"Around half (41%-60%) ","Most families (76%-90%)","No","Yes","Yes",{"$nulls":4},"Shelter/Housing","Drinking water","Access to solutions for displacement-related rights violations (justice, reparations and compensation)",null,"Stay in the current location","Some would return","Undecided/ Unknown"]
[270701602,"2022-06-12","Ninewa","Sinjar","Al-Shamal","Rural","Village","27361-Wary Bahdo","27361-واري بهدو","Field visit","Yes","Jebel Sinjar_Kharab rashik","خراب رشك","Cluster",5,"Yes",20,120,"No",0,0,"No",0,0,"No",0,0,"Yes",{"$nulls":7},20,120,0,0,0,0,0,0,0,0,0,0,0,0,120,0,0,0,120,0,0,0,0,0,0,0,0,0,0,0,0,0,0,0,0,0,0,0,0,0,0,"2015-10-01","No",null,"Privately owned",null,null,"yes",null,"No ","No","None (0%)","No","Only a minority meet their needs (25-49%) ","A majority (50-74%)","Yes","yes",{"$nulls":3},"Around half (41%-60%) ","Most families (76%-90%)","No","Yes","Yes",{"$nulls":4},"Shelter/Housing","Drinking water","Access to solutions for displacement-related rights violations (justice, reparations and compensation)",null,"Stay in the current location","Some would return","Undecided/ Unknown"]
[270704402,"2022-06-01","Ninewa","Sinjar","Markaz Sinjar","Rural","Village","31742-Solagh","31742-صولاغ","Field visit","Yes","Tapa","تبة","Cluster",26,"No",0,0,"Yes",26,156,"No",0,0,"No",0,0,null,"Yes",{"$nulls":6},26,0,156,0,0,0,0,0,0,0,0,0,0,0,0,0,0,0,0,0,0,0,0,0,0,0,0,0,156,0,0,0,0,0,0,0,36,0,120,0,0,"2017-03-01","No",null,"Privately owned ","yes",{"$nulls":3},"Yes they are allowed to upgrade the infrastructure, and upgrades are being made","No","Very few (1%-10%)","Yes","A majority meet their needs (50-74%)","None (0%)","Yes","yes",{"$nulls":3},"Most families (76%-90%)","All or nearly all were able to access  (91-100%) ","No","Yes","No",{"$nulls":4},"Shelter/Housing","Rehabilitation/construction of infrastructure and services(roads, sewage system, electricity, garbage, etc)","Access to solutions for displacement-related rights violations (justice, reparations and compensation)"]
[270704401,"2022-06-01","Ninewa","Sinjar","Markaz Sinjar","Rural","Village","31742-Solagh","31742-صولاغ","Field visit","Yes","Shkaftat","شكفتات","Cluster",17,"No",0,0,"Yes",17,102,"No",0,0,"No",0,0,{"$nulls":5},"Yes",null,null,17,0,0,0,0,0,102,0,0,0,0,0,0,0,0,0,0,0,0,0,0,0,0,0,0,0,0,0,102,0,0,0,0,0,0,0,0,0,102,0,0,"2016-06-01","No",null,"Privately owned ","yes",{"$nulls":3},"Yes they are allowed to upgrade the infrastructure, and upgrades are being made","No","Very few (1%-10%)","No","Only a minority meet their needs (25-49%) ","None (0%)","Yes","yes",{"$nulls":3},"All or nearly all had enough water (91-100%) ","All or nearly all were able to access  (91-100%) ","No","Yes","Yes",{"$nulls":4},"Shelter/Housing","Rehabilitation/construction of infrastructure and services(roads, sewage system, electricity, garbage, etc)","Access to solutions for displacement-related rights violations (justice, reparations and compensation)"]
[270809001,"2022-04-20","Ninewa","Telafar","Rubiya","Rural","Village","28450-Ewaynat vilage","28450-قرية عوينات","Field visit","Yes","Abu Kula Village Junction","مفرق قرية ابو كله","Cluster",5,"No",0,0,"Yes",5,30,"No",0,0,"No",0,0,"Yes",{"$nulls":7},5]
[270801101,"2022-06-21","Ninewa","Telafar","Zummar","Peri-urban","Big Area/Sector","25944-Qasabat Zummar","25944-قصبة زمار","Field visit","Yes","Zummar municipality  building","بناية بلدية زمار","Site",null,"Yes",6,36,"No",0,0,"No",0,0,"No",0,0,{"$nulls":5},"Yes",null,null,6]
[2708127,"2022-05-14","Ninewa","Telafar","Zummar","Peri-urban","Site","33243-Ry Al-Jazera","33243-مشروع ري الجزيره","Field visit","Yes","Ry Al-Jazera","مشروع ري الجزيره","Cluster",40,"Yes",50,300,"No",0,0,"Yes",35,210,"No",0,0,null,"Yes",{"$nulls":6},50,0,300,0,0,0,0,0,0,0,0,0,0,0,300,0,0,0,300,0,0,0,0,0,0,0,0,0,0,0,0,0,0,0,0,0,0,0,0,0,0,"2014-08-01","No",null,"Public-state/government/local authorities",null,null,"yes",null,"Yes we are allowed to upgrade the infrastructure, but upgrades are not being made (eg. cannot afford to, do not plan on staying here,do not want to make upgrades)","No","Very few (1%-10%)","No","Very few meet their needs (1-24%)","Very few (1-24%)","No",{"$nulls":4},"All or nearly all had enough water (91-100%) ","All or nearly all were able to access  (91-100%) ","No","Yes","No",null,"yes","yes","yes","Shelter/Housing","Employment/livelihood ","Access to solutions for displacement-related rights violations (justice, reparations and compensation)",null,"Stay in the current location","Most or all would return","Return to their place of origin"]
[360300301,"2022-05-30","Qadissiya","Diwaniya","Markaz Al-Diwaniya","Urban","Neighborhood","22326-Al Mojamaa Al Sakani","22326-المجمع السكني","Field visit","Yes","Al-Zaitoon complex","مجمع الزيتون","Cluster",8,"Yes",21,126,"No",0,0,"Yes",200,{"v":1200,"d":"1,200"},"Yes",5,30,{"$nulls":6},"Yes",null,21,0,0,0,0,0,0,126,0,0,0,0,0,0,126,0,0,0,126,0,0,0,0,0,0,0,0,0,0,0,0,0,0,0,0,0,0,0,0,0,0,"2014-08-01","No",null,"Mixed ownership (more than one type)",null,null,"yes",null,"Yes we are allowed to upgrade the infrastructure, but upgrades are not being made (eg. cannot afford to, do not plan on staying here,do not want to make upgrades)","Yes, some","Very few (1%-10%)","No","Only a minority meet their needs (25-49%) ","Only a minority (25-49%) ","No",{"$nulls":4},"All or nearly all had enough water (91-100%) ","Most families (76%-90%)","Yes","Yes","Yes",{"$nulls":4},"Shelter/Housing","Employment/livelihood ","NFI",null,"Stay in the current location","Some would return","Undecided/ Unknown"]
[280203901,"2022-06-20","Salah al-Din","Al-Shirqat","Markaz Al-Shirqat","Rural","Village","20389-Al-Ayitha Village","20389-قريةالعيثة(جرناف شرقي)","Field visit","Yes","Al-Akrad village","قرية الاكراد سابقاً","Site",null,"No",0,0,"Yes",7,42,"No",0,0,"No",0,0,"Yes",{"$nulls":7},7]
[280203902,"2022-06-20","Salah al-Din","Al-Shirqat","Markaz Al-Shirqat","Rural","Village","20389-Al-Ayitha Village","20389-قريةالعيثة(جرناف شرقي)","Field visit","Yes","Qandhar","قندهار","Site",null,"No",0,0,"Yes",19,114,"No",0,0,"No",0,0,"Yes",{"$nulls":7},19,114,0,0,0,0,0,0,0,0,0,0,0,0,0,0,0,0,0,0,0,0,0,0,0,0,0,0,0,18,24,72,0,0,0,0,0,0,114,0,0,"2019-10-01","No",null,"Privately owned ",null,"yes",null,null,"Yes we are allowed to upgrade the infrastructure, but upgrades are not being made (eg. cannot afford to, do not plan on staying here,do not want to make upgrades)","No","Some (26%-40%) ","No","Only a minority meet their needs (25-49%) ","A majority (50-74%)","No",{"$nulls":4},"More than half (61%-75%) ","Most families (76%-90%)","No","Yes","No",{"$nulls":4},"Employment/livelihood ","Food","NFI"]
[280203905,"2022-06-20","Salah al-Din","Al-Shirqat","Markaz Al-Shirqat","Rural","Village","20389-Al-Ayitha Village","20389-قريةالعيثة(جرناف شرقي)","Field visit","Yes","Al-Hyahi","الهياهي","Site",null,"No",0,0,"Yes",12,72,"No",0,0,"No",0,0,"Yes",{"$nulls":7},12]
[280203903,"2022-06-20","Salah al-Din","Al-Shirqat","Markaz Al-Shirqat","Rural","Village","20389-Al-Ayitha Village","20389-قريةالعيثة(جرناف شرقي)","Field visit","Yes","Al - Mismar","المسمار","Site",null,"No",0,0,"Yes",5,30,"No",0,0,"No",0,0,"Yes",{"$nulls":7},5]
[280206201,"2022-06-16","Salah al-Din","Al-Shirqat","Markaz Al-Shirqat","Rural","Village","33403-Al-Huqqna village","33403-قرية الحكنة","Field visit","Yes","Near to main road","قرب الطريق الرئيسي","Cluster",2,"No",0,0,"Yes",5,30,"No",0,0,"No",0,0,"Yes",{"$nulls":7},5]
[280206202,"2022-06-16","Salah al-Din","Al-Shirqat","Markaz Al-Shirqat","Rural","Village","33403-Al-Huqqna village","33403-قرية الحكنة","Field visit","Yes","Near to primary school","قرب المدرسة الابتدائية","Cluster",3,"No",0,0,"Yes",6,36,"No",0,0,"No",0,0,"Yes",{"$nulls":7},6]
[280205401,"2022-06-15","Salah al-Din","Al-Shirqat","Markaz Al-Shirqat","Rural","Village","33126-Al-Sheekh Hamad Village","33126-قرية الشيخ حمد","Field visit","Yes","Next to river.","قرب النهر","Site",null,"No",0,0,"Yes",6,36,"No",0,0,"No",0,0,"Yes",{"$nulls":7},6]
[280206501,"2022-06-19","Salah al-Din","Al-Shirqat","Markaz Al-Shirqat","Rural","Village","33567-Ganus Fuqani (Gunos Khmisat)","33567-كنعوص فوقاني قرية( كنعوص الخميسات)","Field visit","Yes","Next to Mukhtar's house.","قرب بيت المختار","Site",null,"No",0,0,"Yes",8,48,"No",0,0,"No",0,0,"Yes",{"$nulls":7},8]
[280206901,"2022-06-19","Salah al-Din","Al-Shirqat","Markaz Al-Shirqat","Rural","Village","33875-Ganus Sufla","33875-كنعوص سفلى","Field visit","Yes","Near to Mukhtar's house","قرب منزل المختار","Cluster",3,"No",0,0,"Yes",6,36,"No",0,0,"No",0,0,"Yes","Yes",{"$nulls":6},6]
[280206401,"2022-06-19","Salah al-Din","Al-Shirqat","Markaz Al-Shirqat","Rural","Village","33566-Ganus Ulya(Gunos Emam)","33566- كنعوص عليا( كنعوص الامام)","Field visit","Yes","Next to Mukhtar's house.","قرب منزل المختار","Site",null,"No",0,0,"Yes",13,78,"No",0,0,"No",0,0,"Yes",{"$nulls":7},13]
[280201701,"2022-05-23","Salah al-Din","Al-Shirqat","Markaz Al-Shirqat","Urban","Neighborhood","24246-Hay Al Ziraa","24246-حي الزراعه","Field visit","Yes","Al-Ziraa Unfinished building","بناية الزراعة القديمة","Site",null,"Yes",5,30,"No",0,0,"No",0,0,"No",0,0,{"$nulls":5},"Yes",null,null,5]
[280204304,"2022-06-16","Salah al-Din","Al-Shirqat","Markaz Al-Shirqat","Rural","Village","20588-Sudayrah Sufla Village","20588-قرية سديره سفلى","Field visit","Yes","Next to main way","قرب الطريق الرئيسي","Site",null,"No",0,0,"Yes",14,84,"No",0,0,"No",0,0,"Yes",{"$nulls":7},14]
[280204302,"2022-06-16","Salah al-Din","Al-Shirqat","Markaz Al-Shirqat","Rural","Village","20588-Sudayrah Sufla Village","20588-قرية سديره سفلى","Field visit","Yes","Next to Mukhtar house.","قرب بيت المختار","Site",null,"No",0,0,"Yes",6,36,"No",0,0,"No",0,0,"Yes",{"$nulls":7},6]
[280204301,"2022-06-16","Salah al-Din","Al-Shirqat","Markaz Al-Shirqat","Rural","Village","20588-Sudayrah Sufla Village","20588-قرية سديره سفلى","Field visit","Yes","Behind health center","خلف المركز الصحي","Site",null,"No",0,0,"Yes",9,54,"No",0,0,"No",0,0,"Yes",{"$nulls":7},9]
[280204303,"2022-06-16","Salah al-Din","Al-Shirqat","Markaz Al-Shirqat","Rural","Village","20588-Sudayrah Sufla Village","20588-قرية سديره سفلى","Field visit","Yes","Next to Oil station","قرب محطة البانزين","Site",null,"No",0,0,"Yes",5,30,"No",0,0,"No",0,0,"Yes",{"$nulls":7},5]
[280305101,"2022-06-20","Salah al-Din","Baiji","Al-Siniya","Rural","Village","33714-AL-Khalfa","33714-الخلفاء","Field visit","Yes","Kh","محطه  الوقود","Site",null,"Yes",22,132,"No",0,0,"No",0,0,"No",0,0,{"$nulls":5},"Yes",null,null,22,0,0,0,0,0,132,0,0,0,0,0,0,0,0,132,0,132,0,0,0,0,0,0,0,0,0,0,0,0,0,0,0,0,0,0,0,0,0,0,0,"2020-01-01","No",null,"Privately owned ",null,null,"yes",null,"Yes they are allowed to upgrade the infrastructure, and upgrades are being made","No","Some (26%-40%) ","No","Very few meet their needs (1-24%)","Most or all (75% -100%)","No",{"$nulls":4},"Few families had enough water (1%-40%)","Around half (41%-60%)","Yes","Yes","No",{"$nulls":4},"Shelter/Housing","Access to solutions for displacement-related rights violations (justice, reparations and compensation)","Other","Cash","Return to their place of origin",null,"Return to their place of origin"]
[280303501,"2022-06-30","Salah al-Din","Baiji","MakkHoul","Rural","Village","33435-Alrihewat village","33435-قرية الرهيوات","Field visit","Yes","Al_wade","الوادي","Site",null,"Yes",8,48,"No",0,0,"No",0,0,"No",0,0,null,null,"Yes",{"$nulls":5},8]
[280303601,"2022-06-30","Salah al-Din","Baiji","MakkHoul","Rural","Village","20689-Markaz Makhoul","20689-مركز مكحول","Field visit","Yes","Street Natheet","شارع نذير","Site",null,"Yes",26,156,"No",0,0,"No",0,0,"No",0,0,{"$nulls":5},"Yes",null,null,26,0,0,0,0,0,156,0,0,0,0,0,0,0,0,156,0,0,0,0,0,0,0,0,0,156,0,0,0,0,0,0,0,0,0,0,0,0,0,0,0,"2022-02-01","Yes","No","Privately owned ",null,"yes",null,null,"Yes we are allowed to upgrade the infrastructure, but upgrades are not being made (eg. cannot afford to, do not plan on staying here,do not want to make upgrades)","Yes, some","The majority (61-100%) ","No","Only a minority meet their needs (25-49%) ","Most or all (75% -100%)","No",{"$nulls":4},"None (0%)","None (0%)","Yes","Yes","No",{"$nulls":4},"Shelter/Housing","Access to solutions for displacement-related rights violations (justice, reparations and compensation)","Other","Cash","Return to their place of origin",null,"Return to their place of origin"]
[280303801,"2022-06-30","Salah al-Din","Baiji","MakkHoul","Rural","Village","23243-Muhammed Almusa village","23243-قرية محمد الموسى","Field visit","Yes","School Street","شارع المدرسة","Site",null,"Yes",19,114,"No",0,0,"No",0,0,"No",0,0,{"$nulls":5},"Yes",null,null,19,0,0,0,0,0,114,0,0,0,0,0,0,0,0,114,0,0,0,0,0,0,0,0,0,114,0,0,0,0,0,0,0,0,0,0,0,0,0,0,0,"2022-02-01","Yes","No","Privately owned ",null,"yes",null,null,"Yes we are allowed to upgrade the infrastructure, but upgrades are not being made (eg. cannot afford to, do not plan on staying here,do not want to make upgrades)","Yes, some","The majority (61-100%) ","No","Only a minority meet their needs (25-49%) ","Most or all (75% -100%)","No",{"$nulls":4},"Few families had enough water (1%-40%)","Few families  (1%-40%)","Yes","Yes","No",{"$nulls":4},"Access to solutions for displacement-related rights violations (justice, reparations and compensation)","NFI","Other","Cash","Return to their place of origin",null,"Return to their place of origin"]
[280303802,"2022-06-30","Salah al-Din","Baiji","MakkHoul","Rural","Village","23243-Muhammed Almusa village","23243-قرية محمد الموسى","Field visit","Yes","Al_Hawe","الحاوي","Site",null,"Yes",18,108,"No",0,0,"No",0,0,"No",0,0,{"$nulls":7},"Yes",18,0,0,0,0,0,0,0,108,0,0,0,0,0,0,108,0,0,0,0,0,0,0,0,0,108,0,0,0,0,0,0,0,0,0,0,0,0,0,0,0,"2022-02-01","Yes","No","Privately owned ",null,"yes",null,null,"Yes we are allowed to upgrade the infrastructure, but upgrades are not being made (eg. cannot afford to, do not plan on staying here,do not want to make upgrades)","No","The majority (61-100%) ","No","Very few meet their needs (1-24%)","Most or all (75% -100%)","No",{"$nulls":4},"None (0%)","None (0%)","Yes","No","No",{"$nulls":4},"Shelter/Housing","Access to solutions for displacement-related rights violations (justice, reparations and compensation)","Other","Cash","Return to their place of origin",null,"Return to their place of origin"]
[280301101,"2022-06-12","Salah al-Din","Baiji","Markaz Baiji","Urban","Neighborhood","20866-Tal abu Jarad area-Mahalla 104","20866-تل أبو جراد محلة 104","Field visit","Yes","Salim's house","بيت سالم","Site",null,"No",0,0,"Yes",42,252,"No",0,0,"No",0,0,null,"Yes",{"$nulls":6},42,0,252,0,0,0,0,0,0,0,0,0,0,0,0,0,0,0,0,0,0,0,0,0,0,0,0,252,0,0,0,0,0,0,0,0,0,0,0,252,0,"2020-06-01","No",null,"Privately owned ","yes",{"$nulls":3},"Yes they are allowed to upgrade the infrastructure, and upgrades are being made","No","A few (11%-25%) ","No","Very few meet their needs (1-24%)","None (0%)","No",{"$nulls":4},"Around half (41%-60%) ","Around half (41%-60%)","Yes","Yes","No",{"$nulls":4},"Shelter/Housing","Employment/livelihood ","Access to solutions for displacement-related rights violations (justice, reparations and compensation)"]
[280400201,"2022-04-24","Salah al-Din","Balad","Al-Duloeyah","Rural","Village","26020-Al Mashrooa Village","26020-قرية المشروع","Field visit","Yes","Mohammed house","بيت محمد","Site",null,"Yes",6,36,"No",0,0,"No",0,0,"No",0,0,null,"Yes",{"$nulls":6},6]
[280400601,"2022-04-25","Salah al-Din","Balad","Al-Duloeyah","Rural","Big Area/Sector","25742-Al-Duloeyah-Hay Al Jubor","25742-محلة الجبور الاولى","Field visit","Yes","Almatri Road","طريق المتري","Cluster",3,"Yes",16,96,"No",0,0,"No",0,0,"No",0,0,{"$nulls":5},"Yes",null,null,16,0,0,0,0,0,96,0,0,0,0,0,0,0,0,96,0,0,96,0,0,0,0,0,0,0,0,0,0,0,0,0,0,0,0,0,0,0,0,0,0,"2015-05-01","No",null,"Privately owned ",null,"yes",null,null,"Yes we are allowed to upgrade the infrastructure, but upgrades are not being made (eg. cannot afford to, do not plan on staying here,do not want to make upgrades)","No","Some (26%-40%) ","No","Only a minority meet their needs (25-49%) ","A majority (50-74%)","Yes",null,"yes",null,null,"Most families (76%-90%)","More than half (61%-75%) ","No","Yes","No",{"$nulls":4},"Rehabilitation/construction of infrastructure and services(roads, sewage system, electricity, garbage, etc)","Access to solutions for displacement-related rights violations (justice, reparations and compensation)","Shelter/Housing",null,"Undecided/ Unknown","Some would return","Return to their place of origin"]
[280400501,"2022-06-30","Salah al-Din","Balad","Al-Duloeyah","Urban","Big Area/Sector","20767-Albu Jewari","20767-محلة البو جواري","Field visit","Yes","Hamad shahab street","شارع حمد شهاب","Site",null,"Yes",10,60,"No",0,0,"No",0,0,"No",0,0,{"$nulls":3},"Yes",{"$nulls":4},10]
[280400502,"2022-06-30","Salah al-Din","Balad","Al-Duloeyah","Urban","Big Area/Sector","20767-Albu Jewari","20767-محلة البو جواري","Field visit","Yes","Abdullah kuftan house","بيت عبدالله كفطان","Site",null,"Yes",5,30,"No",0,0,"No",0,0,"No",0,0,{"$nulls":5},"Yes",null,null,5]
[280402601,"2022-05-01","Salah al-Din","Balad","Markaz Al-Balad","Rural","Big Area/Sector","33437-Aziz Balad","33437-عزيز بلد","Field visit","Yes","Aziz balad main street","شارع عزيز بلد الرئيسي","Site",null,"No",0,0,"Yes",5,30,"No",0,0,"No",0,0,{"$nulls":5},"Yes",null,null,5]
[280402602,"2022-05-01","Salah al-Din","Balad","Markaz Al-Balad","Rural","Big Area/Sector","33437-Aziz Balad","33437-عزيز بلد","Field visit","Yes","Mohammed fathi house","بيت محمد فتحي","Cluster",2,"No",0,0,"Yes",10,60,"No",0,0,"No",0,0,{"$nulls":5},"Yes",null,null,10]
[2804022,"2022-06-26","Salah al-Din","Balad","Markaz Al-Balad","Rural","Site","33347-Balad station","33347-محطة بلد","Field visit","Yes","Balad station","محطة بلد","Site",null,"Yes",91,546,"No",0,0,"No",0,0,"No",0,0,null,null,"Yes",{"$nulls":5},91,0,0,546,0,0,0,0,0,0,0,0,0,0,0,546,0,0,546,0,0,0,0,0,0,0,0,0,0,0,0,0,0,0,0,0,0,0,0,0,0,"2017-06-01","Yes","Yes, some","Mixed ownership (more than one type)",null,null,"yes",null,"No they are not allowed to upgrade the infrastructure, but upgrades are being made anyway","No","Some (26%-40%) ","No","Very few meet their needs (1-24%)","A majority (50-74%)","No",{"$nulls":4},"More than half (61%-75%) ","Few families  (1%-40%)","Yes","Yes","Yes",null,"yes","yes","yes","Employment/livelihood ","Shelter/Housing","Access to solutions for displacement-related rights violations (justice, reparations and compensation)",null,"Return to their place of origin",null,"Return to their place of origin"]
[280600201,"2022-05-29","Salah al-Din","Samarra","Markaz Samarra","Urban","Neighborhood","23876-Al Jibariya Mahala 316","23876-حي الواثق(22-جبيرية)محلة 316","Field visit","Yes","Popular market shops","محلات السوق الشعبي","Site",null,"Yes",7,42,"No",0,0,"No",0,0,"No",0,0,{"$nulls":7},"Yes",7]
[280600202,"2022-05-29","Salah al-Din","Samarra","Markaz Samarra","Urban","Neighborhood","23876-Al Jibariya Mahala 316","23876-حي الواثق(22-جبيرية)محلة 316","Field visit","Yes","Al-Fardaws School","مدرسة مجمع الفردوس","Site",null,"Yes",7,42,"No",0,0,"No",0,0,"No",0,0,{"$nulls":3},"Yes",{"$nulls":4},7]
[280600301,"2022-05-29","Salah al-Din","Samarra","Markaz Samarra","Urban","Neighborhood","21588-Al Jubairiyah Al Thalitha","21588-حي الواثق(22-جبيرية)الجبيرية الثالثة","Field visit","Yes","café street","شارع المقهى","Site",null,"Yes",89,534,"No",0,0,"Yes",137,822,"No",0,0,null,"Yes",{"$nulls":6},89,0,534,0,0,0,0,0,0,0,0,0,0,0,0,534,0,210,0,0,324,0,0,0,0,0,0,0,0,0,0,0,0,0,0,0,0,0,0,0,0,"2014-07-01","No",null,"Public-state/government/local authorities",null,null,"yes",null,"No they are not allowed to upgrade the infrastructure, but upgrades are being made anyway","Yes, some","Some (26%-40%) ","No","Very few meet their needs (1-24%)","Only a minority (25-49%) ","No",{"$nulls":4},"Most families (76%-90%)","Most families (76%-90%)","Yes","Yes","No",{"$nulls":4},"NFI","Shelter/Housing","Employment/livelihood ",null,"Stay in the current location","Some would return","Return to their place of origin"]
[280600302,"2022-05-29","Salah al-Din","Samarra","Markaz Samarra","Urban","Neighborhood","21588-Al Jubairiyah Al Thalitha","21588-حي الواثق(22-جبيرية)الجبيرية الثالثة","Field visit","Yes","School street","شارع المدرسة","Site",null,"Yes",74,444,"No",0,0,"Yes",112,672,"No",0,0,null,"Yes",{"$nulls":6},74,0,444,0,0,0,0,0,0,0,0,0,0,0,0,444,0,210,0,0,234,0,0,0,0,0,0,0,0,0,0,0,0,0,0,0,0,0,0,0,0,"2014-11-01","No",null,"Public-state/government/local authorities",null,null,"yes",null,"No they are not allowed to upgrade the infrastructure, but upgrades are being made anyway","Yes, some","A few (11%-25%) ","No","Very few meet their needs (1-24%)","Only a minority (25-49%) ","No",{"$nulls":4},"Most families (76%-90%)","Most families (76%-90%)","Yes","Yes","No",{"$nulls":4},"NFI","Shelter/Housing","Employment/livelihood ",null,"Stay in the current location","Some would return","Return to their place of origin"]
[280600501,"2022-05-28","Salah al-Din","Samarra","Markaz Samarra","Urban","Neighborhood","21723-Al Qala-Mahal 201","21723-مقاطعة 4 القلعة محلة 201","Field visit","Yes","Train station homes","منازل محطة القطار","Site",null,"Yes",40,240,"No",0,0,"Yes",73,438,"No",0,0,null,"Yes",{"$nulls":6},{"$f":"Q380+T380","v":40},0,240,0,0,0,0,0,0,0,0,0,0,0,0,240,0,0,0,0,240,0,0,0,0,0,0,0,0,0,0,0,0,0,0,0,0,0,0,0,0,"2015-04-01","No",null,"Public-state/government/local authorities",null,null,"yes",null,"Yes they are allowed to upgrade the infrastructure, and upgrades are being made","No","Some (26%-40%) ","No","Only a minority meet their needs (25-49%) ","Only a minority (25-49%) ","No",{"$nulls":4},"Most families (76%-90%)","Most families (76%-90%)","Yes","Yes","No",{"$nulls":4},"Drinking water","NFI","Employment/livelihood ",null,"Return to their place of origin",null,"Return to their place of origin"]
[280600901,"2022-05-30","Salah al-Din","Samarra","Markaz Samarra","Urban","Neighborhood","20675-Al-Efraz area","20675-حي الافراز","Field visit","Yes","PHCC Street","شارع المركز الصحي","Site",null,"Yes",51,306,"No",0,0,"Yes",73,438,"No",0,0,null,"Yes",{"$nulls":6},51,0,306,0,0,0,0,0,0,0,0,0,0,0,0,306,0,78,0,228,0,0,0,0,0,0,0,0,0,0,0,0,0,0,0,0,0,0,0,0,0,"2014-09-01","No",null,"Public-state/government/local authorities",null,null,"yes",null,"No they are not allowed to upgrade the infrastructure, but upgrades are being made anyway","No","Very few (1%-10%)","No","Very few meet their needs (1-24%)","Only a minority (25-49%) ","No",{"$nulls":4},"Most families (76%-90%)","Most families (76%-90%)","Yes","Yes","No",{"$nulls":4},"NFI","Access to solutions for displacement-related rights violations (justice, reparations and compensation)","Shelter/Housing",null,"Stay in the current location","Most would still not return ","Stay in the current location"]
[280602201,"2022-06-10","Salah al-Din","Samarra","Markaz Samarra","Urban","Neighborhood","22473-Hay Al Muthanna-Mahalla 312","22473-حي المثنى-محلة 312","Field visit","Yes","Atwar Bahjat Scbool","مدرسة أطوار بهجت","Site",null,"Yes",14,84,"No",0,0,"No",0,0,"No",0,0,{"$nulls":3},"Yes",{"$nulls":4},14]
[280602203,"2022-06-10","Salah al-Din","Samarra","Markaz Samarra","Urban","Neighborhood","22473-Hay Al Muthanna-Mahalla 312","22473-حي المثنى-محلة 312","Field visit","Yes","Al-Wahhab Mosque Street","شارع جامع الوهاب","Site",null,"Yes",136,816,"No",0,0,"Yes",430,{"v":2580,"d":"2,580"},"No",0,0,null,"Yes",{"$nulls":6},136,0,816,0,0,0,0,0,0,0,0,0,0,0,0,816,0,162,0,654,0,0,0,0,0,0,0,0,0,0,0,0,0,0,0,0,0,0,0,0,0,"2014-09-01","Yes","Yes, some","Public-state/government/local authorities",null,null,"yes",null,"No they are not allowed to upgrade the infrastructure, but upgrades are being made anyway","No","A few (11%-25%) ","No","Very few meet their needs (1-24%)","A majority (50-74%)","No",{"$nulls":4},"More than half (61%-75%) ","More than half (61%-75%) ","Yes","Yes","No",{"$nulls":4},"Shelter/Housing","Employment/livelihood ","Access to solutions for displacement-related rights violations (justice, reparations and compensation)",null,"Stay in the current location","Some would return","Undecided/ Unknown"]
[280602204,"2022-06-10","Salah al-Din","Samarra","Markaz Samarra","Urban","Neighborhood","22473-Hay Al Muthanna-Mahalla 312","22473-حي المثنى-محلة 312","Field visit","Yes","gas station street","شارع محطة الوقود","Site",null,"Yes",141,846,"No",0,0,"Yes",278,{"v":1668,"d":"1,668"},"No",0,0,null,"Yes",{"$nulls":6},141,0,846,0,0,0,0,0,0,0,0,0,0,0,0,846,0,846,0,0,0,0,0,0,0,0,0,0,0,0,0,0,0,0,0,0,0,0,0,0,0,"2014-07-01","Yes","Yes, some","Public-state/government/local authorities",null,null,"yes",null,"No they are not allowed to upgrade the infrastructure, but upgrades are being made anyway","Yes, some","A few (11%-25%) ","No","Only a minority meet their needs (25-49%) ","A majority (50-74%)","No",{"$nulls":4},"More than half (61%-75%) ","More than half (61%-75%) ","Yes","Yes","No",{"$nulls":4},"Shelter/Housing","Employment/livelihood ","Access to solutions for displacement-related rights violations (justice, reparations and compensation)",null,"Stay in the current location","Most would still not return ","Stay in the current location"]
[280602401,"2022-05-28","Salah al-Din","Samarra","Markaz Samarra","Urban","Neighborhood","21725-Hay Al Wathiq-Mahala 314","21725-حي الواثق(22-جبيرية)محلة 314","Field visit","Yes","All-Star Street","شارع الاثار","Site",null,"Yes",92,552,"No",0,0,"No",0,0,"No",0,0,null,"Yes",{"$nulls":6},92,0,552,0,0,0,0,0,0,0,0,0,0,0,0,552,0,264,192,0,96,0,0,0,0,0,0,0,0,0,0,0,0,0,0,0,0,0,0,0,0,"2014-08-01","No",null,"Public-state/government/local authorities",null,null,"yes",null,"Yes they are allowed to upgrade the infrastructure, and upgrades are being made","No","Some (26%-40%) ","No","Only a minority meet their needs (25-49%) ","A majority (50-74%)","No",{"$nulls":4},"Most families (76%-90%)","Most families (76%-90%)","Yes","Yes","No",{"$nulls":4},"NFI","Employment/livelihood ","Other","Cash","Stay in the current location","Some would return","Undecided/ Unknown"]
[280602702,"2022-05-28","Salah al-Din","Samarra","Markaz Samarra","Urban","Neighborhood","20569-Hay Al-Khathraa Mahala 322","20569-حي الخضراء م(25-عرموشية)محلة 322","Field visit","Yes","Almurbaa Area","منطقة المربعة","Site",null,"Yes",32,192,"No",0,0,"No",0,0,"No",0,0,{"$nulls":5},"Yes",null,null,32,0,0,0,0,0,192,0,0,0,0,0,0,0,0,192,0,84,108,0,0,0,0,0,0,0,0,0,0,0,0,0,0,0,0,0,0,0,0,0,0,"2014-09-01","No",null,"Privately owned ",null,null,"yes",null,"Yes we are allowed to upgrade the infrastructure, but upgrades are not being made (eg. cannot afford to, do not plan on staying here,do not want to make upgrades)","Yes, some","Very few (1%-10%)","No","Very few meet their needs (1-24%)","A majority (50-74%)","No",{"$nulls":4},"All or nearly all had enough water (91-100%) ","Most families (76%-90%)","Yes","Yes","No",{"$nulls":4},"NFI","Employment/livelihood ","Other","Cash","Stay in the current location","Some would return","Stay in the current location"]
[280602701,"2022-05-28","Salah al-Din","Samarra","Markaz Samarra","Urban","Neighborhood","20569-Hay Al-Khathraa Mahala 322","20569-حي الخضراء م(25-عرموشية)محلة 322","Field visit","Yes","Al-Khansaa Mosque","جامع الخنساء","Cluster",2,"Yes",10,60,"No",0,0,"No",0,0,"No",0,0,null,null,"Yes",null,"Yes",{"$nulls":3},10]
[280603001,"2022-05-31","Salah al-Din","Samarra","Markaz Samarra","Urban","Neighborhood","21590-Hay Salah Al-Din(Mahala 302)","21590-حي صلاح الدين محلة 302","Field visit","Yes","Al-Malab Street","شارع الملعب","Site",null,"Yes",18,108,"No",0,0,"No",0,0,"No",0,0,null,"Yes",{"$nulls":6},18,0,108,0,0,0,0,0,0,0,0,0,0,0,0,108,0,0,0,108,0,0,0,0,0,0,0,0,0,0,0,0,0,0,0,0,0,0,0,0,0,"2014-10-01","No",null,"Public-state/government/local authorities",null,null,"yes",null,"No they are not allowed to upgrade the infrastructure, but upgrades are being made anyway","No","A few (11%-25%) ","No","Very few meet their needs (1-24%)","Only a minority (25-49%) ","No",{"$nulls":4},"Most families (76%-90%)","Most families (76%-90%)","Yes","Yes","No",{"$nulls":4},"Drinking water","Shelter/Housing","Employment/livelihood ",null,"Stay in the current location","Some would return","Return to their place of origin"]
[280603002,"2022-05-31","Salah al-Din","Samarra","Markaz Samarra","Urban","Neighborhood","21590-Hay Salah Al-Din(Mahala 302)","21590-حي صلاح الدين محلة 302","Field visit","Yes","Al-Huda Mosque area","منطقة جامع الهدى","Site",null,"Yes",25,150,"No",0,0,"Yes",68,408,"No",0,0,null,"Yes",{"$nulls":6},25,0,150,0,0,0,0,0,0,0,0,0,0,0,0,150,0,0,0,150,0,0,0,0,0,0,0,0,0,0,0,0,0,0,0,0,0,0,0,0,0,"2014-09-01","No",null,"Public-state/government/local authorities",null,null,"yes",null,"No they are not allowed to upgrade the infrastructure, but upgrades are being made anyway","No","A few (11%-25%) ","No","Very few meet their needs (1-24%)","Very few (1-24%)","No",{"$nulls":4},"Most families (76%-90%)","Most families (76%-90%)","Yes","Yes","No",{"$nulls":4},"NFI","Shelter/Housing","Employment/livelihood ",null,"Stay in the current location","Most would still not return ","Stay in the current location"]
[280803101,"2022-05-26","Salah al-Din","Tikrit","Markaz Tikrit","Urban","Neighborhood","23918-Al-Mutaradah 204","23918-حي الشهداء مقاطعة 7-المطاردة محلة 204","Field visit","Yes","Al_shuda sector","قاطع الشهداء","Site",null,"Yes",29,174,"No",0,0,"No",0,0,"No",0,0,{"$nulls":5},"Yes",null,null,29,0,0,0,0,0,174,0,0,0,0,0,0,12,0,162,0,162,0,12,0,0,0,0,0,0,0,0,0,0,0,0,0,0,0,0,0,0,0,0,0,"2016-03-01","No",null,"Public-state/government/local authorities",null,null,"yes",null,"No ","No","The majority (61-100%) ","No","Very few meet their needs (1-24%)","None (0%)","No",{"$nulls":4},"Most families (76%-90%)","More than half (61%-75%) ","Yes","Yes","Yes",{"$nulls":4},"Drinking water","Shelter/Housing","NFI",null,"Undecided/ Unknown","Some would return","Undecided/ Unknown"]
[280807303,"2022-05-25","Salah al-Din","Tikrit","Markaz Tikrit","Urban","Neighborhood","27369-Hay Alfirdous","27369-حي الفردوس(البو عبيد)مقاطعة-5 محلة 428","Field visit","Yes","Hay altten","حي الطين","Cluster",6,"Yes",230,{"v":1380,"d":"1,380"},"Yes",605,{"v":3630,"d":"3,630"},"No",0,0,"No",0,0,null,"Yes",{"$nulls":6},835,0,{"v":5010,"d":"5,010"},0,0,0,0,0,0,0,0,0,0,0,0,{"v":1380,"d":"1,380"},0,0,{"v":1380,"d":"1,380"},0,0,0,0,0,0,0,0,{"v":3630,"d":"3,630"},0,0,0,0,0,0,0,0,0,0,0,{"v":3630,"d":"3,630"},0,"2016-03-01","No",null,"Public-state/government/local authorities",null,null,"yes",null,"No ","No","The majority (61-100%) ","No","Only a minority meet their needs (25-49%) ","Very few (1-24%)","Yes","yes",{"$nulls":3},"Around half (41%-60%) ","Around half (41%-60%)","Yes","Yes","No",{"$nulls":4},"Drinking water","Employment/livelihood ","Shelter/Housing",null,"Undecided/ Unknown","Some would return","Undecided/ Unknown"]
[280807304,"2022-05-25","Salah al-Din","Tikrit","Markaz Tikrit","Urban","Neighborhood","27369-Hay Alfirdous","27369-حي الفردوس(البو عبيد)مقاطعة-5 محلة 428","Field visit","Yes","School Hay alfrirdous","مدرسة حي الفردوس","Site",null,"Yes",11,66,"No",0,0,"No",0,0,"No",0,0,{"$nulls":3},"Yes",{"$nulls":4},11]
[280807201,"2022-05-17","Salah al-Din","Tikrit","Markaz Tikrit","Urban","Neighborhood","27368-Hay Alkahrbaa","27368-حي الكهرباء","Field visit","Yes","Hay Alkahrbaa","حي الكهرباء","Site",null,"Yes",14,84,"No",0,0,"No",0,0,"No",0,0,{"$nulls":6},"Yes",null,14]
[280803701,"2022-05-22","Salah al-Din","Tikrit","Markaz Tikrit","Urban","Neighborhood","22966-Hay Sheshen Mahal 408","22966-حي شيشين-مقاطعة 5-وادي شيشين محلة 408","Field visit","Yes","Sheshen street","شارع شيشين","Site",null,"Yes",7,42,"No",0,0,"No",0,0,"No",0,0,null,"Yes",{"$nulls":6},7]
[280802801,"2022-05-30","Salah al-Din","Tikrit","Markaz Tikrit","Urban","Neighborhood","23702-Qadisya 2 500 Area","23702-حي المطاردة(قادسية2)مقاطعة 7 محله 218 – قطعه 500","Field visit","Yes","Abo Aqrab","ابو عقرب","Site",null,"Yes",28,168,"No",0,0,"No",0,0,"No",0,0,{"$nulls":5},"Yes",null,null,28,0,0,0,0,0,168,0,0,0,0,0,0,0,0,168,0,0,0,168,0,0,0,0,0,0,0,0,0,0,0,0,0,0,0,0,0,0,0,0,0,"2016-02-01","No",null,"Privately owned ","yes",{"$nulls":3},"Yes they are allowed to upgrade the infrastructure, and upgrades are being made","Yes, all,","Some (26%-40%) ","No","Very few meet their needs (1-24%)","None (0%)","No",{"$nulls":4},"Most families (76%-90%)","Around half (41%-60%)","Yes","Yes","Yes",{"$nulls":4},"Drinking water","NFI","Food",null,"Undecided/ Unknown","Some would return","Undecided/ Unknown"]
[280901601,"2022-06-27","Salah al-Din","Tuz Khurmatu","Markaz Tuz Khurmatu","Urban","Neighborhood","25755-Markaz Tooz-Hay Imam Ahmed","25755-حي امام احمد","Field visit","Yes","Factories street","طريق المعامل","Cluster",10,"Yes",13,78,"No",0,0,"No",0,0,"No",0,0,null,"Yes",{"$nulls":6},13]
[280901701,"2022-06-13","Salah al-Din","Tuz Khurmatu","Markaz Tuz Khurmatu","Rural","Big Area/Sector","25748-Markaz Tooz-Jesir Dara","25748-جسر دارا","Field visit","Yes","Al_maamel houses","بيوت المعامل","Site",null,"Yes",12,72,"No",0,0,"No",0,0,"No",0,0,null,"Yes",{"$nulls":6},12]
[280901802,"2022-06-26","Salah al-Din","Tuz Khurmatu","Markaz Tuz Khurmatu","Rural","Village","20405-Sankur","20405-سنكور","Field visit","Yes","Al-Hayakl","الهياكل","Cluster",8,"Yes",8,48,"No",0,0,"No",0,0,"No",0,0,{"$nulls":5},"Yes",null,null,8]
[280902101,"2022-06-28","Salah al-Din","Tuz Khurmatu","Markaz Tuz Khurmatu","Urban","Neighborhood","20992-Tooz-Hay Al Teen","20992-حي الطين","Field visit","Yes","Shams Al-Iraq street","شارع شمس العراق","Cluster",42,"Yes",48,288,"No",0,0,"No",0,0,"No",0,0,null,"Yes",{"$nulls":6},48,0,288,0,0,0,0,0,0,0,0,0,42,0,0,246,0,132,156,0,0,0,0,0,0,0,0,0,0,0,0,0,0,0,0,0,0,0,0,0,0,"2014-08-01","No",null,"Public-state/government/local authorities",null,null,"yes",null,"Yes we are allowed to upgrade the infrastructure, but upgrades are not being made (eg. cannot afford to, do not plan on staying here,do not want to make upgrades)","Yes, some","Very few (1%-10%)","No","Very few meet their needs (1-24%)","A majority (50-74%)","No",{"$nulls":4},"More than half (61%-75%) ","All or nearly all were able to access  (91-100%) ","Yes","Yes","Yes",{"$nulls":4},"NFI","Food","Shelter/Housing",null,"Stay in the current location","Do not know (for KI)","Undecided/ Unknown"]
[131009201,"2022-06-22","Sulaymaniyah","Sulaymaniya","Markaz Sulaymaniya","Urban","Neighborhood","21021-Sabun karan Qt","21021-صابن كران","Field visit","Yes","Maryam Aladhraa Church","كنيسة مريم العذراء","Site",null,"Yes",6,36,"No",0,0,"No",0,0,"No",0,0,null,null,"Yes",{"$nulls":5},6]
[131008801,"2022-05-10","Sulaymaniyah","Sulaymaniya","Tanjaro","Urban","Neighborhood","24095-Rizgari-Arbat","24095-رزكارى","Field visit","Yes","Islamic building","بناية الاسلامية","Site",null,"Yes",14,84,"No",0,0,"No",0,0,"No",0,0,{"$nulls":5},"Yes",null,null,14]
[350200301,"2022-05-25","Thi-Qar","Al-Rifa'i","Markaz Al-Rifa'i","Urban","Big Area/Sector","24722-Hay Al Hussien","24722-حي الحسين","Field visit","Yes","Orphange building Safa'a Al Rahma","مجمع ايتام الرحمة","Site",null,"Yes",5,30,"No",0,0,"No",0,0,"No",0,0,{"$nulls":6},"Yes",null,5]
[350403601,"2022-06-30","Thi-Qar","Nassriya","Markaz Al-Nassriya","Urban","Neighborhood","23683-Hay Mehidiya","23683-حي المهيديه","By phone","Yes","Hay Mahidiya","المهيديه","Site",null,"Yes",10,60,"No",0,0,"No",0,0,"Yes",470,{"v":2820,"d":"2,820"},null,"Yes",{"$nulls":6},10]
[290602301,"2022-06-14","Wassit","Kut","Markaz Al-Kut","Urban","Neighborhood","24261-Hay Al-Hawaraa 3","24261-حي الحوراء الثالثة","Field visit","Yes","Sport city","المدينة الرياضية","Site",null,"Yes",56,336,"No",0,0,"No",0,0,"No",0,0,{"$nulls":5},"Yes",null,null,56,0,0,0,0,0,336,0,0,48,0,0,0,0,288,0,48,288,0,0,0,0,0,0,0,0,0,0,0,0,0,0,0,0,0,0,0,0,0,0,0,"2014-06-01","No",null,"Public-state/government/local authorities",null,null,"yes",null,"No ","No","None (0%)","No","Only a minority meet their needs (25-49%) ","Most or all (75% -100%)","Yes",null,null,"yes",null,"All or nearly all had enough water (91-100%) ","All or nearly all were able to access  (91-100%) ","No","Yes","Yes",{"$nulls":4},"Employment/livelihood ","NFI","Shelter/Housing",null,"Undecided/ Unknown","Some would return","Undecided/ Unknown"]

{"sheet":"District of Origin","index":1,"n_rows":187,"n_cols":47,"rows_kept":187,"merged":[[0,15,0,46]]}
[{"$nulls":15},"District of Origin (# of IDP individuals)"]
["SettlementID","Governorate","District","Sub-district","Location (En)","Location (Ar)","LocationType","PlaceType","Q6.1 SiteName (En)","Q6.1 SiteName (Ar)","Q6.2 Site Or Cluster","Q6.2 NumSitesInCluster","Q7 IDPs in Site","Q7.1 # of IDPFamilies"," # of IDP Individuals","Anbar - Al-Ka'im","Anbar - Al-Rutba","Anbar - Ana","Anbar - Falluja","Anbar - Haditha","Anbar - Heet","Anbar - Ramadi","Babylon - Al-Musayab","Baghdad - Abu Ghraib","Baghdad - Mahmoudiya","Diyala - Al-Khalis","Diyala - Al-Muqdadiya","Diyala - Ba'quba","Diyala - Khanaqin","Diyala - Kifri","Kirkuk - Al-Hawiga","Kirkuk - Dabes","Kirkuk - Daquq","Kirkuk - Kirkuk","Ninewa - Al-Ba'aj","Ninewa - Al-Hamdaniya","Ninewa - Hatra","Ninewa - Mosul","Ninewa - Sinjar","Ninewa - Telafar","Ninewa - Tilkaif","Salah al-Din - Al-Shirqat","Salah al-Din - Baiji","Salah al-Din - Balad","Salah al-Din - Samarra","Salah al-Din - Tikrit","Salah al-Din - Tuz Khurmatu"]
[2101047,"Anbar","Al-Ka'im","Al-Obiadi","34249-complex of Phosphate company","34249-المجمع السكني لموظفي شركة الفوسفات","Urban","Site","complex of Phosphate company","المجمع السكني لموظفي شركة الفوسفات","Site",null,"Yes",7,42,0,42,0,0,0,0,0,0,0,0,0,0,0,0,0,0,0,0,0,0,0,0,0,0,0,0,0,0,0,0,0,0]
[210201401,"Anbar","Al-Rutba","Markaz Al-Rutba","166-Hay Al Meethagh","166-حي الميثاق","Urban","Neighborhood","Hay Al Meethaq","حي الميثاق","Site",null,"Yes",17,102,0,102,0,0,0,0,0,0,0,0,0,0,0,0,0,0,0,0,0,0,0,0,0,0,0,0,0,0,0,0,0,0]
[210500201,"Anbar","Falluja","Al-Amirya","107-Al Amiriyah","107-العامرية ","Urban","Neighborhood","Al Amiriyah","العامرية","Cluster",2,"Yes",107,642,0,0,0,102,0,0,0,540,0,0,0,0,0,0,0,0,0,0,0,0,0,0,0,0,0,0,0,0,0,0,0,0]
[210503101,"Anbar","Falluja","Al-Amirya","21226-Albu Hori","21226-البوحوري","Rural","Village","AAF_Albu Hori","البو حوري","Cluster",2,"Yes",109,654,60,0,0,216,0,0,0,378,0,0,0,0,0,0,0,0,0,0,0,0,0,0,0,0,0,0,0,0,0,0,0,0]
[210504301,"Anbar","Falluja","Al-Amirya","21410-Albo Jaar","21410-البو جار ","Rural","Village","Beizeibz _Albu Jaar","البو جار","Site",null,"Yes",49,294,0,0,0,138,0,0,0,156,0,0,0,0,0,0,0,0,0,0,0,0,0,0,0,0,0,0,0,0,0,0,0,0]
[2105008,"Anbar","Falluja","Al-Amirya","23276-HTC","23276-مخيم المدينة السياحية الحبانية","Rural","Site","HTC","مخيم المدينة السياحية الحبانية","Site",null,"Yes",75,450,114,42,0,186,6,12,90,0,0,0,0,0,0,0,0,0,0,0,0,0,0,0,0,0,0,0,0,0,0,0,0,0]
[210501801,"Anbar","Falluja","Al-Amirya","26036-Al-Amirya-Albu Jasim","26036-البوجاسم","Rural","Village","AAF_Albu Jasim","البو جاسم","Site",null,"Yes",20,120,0,0,0,30,0,0,0,90,0,0,0,0,0,0,0,0,0,0,0,0,0,0,0,0,0,0,0,0,0,0,0,0]
[210501901,"Anbar","Falluja","Al-Amirya","26037-Al-Amirya-Albu Jwad","26037-البوجواد","Rural","Village","Beizeibz _Albu Jwad","البو جواد","Cluster",2,"Yes",147,882,0,0,0,36,0,0,0,846,0,0,0,0,0,0,0,0,0,0,0,0,0,0,0,0,0,0,0,0,0,0,0,0]
[2105069,"Anbar","Falluja","Al-Amirya","26084-Amriyat Al-Fallujah-sector1","26084-عامرية الفلوجة-القطاع الاول","Rural","Site","Amriyat Al-Fallujah-sector1","عامرية الفلوجة-القطاع الاول","Site",null,"Yes",103,618,0,0,0,360,0,0,0,258,0,0,0,0,0,0,0,0,0,0,0,0,0,0,0,0,0,0,0,0,0,0,0,0]
[2105073,"Anbar","Falluja","Al-Amirya","26085-Amriyat Al-Fallujah-sector2","26085-عامرية الفلوجة-القطاع الثاني","Rural","Site","Amriyat Al-Fallujah-sector2","عامرية الفلوجة-القطاع الثاني","Site",null,"Yes",215,{"v":1290,"d":"1,290"},0,0,0,786,0,0,0,504,0,0,0,0,0,0,0,0,0,0,0,0,0,0,0,0,0,0,0,0,0,0,0,0]
[210507601,"Anbar","Falluja","Al-Amirya","26087-Al-Amirya-Albu Salman","26087-البوسليمان","Rural","Village","Beizeibz _Albu Salman","البو سليمان","Cluster",2,"Yes",150,900,0,0,0,360,0,0,0,540,0,0,0,0,0,0,0,0,0,0,0,0,0,0,0,0,0,0,0,0,0,0,0,0]
[2105075,"Anbar","Falluja","Al-Amirya","26088-Ahl Al-Ramadi 74","26088-اهل الرمادي 74","Rural","Site","Ahl Al-Ramadi 74","اهل الرمادي 74","Site",null,"Yes",68,408,0,0,0,408,0,0,0,0,0,0,0,0,0,0,0,0,0,0,0,0,0,0,0,0,0,0,0,0,0,0,0,0]
[210507801,"Anbar","Falluja","Al-Amirya","26089-Albu Dhaher-Albu Dhaher","26089-البوظاهر","Rural","Village","Albu Dhaher","البوظاهر","Site",null,"Yes",18,108,0,0,0,18,0,0,0,90,0,0,0,0,0,0,0,0,0,0,0,0,0,0,0,0,0,0,0,0,0,0,0,0]
[210507001,"Anbar","Falluja","Al-Amirya","26091-Al-Amirya-Al Hmedin","26091-الحميدين","Rural","Village","AAF_Al Hmedin","الحميدين","Site",null,"Yes",108,648,0,0,0,90,0,0,0,558,0,0,0,0,0,0,0,0,0,0,0,0,0,0,0,0,0,0,0,0,0,0,0,0]
[210507101,"Anbar","Falluja","Al-Amirya","26092-Al-Amirya-Al Mouilha","26092-المويلحة","Rural","Village","Beizeibz _Al Mouilha","المويلحة","Cluster",2,"Yes",265,{"v":1590,"d":"1,590"},0,0,0,150,0,0,0,{"v":1440,"d":"1,440"},0,0,0,0,0,0,0,0,0,0,0,0,0,0,0,0,0,0,0,0,0,0,0,0]
[210507701,"Anbar","Falluja","Al-Amirya","26093-Al-Amirya-Tal Ghatas","26093-تل غطاس","Rural","Village","AAF_Tal Ghatas","تل غطاس","Site",null,"Yes",34,204,0,0,0,0,0,0,0,204,0,0,0,0,0,0,0,0,0,0,0,0,0,0,0,0,0,0,0,0,0,0,0,0]
[2105082,"Anbar","Falluja","Al-Amirya","27246-AAF","27246-مخيم عامرية الفلوجة","Rural","Site","AAF","مخيم عامرية الفلوجة","Site",null,"Yes",323,{"v":1938,"d":"1,938"},180,30,54,{"v":1116,"d":"1,116"},18,24,270,246,0,0,0,0,0,0,0,0,0,0,0,0,0,0,0,0,0,0,0,0,0,0,0,0]
[2105101,"Anbar","Falluja","Al-Amirya","33939-Amriyat Al-Fallujah sector 4","33939-القطاع الرابع","Rural","Site","Amriyat Al-Fallujah sector 4","القطاع الرابع","Site",null,"Yes",129,774,0,0,0,408,0,0,0,366,0,0,0,0,0,0,0,0,0,0,0,0,0,0,0,0,0,0,0,0,0,0,0,0]
[2105102,"Anbar","Falluja","Al-Amirya","33940-Amriyat Al-Fallujahsector 3","33940-القطاع الثالث","Rural","Site","Amriyat Al-Fallujahsector 3","القطاع الثالث","Site",null,"Yes",106,636,0,0,0,210,0,0,0,426,0,0,0,0,0,0,0,0,0,0,0,0,0,0,0,0,0,0,0,0,0,0,0,0]
[2105103,"Anbar","Falluja","Al-Amirya","33941-Amriyat Al-Fallujahsector 50","33941-قطاع الخمسين","Rural","Site","Amriyat Al-Fallujahsector 50","قطاع الخمسين","Site",null,"Yes",83,498,0,0,0,18,0,0,0,480,0,0,0,0,0,0,0,0,0,0,0,0,0,0,0,0,0,0,0,0,0,0,0,0]
[210511301,"Anbar","Falluja","Al-Amirya","34290-Hay  Al-Salam","34290-حي السلام","Urban","Neighborhood","Hay Al-Salam","حي السلام","Site",null,"Yes",122,732,0,0,0,522,0,0,0,210,0,0,0,0,0,0,0,0,0,0,0,0,0,0,0,0,0,0,0,0,0,0,0,0]
[210511401,"Anbar","Falluja","Al-Amirya","34291-Hay Al-Maleab","34291-حي الملعب","Urban","Neighborhood","Hay Al-Maleab","حي الملعب","Site",null,"Yes",220,{"v":1320,"d":"1,320"},0,780,0,120,0,0,0,420,0,0,0,0,0,0,0,0,0,0,0,0,0,0,0,0,0,0,0,0,0,0,0,0]
[210505101,"Anbar","Falluja","Al-Garma","142-Al-shahabi-2","142-الشهابي الثانية","Rural","Village","Dawr watiat alkulfa","دور واطئة الكلفه","Site",null,"Yes",85,510,0,0,0,480,0,0,0,0,30,0,0,0,0,0,0,0,0,0,0,0,0,0,0,0,0,0,0,0,0,0,0,0]
[2105111,"Anbar","Falluja","Markaz Falluja","34228-low-costs houses/Habbaniah","34228-دور واطئه الكلفه \\الحبانيه","Peri-urban","Site","low-costs houses/Habbaniah","دور واطئه الكلفه \\الحبانيه","Cluster",2,"Yes",250,{"v":1500,"d":"1,500"},0,0,0,{"v":1500,"d":"1,500"},0,0,0,0,0,0,0,0,0,0,0,0,0,0,0,0,0,0,0,0,0,0,0,0,0,0,0,0]
[2108005,"Anbar","Ramadi","Markaz Ramadi","23889-7 Killo-al-mojamaa al-sakany","23889-السبعة كيلو-المجمع السكني","Urban","Site","7 Killo-al-mojamaa al-sakany","السبعة كيلو-المجمع السكني","Site",null,"Yes",550,{"v":3300,"d":"3,300"},462,864,138,0,0,{"v":1404,"d":"1,404"},432,0,0,0,0,0,0,0,0,0,0,0,0,0,0,0,0,0,0,0,0,0,0,0,0,0]
[2108068,"Anbar","Ramadi","Markaz Ramadi","33826-AL-Karama complex","33826-مجمع الكرامه","Urban","Site","AL-Karama complex","مجمع الكرامه","Site",null,"Yes",153,918,258,0,0,246,0,192,222,0,0,0,0,0,0,0,0,0,0,0,0,0,0,0,0,0,0,0,0,0,0,0,0,0]
[2108092,"Anbar","Ramadi","Markaz Ramadi","34178-9 Kilo","34178-9 كيلو","Urban","Site","9 Kilo","9 كيلو","Site",null,"Yes",64,384,384,0,0,0,0,0,0,0,0,0,0,0,0,0,0,0,0,0,0,0,0,0,0,0,0,0,0,0,0,0,0,0]
[220203701,"Babylon","Al-Musayab","Markaz Al-Musayab","24983-Hay Alaskary-AlThaghet","24983-حي العسكري-الضغط","Urban","Neighborhood","under the pressure lines","تحت الضغط","Site",null,"Yes",30,180,0,0,0,0,0,0,0,180,0,0,0,0,0,0,0,0,0,0,0,0,0,0,0,0,0,0,0,0,0,0,0,0]
[230100301,"Baghdad","Abu Ghraib","Khan Dhari","24047-Abo Moniaser","24047-ابو منيصير","Urban","Neighborhood","Abu moneseer","ابو منيصير","Site",null,"Yes",34,204,12,18,12,42,0,0,60,18,0,42,0,0,0,0,0,0,0,0,0,0,0,0,0,0,0,0,0,0,0,0,0,0]
[230107301,"Baghdad","Abu Ghraib","Markaz Abu Ghraib","31713-Shuhada Markza-Shuhadda the first","31713-الشهداءالمركز-شهداء الاولى","Urban","Neighborhood","Al shuhadaa al awla","الشهداء الاولى","Site",null,"Yes",19,114,114,0,0,0,0,0,0,0,0,0,0,0,0,0,0,0,0,0,0,0,0,0,0,0,0,0,0,0,0,0,0,0]
[230107402,"Baghdad","Abu Ghraib","Markaz Abu Ghraib","31714-Shuhada Markza-Shuhdda the second","31714-الشهداء المركز-شهداء الثانية","Urban","Neighborhood","Alshuhadaa 2D","الشهداء  2 دي","Site",null,"Yes",59,354,0,0,0,354,0,0,0,0,0,0,0,0,0,0,0,0,0,0,0,0,0,0,0,0,0,0,0,0,0,0,0,0]
[230107403,"Baghdad","Abu Ghraib","Markaz Abu Ghraib","31714-Shuhada Markza-Shuhdda the second","31714-الشهداء المركز-شهداء الثانية","Urban","Neighborhood","Alshuhadaa-2-A","شهداء 2 اي","Site",null,"Yes",86,516,180,0,0,336,0,0,0,0,0,0,0,0,0,0,0,0,0,0,0,0,0,0,0,0,0,0,0,0,0,0,0,0]
[230107404,"Baghdad","Abu Ghraib","Markaz Abu Ghraib","31714-Shuhada Markza-Shuhdda the second","31714-الشهداء المركز-شهداء الثانية","Urban","Neighborhood","Alshuhadaa -2-B","شهداء 2 بي","Site",null,"Yes",41,246,0,0,0,156,0,0,90,0,0,0,0,0,0,0,0,0,0,0,0,0,0,0,0,0,0,0,0,0,0,0,0,0]
[230107405,"Baghdad","Abu Ghraib","Markaz Abu Ghraib","31714-Shuhada Markza-Shuhdda the second","31714-الشهداء المركز-شهداء الثانية","Urban","Neighborhood","Alshuhadaa 2-C","شهداء 2 سي","Site",null,"Yes",53,318,0,0,0,150,0,0,0,144,0,0,0,0,0,0,0,0,0,0,0,0,0,0,0,0,0,0,24,0,0,0,0,0]
[230109601,"Baghdad","Abu Ghraib","Markaz Abu Ghraib","34292-Hamed Shaban","34292-حميد شعبان","Peri-urban","Neighborhood","Harmed shaban","حميد شعبان","Site",null,"Yes",44,264,0,0,0,126,0,0,0,138,0,0,0,0,0,0,0,0,0,0,0,0,0,0,0,0,0,0,0,0,0,0,0,0]
[2305136,"Baghdad","Al Resafa","9 Nissan","25969-Zayona","25969-مخيم زيونة","Urban","Site","Zayona","مخيم زيونة","Site",null,"Yes",93,558,0,0,0,0,0,0,0,0,0,0,0,0,0,0,0,0,0,0,0,0,336,0,90,0,0,108,0,24,0,0,0,0]
[230701001,"Baghdad","Karkh","Al-Rasheed","25221-Al Forat-893","25221-الفرات-893","Urban","Neighborhood","Nahrain Complex","مجمع نهرين","Site",null,"Yes",20,120,60,0,0,0,0,0,60,0,0,0,0,0,0,0,0,0,0,0,0,0,0,0,0,0,0,0,0,0,0,0,0,0]
[230802801,"Baghdad","Mada'in","Al-Jisr","7547-Al Wardia","7547-الوردية","Urban","Big Area/Sector","IDP Site in Wardiya","مجمع النازحين في الوردية","Site",null,"Yes",18,108,0,0,0,0,0,0,0,0,0,0,0,0,0,0,0,0,0,0,0,0,0,0,0,0,0,0,0,0,108,0,0,0]
[230805701,"Baghdad","Mada'in","Nahrawan","34160-Al-Ahed village ","34160-قرية العهد","Rural","Village","Al Ahed village ( AL Bazel street )","قرية العهد (بالقرب من شارع البزل)","Site",null,"Yes",35,210,0,0,0,0,0,0,0,0,0,0,0,0,0,210,0,0,0,0,0,0,0,0,0,0,0,0,0,0,0,0,0,0]
[230900101,"Baghdad","Mahmoudiya","Al-Latifya","23618-14 Tamooz","23618-حي 14 تموز","Urban","Neighborhood","Tajawz Al bazal","تجاوز البزل","Site",null,"Yes",100,600,0,0,0,0,0,0,0,600,0,0,0,0,0,0,0,0,0,0,0,0,0,0,0,0,0,0,0,0,0,0,0,0]
[230900503,"Baghdad","Mahmoudiya","Al-Latifya","25150-Al Latefia-Al Qadessia","25150-اللطيفية-حي القادسية","Urban","Neighborhood","Qadisiyyah 112 A","القادسية 112 اي","Site",null,"Yes",65,390,0,0,0,0,0,0,0,390,0,0,0,0,0,0,0,0,0,0,0,0,0,0,0,0,0,0,0,0,0,0,0,0]
[230900502,"Baghdad","Mahmoudiya","Al-Latifya","25150-Al Latefia-Al Qadessia","25150-اللطيفية-حي القادسية","Urban","Neighborhood","Qadisiyyah 112 b","القادسية 112 بي","Site",null,"Yes",56,336,0,0,0,0,0,0,0,336,0,0,0,0,0,0,0,0,0,0,0,0,0,0,0,0,0,0,0,0,0,0,0,0]
[230900501,"Baghdad","Mahmoudiya","Al-Latifya","25150-Al Latefia-Al Qadessia","25150-اللطيفية-حي القادسية","Urban","Neighborhood","Qadisiyyah 112 c","القادسية 112 سي","Site",null,"Yes",128,768,0,0,0,0,0,0,0,768,0,0,0,0,0,0,0,0,0,0,0,0,0,0,0,0,0,0,0,0,0,0,0,0]
[230900803,"Baghdad","Mahmoudiya","Al-Latifya","25152-Kilo 18","25152-كيلو 18","Rural","Big Area/Sector","Al-Juruf","الجرف","Site",null,"Yes",71,426,0,0,0,0,0,0,0,426,0,0,0,0,0,0,0,0,0,0,0,0,0,0,0,0,0,0,0,0,0,0,0,0]
[230900804,"Baghdad","Mahmoudiya","Al-Latifya","25152-Kilo 18","25152-كيلو 18","Rural","Big Area/Sector","Al-Shooban","الشوبان","Site",null,"Yes",81,486,0,0,0,0,0,0,0,486,0,0,0,0,0,0,0,0,0,0,0,0,0,0,0,0,0,0,0,0,0,0,0,0]
[230900805,"Baghdad","Mahmoudiya","Al-Latifya","25152-Kilo 18","25152-كيلو 18","Rural","Big Area/Sector","Al-Eskandaryea","الاسكندرية","Site",null,"Yes",71,426,0,0,0,0,0,0,0,426,0,0,0,0,0,0,0,0,0,0,0,0,0,0,0,0,0,0,0,0,0,0,0,0]
[230900806,"Baghdad","Mahmoudiya","Al-Latifya","25152-Kilo 18","25152-كيلو 18","Rural","Big Area/Sector","Al- Erwaiy","الاروائي","Site",null,"Yes",42,252,0,0,0,0,0,0,0,252,0,0,0,0,0,0,0,0,0,0,0,0,0,0,0,0,0,0,0,0,0,0,0,0]
[230900807,"Baghdad","Mahmoudiya","Al-Latifya","25152-Kilo 18","25152-كيلو 18","Rural","Big Area/Sector","Harmed Abtan","حميد عبطان","Site",null,"Yes",70,420,0,0,0,0,0,0,0,420,0,0,0,0,0,0,0,0,0,0,0,0,0,0,0,0,0,0,0,0,0,0,0,0]
[230900801,"Baghdad","Mahmoudiya","Al-Latifya","25152-Kilo 18","25152-كيلو 18","Rural","Big Area/Sector","Al Qamishly","القامشلي","Site",null,"Yes",79,474,0,0,0,0,0,0,0,474,0,0,0,0,0,0,0,0,0,0,0,0,0,0,0,0,0,0,0,0,0,0,0,0]
[230900802,"Baghdad","Mahmoudiya","Al-Latifya","25152-Kilo 18","25152-كيلو 18","Rural","Big Area/Sector","Al Sarhaan","السرحان","Site",null,"Yes",47,282,0,0,0,0,0,0,0,282,0,0,0,0,0,0,0,0,0,0,0,0,0,0,0,0,0,0,0,0,0,0,0,0]
[230903001,"Baghdad","Mahmoudiya","Al-Latifya","7733-Hay Al Zuhoor","7733-حي الزهور","Urban","Neighborhood","Tajawz Al Zohor","تجاوز الزهور","Site",null,"Yes",121,726,0,0,0,0,0,0,0,726,0,0,0,0,0,0,0,0,0,0,0,0,0,0,0,0,0,0,0,0,0,0,0,0]
[230910501,"Baghdad","Mahmoudiya","Al-Yousifya","34229-Abu jaishy village","34229-قرية ابو جيشي","Rural","Village","Abu jaishy village","قرية ابو جيشي","Site",null,"Yes",97,582,0,0,0,0,0,0,0,582,0,0,0,0,0,0,0,0,0,0,0,0,0,0,0,0,0,0,0,0,0,0,0,0]
[230910601,"Baghdad","Mahmoudiya","Al-Yousifya","34230-Ahmed Abdullah village","34230-قرية احمد عبد الله","Rural","Village","Ahmed and Allah village","قرية احمد عبد الله","Site",null,"Yes",108,648,0,0,0,0,0,0,0,648,0,0,0,0,0,0,0,0,0,0,0,0,0,0,0,0,0,0,0,0,0,0,0,0]
[110200803,"Dahuk","Dahuk","Zawita","8538-Banye","8538-باني","Rural","Big Area/Sector","Baniye UB left side of baniye","هياكل الجانب الايسر من باني","Cluster",7,"Yes",15,90,0,0,0,0,0,0,0,0,0,0,0,0,0,0,0,0,0,0,0,0,0,0,0,90,0,0,0,0,0,0,0,0]
[110200802,"Dahuk","Dahuk","Zawita","8538-Banye","8538-باني","Rural","Big Area/Sector","Baniye UB right side of baniye ending","هياكل باني الجانب الايمن من نهاية باني","Cluster",24,"Yes",47,282,0,0,0,0,0,0,0,0,0,0,0,0,0,0,0,0,0,0,0,0,0,0,0,282,0,0,0,0,0,0,0,0]
[110302501,"Dahuk","Sumel","Fayida","8369-Shariya","8369-شاريا","Urban","Big Area/Sector","Old Rikava village tents and mud/block structure house in the South Rikava","خيم و منازل من طين و كتل من بلوك في الجنوب قرية ركافا قديمة","Cluster",16,"Yes",17,102,0,0,0,0,0,0,0,0,0,0,0,0,0,0,0,0,0,0,0,0,0,0,0,102,0,0,0,0,0,0,0,0]
[110302503,"Dahuk","Sumel","Fayida","8369-Shariya","8369-شاريا","Urban","Big Area/Sector","Old Rikava village UB in the South rikava","هياكل قرية  ركافا قديمة في الجنوب ركافا","Cluster",14,"Yes",25,150,0,0,0,0,0,0,0,0,0,0,0,0,0,0,0,0,0,0,0,48,0,0,0,102,0,0,0,0,0,0,0,0]
[110302504,"Dahuk","Sumel","Fayida","8369-Shariya","8369-شاريا","Urban","Big Area/Sector","Old Rikava village mud and block structure house in the South 3","منازل من طين و كتل من بلوك في الجنوب قرية ركافا قديمة ٣","Cluster",22,"Yes",24,144,0,0,0,0,0,0,0,0,0,0,0,0,0,0,0,0,0,0,0,144,0,0,0,0,0,0,0,0,0,0,0,0]
[110302520,"Dahuk","Sumel","Fayida","8369-Shariya","8369-شاريا","Urban","Big Area/Sector","Gre pane tents and mud/ block structure house behind shariya camp","كرى بانى خيم و منازل من طين و من كتل بلوك خلف شاريا كمب","Cluster",33,"Yes",45,270,0,0,0,0,0,0,0,0,0,0,0,0,0,0,0,0,0,0,0,198,0,0,0,72,0,0,0,0,0,0,0,0]
[110302521,"Dahuk","Sumel","Fayida","8369-Shariya","8369-شاريا","Urban","Big Area/Sector","Gre pane tents and mud/ block structure house behind shariya camp2","كرى بانى خيم و منازل من طين و من كتل بلوك خلف شاريا كمب ٢","Cluster",80,"Yes",98,588,0,0,0,0,0,0,0,0,0,0,0,0,0,0,0,0,0,0,0,390,0,0,0,198,0,0,0,0,0,0,0,0]
[110302522,"Dahuk","Sumel","Fayida","8369-Shariya","8369-شاريا","Urban","Big Area/Sector","Gre pane tents and mud/ block structure house behind shariya camp 3","كرى بانى خيم و منازل من طين و كتل من بلوك خلف شاريا كمب ٣","Cluster",120,"Yes",145,870,0,0,0,0,0,0,0,0,0,0,0,0,0,0,0,0,0,0,0,540,0,0,0,330,0,0,0,0,0,0,0,0]
[110302530,"Dahuk","Sumel","Fayida","8369-Shariya","8369-شاريا","Urban","Big Area/Sector","Tents & Block structures of shariya village","خيم و بيوت مصنوعة من كتل بلوك في قرية شاريا","Cluster",51,"Yes",54,324,0,0,0,0,0,0,0,0,0,0,0,0,0,0,0,0,0,0,0,96,0,0,0,228,0,0,0,0,0,0,0,0]
[110302538,"Dahuk","Sumel","Fayida","8369-Shariya","8369-شاريا","Urban","Big Area/Sector","Shariya Tents In front of kelabadre","خيم شاريا مقبل كيلة بدري","Cluster",18,"Yes",20,120,0,0,0,0,0,0,0,0,0,0,0,0,0,0,0,0,0,0,0,54,0,0,0,66,0,0,0,0,0,0,0,0]
[110302526,"Dahuk","Sumel","Fayida","8369-Shariya","8369-شاريا","Urban","Big Area/Sector","Shariya UB north grepane village","هياكل شمال قرية كري باني","Cluster",14,"Yes",22,132,0,0,0,0,0,0,0,0,0,0,0,0,0,0,0,0,0,0,0,0,0,0,0,132,0,0,0,0,0,0,0,0]
[110302529,"Dahuk","Sumel","Fayida","8369-Shariya","8369-شاريا","Urban","Big Area/Sector","Shariya Mud & block structures in kelabadre village","بيوت طينية و مصنوعة من كتل بلوك قرية كيلة بدري","Cluster",48,"Yes",48,288,0,0,0,0,0,0,0,0,0,0,0,0,0,0,0,0,0,0,0,84,0,0,0,204,0,0,0,0,0,0,0,0]
[110302528,"Dahuk","Sumel","Fayida","8369-Shariya","8369-شاريا","Urban","Big Area/Sector","Sharya UB kela badre village","هياكل شاريا قرية كيلة بدري","Cluster",19,"Yes",36,216,0,0,0,0,0,0,0,0,0,0,0,0,0,0,0,0,0,0,0,120,0,0,0,96,0,0,0,0,0,0,0,0]
[110302557,"Dahuk","Sumel","Fayida","8369-Shariya","8369-شاريا","Urban","Big Area/Sector","Skekh khdri west of Dasan school","شيخ خدري غرب مدرسة داسن","Cluster",64,"Yes",69,414,0,0,0,0,0,0,0,0,0,0,0,0,0,0,0,0,0,0,0,168,0,0,0,246,0,0,0,0,0,0,0,0]
[110302518,"Dahuk","Sumel","Fayida","8369-Shariya","8369-شاريا","Urban","Big Area/Sector","Hawari tents and mud/block structure house in the North East","هويري خيم و منازل من طين و من كتل بلوك في الشمال الشرقي","Cluster",70,"Yes",76,456,0,0,0,0,0,0,0,0,0,0,0,0,0,0,0,0,0,0,0,144,0,0,0,312,0,0,0,0,0,0,0,0]
[110302551,"Dahuk","Sumel","Fayida","8369-Shariya","8369-شاريا","Urban","Big Area/Sector","Sina village near IDP'S School","قرية سينا قرب مدرسة سينا للنازحين","Cluster",30,"Yes",37,222,0,0,0,0,0,0,0,0,0,0,0,0,0,0,0,0,0,0,0,78,0,0,0,144,0,0,0,0,0,0,0,0]
[110302552,"Dahuk","Sumel","Fayida","8369-Shariya","8369-شاريا","Urban","Big Area/Sector","Shekh khidre village","قرية شيخ خدري","Cluster",41,"Yes",60,360,0,0,0,0,0,0,0,0,0,0,0,0,0,0,0,0,0,0,0,324,0,0,0,36,0,0,0,0,0,0,0,0]
[110302558,"Dahuk","Sumel","Fayida","8369-Shariya","8369-شاريا","Urban","Big Area/Sector","West of Khrshniya near School building","غرب خرشنيا قرب بناية المدرسة","Cluster",51,"Yes",51,306,0,0,0,0,0,0,0,0,0,0,0,0,0,0,0,0,0,0,0,0,0,0,0,306,0,0,0,0,0,0,0,0]
[110302555,"Dahuk","Sumel","Fayida","8369-Shariya","8369-شاريا","Urban","Big Area/Sector","Shekh khdri near Dasan School","شيخ خدري قرب مدرسة داسن","Cluster",38,"Yes",52,312,0,0,0,0,0,0,0,0,0,0,0,0,0,0,0,0,0,0,0,42,0,0,0,270,0,0,0,0,0,0,0,0]
[110302513,"Dahuk","Sumel","Fayida","8369-Shariya","8369-شاريا","Urban","Big Area/Sector","Kalabadre tents and mud/ block structure house near mizgen school","كلابدري خيم  و منازل من طين و  كتل من بلوك قرب مدرسة مزكين","Cluster",23,"Yes",23,138,0,0,0,0,0,0,0,0,0,0,0,0,0,0,0,0,0,0,0,24,0,0,0,114,0,0,0,0,0,0,0,0]
[110302517,"Dahuk","Sumel","Fayida","8369-Shariya","8369-شاريا","Urban","Big Area/Sector","Kalabadre UB and tents on shariya Street","كلابدري هياكل و خيم  علي شارع شاريا","Cluster",15,"Yes",15,90,0,0,0,0,0,0,0,0,0,0,0,0,0,0,0,0,0,0,0,30,0,0,0,60,0,0,0,0,0,0,0,0]
[110302548,"Dahuk","Sumel","Fayida","8369-Shariya","8369-شاريا","Urban","Big Area/Sector","East of Sina village","شرق قرية سينا","Cluster",14,"Yes",29,174,0,0,0,0,0,0,0,0,0,0,0,0,0,0,0,0,0,0,0,54,0,0,0,120,0,0,0,0,0,0,0,0]
[110302549,"Dahuk","Sumel","Fayida","8369-Shariya","8369-شاريا","Urban","Big Area/Sector","Sina village near Cemetery","قرية سينا قريبة من المقبرة","Cluster",27,"Yes",40,240,0,0,0,0,0,0,0,0,0,0,0,0,0,0,0,0,0,0,0,138,0,0,0,102,0,0,0,0,0,0,0,0]
[110302550,"Dahuk","Sumel","Fayida","8369-Shariya","8369-شاريا","Urban","Big Area/Sector","Sina village near Sina School","قرية سينا قرب مدرسة سينا","Cluster",31,"Yes",59,354,0,0,0,0,0,0,0,0,0,0,0,0,0,0,0,0,0,0,0,84,0,0,0,270,0,0,0,0,0,0,0,0]
[110302512,"Dahuk","Sumel","Fayida","8369-Shariya","8369-شاريا","Urban","Big Area/Sector","Shariya Village UB","هياكل قرية شاريا","Cluster",45,"Yes",110,660,0,0,0,0,0,0,0,0,0,0,0,0,0,0,0,0,0,0,0,120,0,0,0,540,0,0,0,0,0,0,0,0]
[110302506,"Dahuk","Sumel","Fayida","8369-Shariya","8369-شاريا","Urban","Big Area/Sector","Old Kher shina village UB in the North west","هياكل قرية خرشينة قديمة في الشمال غربي","Cluster",8,"Yes",18,108,0,0,0,0,0,0,0,0,0,0,0,0,0,0,0,0,0,0,0,36,0,0,0,72,0,0,0,0,0,0,0,0]
[110302505,"Dahuk","Sumel","Fayida","8369-Shariya","8369-شاريا","Urban","Big Area/Sector","Old kher shina village tents and mud/block structure house in the north west","خيم و منازل من طين و من كتل بلوك في الشمال غربي قرية خرشينة قديمة","Cluster",30,"Yes",32,192,0,0,0,0,0,0,0,0,0,0,0,0,0,0,0,0,0,0,0,36,0,0,0,156,0,0,0,0,0,0,0,0]
[110302507,"Dahuk","Sumel","Fayida","8369-Shariya","8369-شاريا","Urban","Big Area/Sector","Old Kher shina village UB in the north west 2","هياكل قرية خرشينة قديمة في الشمال غربي ٢","Cluster",9,"Yes",17,102,0,0,0,0,0,0,0,0,0,0,0,0,0,0,0,0,0,0,0,30,0,0,0,72,0,0,0,0,0,0,0,0]
[110302901,"Dahuk","Sumel","Markaz Sumel","24596-Tanahi","24596-تناهي","Urban","Neighborhood","Tanahi Near Nawro city","تناهي قريبة من نورو ستي","Cluster",14,"Yes",20,120,0,0,0,0,0,0,0,0,0,0,0,0,0,0,0,0,0,0,0,30,0,0,0,90,0,0,0,0,0,0,0,0]
[110304705,"Dahuk","Sumel","Markaz Sumel","27124-New Zinya","27124-زينيا جديدة","Rural","Village","New zainya Tent & mud & block made In front of khanke casino","خيم و بيوت مصنوعة من طين و كتل بلوك في زينيات جديدة مقابل خانكي كازينو","Cluster",19,"Yes",25,150,0,0,0,0,0,0,0,0,0,0,0,0,0,0,0,0,0,0,0,0,0,0,0,150,0,0,0,0,0,0,0,0]
[110304709,"Dahuk","Sumel","Markaz Sumel","27124-New Zinya","27124-زينيا جديدة","Rural","Village","New zinya tents and block structure house near Bewar shop","زينيا جديدة خيم و كتل من بلوك منازل قرب اسواق بيوار","Cluster",20,"Yes",23,138,0,0,0,0,0,0,0,0,0,0,0,0,0,0,0,0,0,0,0,0,0,0,0,138,0,0,0,0,0,0,0,0]
[110304714,"Dahuk","Sumel","Markaz Sumel","27124-New Zinya","27124-زينيا جديدة","Rural","Village","New zinya tents and mud/  block structure house south zinya","زينيا جديدة خيم و منازل من طين و كتل من بلوك جنوب زينيا","Cluster",14,"Yes",18,108,0,0,0,0,0,0,0,0,0,0,0,0,0,0,0,0,0,0,0,0,0,0,0,108,0,0,0,0,0,0,0,0]
[110304706,"Dahuk","Sumel","Markaz Sumel","27124-New Zinya","27124-زينيا جديدة","Rural","Village","Tents & block structures of new zainya Between communications tower & khanke camp","خيم بيوت مصنوعة من كتل بلوك زينيات جديدة مابين برج الاتصالات و مخيم خانكي","Cluster",22,"Yes",26,156,0,0,0,0,0,0,0,0,0,0,0,0,0,0,0,0,0,0,0,0,0,0,0,156,0,0,0,0,0,0,0,0]
[110304704,"Dahuk","Sumel","Markaz Sumel","27124-New Zinya","27124-زينيا جديدة","Rural","Village","Tents &block structures Between Football yard & Electricgenerator of new zainya","خيم و بيوت مصنعة من كتل بلوك مابين ساحة كرة القدم و مولدة كهرباء زينيات جديدة","Cluster",35,"Yes",37,222,0,0,0,0,0,0,0,0,0,0,0,0,0,0,0,0,0,0,0,0,0,0,0,222,0,0,0,0,0,0,0,0]
[110304710,"Dahuk","Sumel","Markaz Sumel","27124-New Zinya","27124-زينيا جديدة","Rural","Village","New zinya tents and mud/ block structure house close to GYM","زينيا جديدة خيم و منازل من طين و كتل من بلوك قرب قاعة رياضة","Cluster",15,"Yes",15,90,0,0,0,0,0,0,0,0,0,0,0,0,0,0,0,0,0,0,0,0,0,0,0,90,0,0,0,0,0,0,0,0]
[110304719,"Dahuk","Sumel","Markaz Sumel","27124-New Zinya","27124-زينيا جديدة","Rural","Village","New zinya tents and mud/ block structure house close khanki hall","زينيا جديدة خيم و منازل من طين و كتل من بلوك قرب قاعة خانكي","Cluster",20,"Yes",25,150,0,0,0,0,0,0,0,0,0,0,0,0,0,0,0,0,0,0,0,0,0,0,0,150,0,0,0,0,0,0,0,0]
[110304717,"Dahuk","Sumel","Markaz Sumel","27124-New Zinya","27124-زينيا جديدة","Rural","Village","New zinya tents and mud/ block structure house behind khanki camp wall 2","زينيا جديدة خيم و منازل من طين و كتل من بلوك خلف جدار خانني كمب ٢","Cluster",15,"Yes",18,108,0,0,0,0,0,0,0,0,0,0,0,0,0,0,0,0,0,0,0,0,0,0,0,108,0,0,0,0,0,0,0,0]
[110304716,"Dahuk","Sumel","Markaz Sumel","27124-New Zinya","27124-زينيا جديدة","Rural","Village","New zinya tents and mud/ block structure house behind khanki camp wall","زينيا جديدة خيم و منازل من طين و كتل من بلوك خلف جدار خانكى كمب","Cluster",17,"Yes",18,108,0,0,0,0,0,0,0,0,0,0,0,0,0,0,0,0,0,0,0,0,0,0,0,108,0,0,0,0,0,0,0,0]
[110304711,"Dahuk","Sumel","Markaz Sumel","27124-New Zinya","27124-زينيا جديدة","Rural","Village","New zinya tents and mud/ block structure house behind football yard","زينيا جديدة خيم و منازل من طين و كتل من بلوك خلف ملعب كرة قدم","Cluster",26,"Yes",28,168,0,0,0,0,0,0,0,0,0,0,0,0,0,0,0,0,0,0,0,0,0,0,0,168,0,0,0,0,0,0,0,0]
[110304715,"Dahuk","Sumel","Markaz Sumel","27124-New Zinya","27124-زينيا جديدة","Rural","Village","New zinya tents and mud/ block structure house North East football yard","زينيا جديدة خيم و منازل من طين و كتل من بلوك شمال شرق ملعب كرة القدم","Cluster",29,"Yes",32,192,0,0,0,0,0,0,0,0,0,0,0,0,0,0,0,0,0,0,0,0,0,0,0,192,0,0,0,0,0,0,0,0]
[110304301,"Dahuk","Sumel","Markaz Sumel","27125-Old Qasr Yazddin","27125-قسريزدين قديمة","Rural","Village","Old Qaser yazdin tents and mud/ block structure on Semel road","قسريزدين قديمة  خيم و منازل من طين و كتل من بلوك على طريق سميل","Cluster",32,"Yes",38,228,0,0,0,0,0,0,0,0,0,0,0,0,0,0,0,0,0,0,0,0,0,0,0,228,0,0,0,0,0,0,0,0]
[110304001,"Dahuk","Sumel","Markaz Sumel","27127-Old Mam Shvana","27127-مام شفانا قديمة","Rural","Village","Tent & mud houses of old mam shvana","خيم و بيوت مصنعة من طين مام شفان قديمة","Cluster",50,"Yes",52,312,0,0,0,0,0,0,0,0,0,0,0,0,0,0,0,0,0,0,0,0,0,0,0,312,0,0,0,0,0,0,0,0]
[110302312,"Dahuk","Sumel","Markaz Sumel","7989-Seje","7989-سيجي","Rural","Village","East of Seji village","شرق قرية سيجي","Cluster",18,"Yes",30,180,0,0,0,0,0,0,0,0,0,0,0,0,0,0,0,0,0,0,0,90,0,0,0,90,0,0,0,0,0,0,0,0]
[110302311,"Dahuk","Sumel","Markaz Sumel","7989-Seje","7989-سيجي","Rural","Village","Seji village Near Seji IDP'S school 2","قرية سيجي قريبة من مدرسة سيجي للنازحين ٢","Cluster",14,"Yes",23,138,0,0,0,0,0,0,0,0,0,0,0,0,0,0,0,0,0,0,0,48,0,0,0,90,0,0,0,0,0,0,0,0]
[110302306,"Dahuk","Sumel","Markaz Sumel","7989-Seje","7989-سيجي","Rural","Village","UB East of seje kindergarten","هياكل شرق روضة اطفال سيجي","Cluster",9,"Yes",18,108,0,0,0,0,0,0,0,0,0,0,0,0,0,0,0,0,0,0,0,30,0,0,0,78,0,0,0,0,0,0,0,0]
[110302310,"Dahuk","Sumel","Markaz Sumel","7989-Seje","7989-سيجي","Rural","Village","Seji village Near seji IDP'S school 1","قرية سيجي قريبة من مدرسة سيجي للنازحين ١","Cluster",16,"Yes",27,162,0,0,0,0,0,0,0,0,0,0,0,0,0,0,0,0,0,0,0,60,0,0,0,102,0,0,0,0,0,0,0,0]
[110302308,"Dahuk","Sumel","Markaz Sumel","7989-Seje","7989-سيجي","Rural","Village","UB Soth-East seje","هياكل جنوب شرق سيجي","Cluster",14,"Yes",22,132,0,0,0,0,0,0,0,0,0,0,0,0,0,0,0,0,0,0,0,0,0,0,0,132,0,0,0,0,0,0,0,0]
[110302313,"Dahuk","Sumel","Markaz Sumel","7989-Seje","7989-سيجي","Rural","Village","UB North seje","هياكل شمال سيجي","Cluster",11,"Yes",18,108,0,0,0,0,0,0,0,0,0,0,0,0,0,0,0,0,0,0,0,0,0,0,0,108,0,0,0,0,0,0,0,0]
[110304203,"Dahuk","Sumel","Markaz Sumel","8582-Qasr Yazddin","8582-قسر يزدين","Rural","Village","Qaser yazdin tent and  mud block structures close to lalish hall","قسريزدين خيم و منازل من طين و كتل من بلوك قرب لالش هول","Cluster",220,"Yes",255,{"v":1530,"d":"1,530"},0,0,0,0,0,0,0,0,0,0,0,0,0,0,0,0,0,0,0,0,0,0,0,{"v":1530,"d":"1,530"},0,0,0,0,0,0,0,0]
[110401601,"Dahuk","Zakho","Rizgari","23620-Fishkhaboor","23620-فيشخابور","Rural","Village","Near Feshkhabor Church","قرب كنيسة فيشخابور","Cluster",10,"Yes",16,96,0,0,0,0,0,0,0,0,0,0,0,0,0,0,0,0,0,0,0,42,0,0,0,54,0,0,0,0,0,0,0,0]
[110401907,"Dahuk","Zakho","Rizgari","25992-Diraboon","25992-ديربون","Rural","Big Area/Sector","Derabon near Lalish Center","ديربون قرب مركز لالش","Cluster",28,"Yes",31,186,0,0,0,0,0,0,0,0,0,0,0,0,0,0,0,0,0,0,0,30,0,0,0,156,0,0,0,0,0,0,0,0]
[110401901,"Dahuk","Zakho","Rizgari","25992-Diraboon","25992-ديربون","Rural","Big Area/Sector","Derabon Between Cemetery and Elictricity directorate","ديربون بين المقبرة ودائرة الكهرباء","Cluster",78,"Yes",92,552,0,0,0,0,0,0,0,0,0,0,0,0,0,0,0,0,0,0,0,312,0,0,0,240,0,0,0,0,0,0,0,0]
[110401905,"Dahuk","Zakho","Rizgari","25992-Diraboon","25992-ديربون","Rural","Big Area/Sector","Derabon near Arten oil statio","ديربون قرب محطة ارتين","Cluster",34,"Yes",36,216,0,0,0,0,0,0,0,0,0,0,0,0,0,0,0,0,0,0,0,54,0,0,0,162,0,0,0,0,0,0,0,0]
[1202147,"Erbil","Erbil","Banslawa - Kasnazan","33152-Dashti bahasht","33152-دشتي بهشت","Urban","Site","Dashti bahasht","دشتي بهشت","Site",null,"Yes",45,270,0,0,0,0,0,0,0,0,0,0,0,0,0,0,0,0,0,0,270,0,0,0,0,0,0,0,0,0,0,0,0,0]
[1202140,"Erbil","Erbil","Markaz Erbil","29558-Al Saxra Complex ","29558-مجمع الصخرة","Urban","Site","Al Saxra Complex ","مجمع الصخرة","Site",null,"Yes",28,168,0,0,0,0,0,0,0,0,0,0,0,0,0,0,0,0,0,0,0,0,132,0,36,0,0,0,0,0,0,0,0,0]
[1202157,"Erbil","Erbil","Markaz Erbil","34231-Unfinished site-Divan hotel","34231-مبنى غير مكتمل-فدق ديفان","Urban","Site","Unfinished site-Divan hotel","مبنى غير مكتمل-فدق ديفان","Site",null,"Yes",18,108,0,0,0,0,0,0,0,0,0,0,0,0,0,0,0,0,0,0,0,0,0,0,0,108,0,0,0,0,0,0,0,0]
[2502054,"Kerbala","Al-Hindiya","Al-Jadwal Al-Ghrabi","32057-Abu Tharr complex","32057-مجمع ابا ذر","Urban","Site","Abu Tharr complex","مجمع ابا ذر","Site",null,"Yes",25,150,0,0,0,0,0,0,0,0,0,0,0,0,0,0,0,0,0,0,0,0,0,0,0,0,150,0,0,0,0,0,0,0]
[260201101,"Kirkuk","Daquq","Laylan","25739-Laylan-Bash Bulaq village","25739-قرية باش بولاق","Rural","Village","Shrinja Bulaq school","مدرسة شركة بولاق","Site",null,"Yes",50,300,0,0,0,0,0,0,0,0,0,0,0,0,0,0,0,0,0,300,0,0,0,0,0,0,0,0,0,0,0,0,0,0]
[260201301,"Kirkuk","Daquq","Taza Khurmatu","14960-Taza-Omer Bin Khattab","14960-قرية عمر بن الخطاب","Rural","Village","site 1","سايت 1","Cluster",3,"Yes",40,240,0,0,0,0,0,0,0,0,0,0,0,0,0,0,0,0,0,90,0,0,0,90,0,0,0,0,0,0,0,0,60,0]
[260201302,"Kirkuk","Daquq","Taza Khurmatu","14960-Taza-Omer Bin Khattab","14960-قرية عمر بن الخطاب","Rural","Village","site 2","سايت  2","Cluster",2,"Yes",30,180,0,0,0,0,0,0,0,0,0,0,0,0,0,0,0,0,0,0,0,0,0,90,0,0,0,0,0,60,0,0,30,0]
[260302601,"Kirkuk","Kirkuk","Markaz Kirkuk","15550-Hay Al-Urooba","15550-حي العروبة","Urban","Big Area/Sector","Site 1","سايت ١","Site",null,"Yes",45,270,0,0,0,0,0,0,0,0,0,0,0,0,120,0,0,60,18,30,0,0,0,0,24,0,0,0,18,0,0,0,0,0]
[260302602,"Kirkuk","Kirkuk","Markaz Kirkuk","15550-Hay Al-Urooba","15550-حي العروبة","Urban","Big Area/Sector","Site 2","سايت ٢","Site",null,"Yes",40,240,0,0,0,0,0,0,0,0,0,0,0,0,60,0,0,60,0,90,0,0,0,0,30,0,0,0,0,0,0,0,0,0]
[260302603,"Kirkuk","Kirkuk","Markaz Kirkuk","15550-Hay Al-Urooba","15550-حي العروبة","Urban","Big Area/Sector","Site 3","سايت ٣","Cluster",2,"Yes",40,240,0,0,0,0,0,0,0,0,0,0,0,0,0,0,0,60,0,60,90,0,0,0,30,0,0,0,0,0,0,0,0,0]
[260301301,"Kirkuk","Kirkuk","Markaz Kirkuk","15603-Hay 1 Athar","15603-حي 1 اذار","Urban","Neighborhood","Entrance of hay 1 athar","مدخل ١ اذار","Site",null,"Yes",20,120,0,0,0,0,0,0,0,0,0,0,0,0,0,0,0,0,0,0,120,0,0,0,0,0,0,0,0,0,0,0,0,0]
[260302401,"Kirkuk","Kirkuk","Markaz Kirkuk","15639-Hay Al-Nedaa","15639-حي النداء","Urban","Neighborhood","Ahmed khalaf","احمد خلف","Site",null,"Yes",40,240,0,0,0,0,0,0,0,0,0,0,0,0,0,0,0,120,0,30,90,0,0,0,0,0,0,0,0,0,0,0,0,0]
[260302403,"Kirkuk","Kirkuk","Markaz Kirkuk","15639-Hay Al-Nedaa","15639-حي النداء","Urban","Neighborhood","Site 1","سايت ١","Site",null,"Yes",50,300,0,0,0,0,0,0,0,0,0,0,0,0,0,0,0,150,0,60,90,0,0,0,0,0,0,0,0,0,0,0,0,0]
[260302302,"Kirkuk","Kirkuk","Markaz Kirkuk","15650-Hay Al-Nasir 2","15650-حي النصر 2","Urban","Neighborhood","site 2","سايت 2","Site",null,"Yes",40,240,0,0,0,0,0,0,0,0,0,0,0,0,0,0,0,90,0,60,0,0,0,0,0,0,0,0,0,0,0,0,0,90]
[260302501,"Kirkuk","Kirkuk","Markaz Kirkuk","15658-Hay Al-Sinay","15658-حي الصناعي","Rural","Village","site 1","سايت واحد","Site",null,"Yes",40,240,0,0,0,0,0,0,0,0,0,0,0,0,0,0,0,180,0,0,60,0,0,0,0,0,0,0,0,0,0,0,0,0]
[260302502,"Kirkuk","Kirkuk","Markaz Kirkuk","15658-Hay Al-Sinay","15658-حي الصناعي","Rural","Village","site 2","سايت 2","Site",null,"Yes",30,180,0,0,0,0,0,0,0,0,0,0,0,0,0,0,0,150,0,0,0,0,0,0,0,0,0,0,0,0,0,0,0,30]
[260301603,"Kirkuk","Kirkuk","Markaz Kirkuk","22296-Hay Al Jamia-Mahalla 622","22296-حي الجامعة-622","Urban","Big Area/Sector","Near Salam school","قرب مدرسة السلام","Site",null,"Yes",90,540,0,0,0,0,0,0,0,0,0,0,0,0,0,0,0,150,0,60,30,0,0,0,0,0,0,0,0,30,0,0,0,270]
[260301601,"Kirkuk","Kirkuk","Markaz Kirkuk","22296-Hay Al Jamia-Mahalla 622","22296-حي الجامعة-622","Urban","Big Area/Sector","Near bus station","قرب  موقف الباصات","Site",null,"Yes",145,870,0,0,0,0,0,0,0,0,0,0,0,0,0,0,0,360,0,150,90,0,0,0,0,0,0,0,0,90,0,0,0,180]
[260301602,"Kirkuk","Kirkuk","Markaz Kirkuk","22296-Hay Al Jamia-Mahalla 622","22296-حي الجامعة-622","Urban","Big Area/Sector","Near nadir generator","قرب مولدة ناصر","Site",null,"Yes",80,480,0,0,0,0,0,0,0,30,0,0,0,0,0,0,0,210,0,60,60,0,0,0,0,0,0,0,0,30,30,0,0,60]
[260301604,"Kirkuk","Kirkuk","Markaz Kirkuk","22296-Hay Al Jamia-Mahalla 622","22296-حي الجامعة-622","Urban","Big Area/Sector","Near to nasir generator 2","قرب مولدة ناصر","Site",null,"Yes",105,630,0,0,0,0,0,0,0,0,0,0,30,0,60,0,0,150,0,90,210,0,0,0,0,0,0,0,0,0,0,0,0,90]
[260301605,"Kirkuk","Kirkuk","Markaz Kirkuk","22296-Hay Al Jamia-Mahalla 622","22296-حي الجامعة-622","Urban","Big Area/Sector","Muhsin abodulah","محسن عبدالله","Site",null,"Yes",75,450,0,0,0,0,0,0,0,0,0,0,0,0,0,0,0,150,0,90,210,0,0,0,0,0,0,0,0,0,0,0,0,0]
[260301607,"Kirkuk","Kirkuk","Markaz Kirkuk","22296-Hay Al Jamia-Mahalla 622","22296-حي الجامعة-622","Urban","Big Area/Sector","Near cement factory","قرب معمل السمنت","Site",null,"Yes",55,330,0,0,0,0,0,0,0,0,0,0,0,0,0,0,0,150,0,0,90,0,0,0,0,0,0,0,0,0,0,0,0,90]
[260301608,"Kirkuk","Kirkuk","Markaz Kirkuk","22296-Hay Al Jamia-Mahalla 622","22296-حي الجامعة-622","Urban","Big Area/Sector","Near cement factory","قرب معمل السمنت","Site",null,"Yes",65,390,0,0,0,0,0,0,0,0,0,0,0,0,0,0,0,300,0,30,30,0,0,0,0,0,0,0,0,0,0,0,0,30]
[260301609,"Kirkuk","Kirkuk","Markaz Kirkuk","22296-Hay Al Jamia-Mahalla 622","22296-حي الجامعة-622","Urban","Big Area/Sector","Near ghad school","قرب مدرسة الغد","Site",null,"Yes",55,330,0,0,0,0,0,0,0,0,0,0,0,0,0,0,0,210,0,0,60,0,0,0,0,0,0,0,0,0,0,0,0,60]
[260301610,"Kirkuk","Kirkuk","Markaz Kirkuk","22296-Hay Al Jamia-Mahalla 622","22296-حي الجامعة-622","Urban","Big Area/Sector","Near ghad school","قرب مدرسة الغد","Site",null,"Yes",120,720,0,0,0,0,0,0,0,0,0,0,0,0,120,0,0,180,0,300,120,0,0,0,0,0,0,0,0,0,0,0,0,0]
[260304502,"Kirkuk","Kirkuk","Markaz Kirkuk","23634-Runaki","23634-حي روناكي","Urban","Neighborhood","Site 2","سايت 2","Site",null,"Yes",25,150,0,0,0,0,0,0,0,0,0,0,0,0,0,0,0,30,30,0,90,0,0,0,0,0,0,0,0,0,0,0,0,0]
[260302702,"Kirkuk","Kirkuk","Markaz Kirkuk","23899-Hay Al-Zawraa","23899-حي الزوراء","Urban","Neighborhood","Beside petroleum product company kirkuk","قرب شركة المنتوجات النفطية فرع كركوك","Site",null,"Yes",65,390,0,0,0,0,0,0,0,0,0,0,0,0,0,0,0,210,0,0,150,0,0,0,0,0,0,0,0,0,0,0,0,30]
[260304701,"Kirkuk","Kirkuk","Markaz Kirkuk","24422-Sayada village","24422-قرية صيادة","Rural","Village","Entrance of Alsayyada","مدخل الصيادة","Site",null,"Yes",45,270,0,0,0,0,0,0,0,0,0,0,0,0,0,0,0,150,0,0,0,0,0,0,0,0,0,0,0,0,0,0,0,120]
[260302001,"Kirkuk","Kirkuk","Markaz Kirkuk","24780-Hay Al Sekak","24780-حي السكك","Urban","Neighborhood","Alghufran mousqe","جامع الغفران","Cluster",2,"Yes",40,240,0,0,0,0,0,0,0,30,0,0,0,0,0,0,0,120,0,0,0,0,0,0,0,0,0,0,0,0,0,0,90,0]
[260306802,"Kirkuk","Kirkuk","Markaz Kirkuk","31728-Hay Al-Askary 1","31728-حي العسكري 1","Urban","Neighborhood","site 1","سايت 1","Site",null,"Yes",220,{"v":1320,"d":"1,320"},0,0,0,0,0,0,0,0,0,0,6,18,0,12,60,480,60,120,60,0,0,0,6,0,0,0,18,60,0,0,0,420]
[3403078,"Najaf","Najaf","Markaz Al-Najaf","29598-Al Salam Complex","29598-مجمع السلام","Urban","Site","Al Salam Complex","مجمع السلام","Site",null,"Yes",90,540,0,0,0,0,0,0,0,0,0,0,0,0,0,0,0,0,0,0,0,0,0,0,0,0,540,0,0,0,0,0,0,0]
[270204801,"Ninewa","Al-Ba'aj","Markaz Al-Ba'aj","34009- Al Intisar","34009-حي الانتصار","Urban","Neighborhood","Almoasker","المعسكر","Cluster",19,"Yes",30,180,0,0,0,0,0,0,0,0,0,0,0,0,0,0,0,0,0,0,0,180,0,0,0,0,0,0,0,0,0,0,0,0]
[270205002,"Ninewa","Al-Ba'aj","Markaz Al-Ba'aj","34011-Al-Thawra","34011-حي الثوره","Urban","Neighborhood","Al Tahora jnoby","الثوره جنوبي","Cluster",15,"Yes",25,150,0,0,0,0,0,0,0,0,0,0,0,0,0,0,0,0,0,0,0,150,0,0,0,0,0,0,0,0,0,0,0,0]
[270205001,"Ninewa","Al-Ba'aj","Markaz Al-Ba'aj","34011-Al-Thawra","34011-حي الثوره","Urban","Neighborhood","Thawra Kharby","ثوره غربي","Cluster",13,"Yes",46,276,0,0,0,0,0,0,0,0,0,0,0,0,0,0,0,0,0,0,0,276,0,0,0,0,0,0,0,0,0,0,0,0]
[270205101,"Ninewa","Al-Ba'aj","Markaz Al-Ba'aj","34012-Alqadisya","34012-حي القادسيه","Urban","Neighborhood","Almaml","المعمل","Cluster",11,"Yes",23,138,0,0,0,0,0,0,0,0,0,0,0,0,0,0,0,0,0,0,0,138,0,0,0,0,0,0,0,0,0,0,0,0]
[270205302,"Ninewa","Al-Ba'aj","Markaz Al-Ba'aj","34013-Al Askari","34013-حي العسكري","Urban","Neighborhood","Al Askary","العسكري","Cluster",11,"Yes",22,132,0,0,0,0,0,0,0,0,0,0,0,0,0,0,0,0,0,0,0,132,0,0,0,0,0,0,0,0,0,0,0,0]
[270205401,"Ninewa","Al-Ba'aj","Markaz Al-Ba'aj","34014-Hateen","34014-حي حطين","Urban","Neighborhood","Hateen Sharge","حطين شرقي","Cluster",8,"Yes",18,108,0,0,0,0,0,0,0,0,0,0,0,0,0,0,0,0,0,0,0,108,0,0,0,0,0,0,0,0,0,0,0,0]
[270205402,"Ninewa","Al-Ba'aj","Markaz Al-Ba'aj","34014-Hateen","34014-حي حطين","Urban","Neighborhood","Hittin southerner","حطين الجنوبي","Cluster",11,"Yes",16,96,0,0,0,0,0,0,0,0,0,0,0,0,0,0,0,0,0,0,0,96,0,0,0,0,0,0,0,0,0,0,0,0]
[270400201,"Ninewa","Al-Shikhan","Ba'adre","17752-Baadre","17752-باعدري","Urban","Big Area/Sector","Near Ba'adri health center","قرب مركز باعدري الصحي","Cluster",15,"Yes",25,150,0,0,0,0,0,0,0,0,0,0,0,0,0,0,0,0,0,0,0,48,0,0,0,102,0,0,0,0,0,0,0,0]
[270500105,"Ninewa","Hatra","Altal","27271-Tal abta","27271-تل عبطة","Peri-urban","Big Area/Sector","Altiauna","الطياونة","Cluster",15,"Yes",15,90,0,0,0,0,0,0,0,0,0,0,0,0,0,0,0,0,0,0,0,0,0,90,0,0,0,0,0,0,0,0,0,0]
[270500104,"Ninewa","Hatra","Altal","27271-Tal abta","27271-تل عبطة","Peri-urban","Big Area/Sector","Al jazera","الجزيرة","Cluster",20,"Yes",28,168,0,0,0,0,0,0,0,0,0,0,0,0,0,0,0,0,0,0,0,0,0,168,0,0,0,0,0,0,0,0,0,0]
[270500109,"Ninewa","Hatra","Altal","27271-Tal abta","27271-تل عبطة","Peri-urban","Big Area/Sector","Almareth","المعارض","Cluster",35,"Yes",35,210,0,0,0,0,0,0,0,0,0,0,0,0,0,0,0,0,0,0,0,30,0,180,0,0,0,0,0,0,0,0,0,0]
[270500114,"Ninewa","Hatra","Altal","27271-Tal abta","27271-تل عبطة","Peri-urban","Big Area/Sector","Al jazera 2","الجزيرة 2","Cluster",30,"Yes",30,180,0,0,0,0,0,0,0,0,0,0,0,0,0,0,0,0,0,0,0,0,0,180,0,0,0,0,0,0,0,0,0,0]
[270613501,"Ninewa","Mosul","Al-Qayara","31703-AL-Mahattah Al-ghaziyah Village","31703-قرية المحطة الغازية","Rural","Village","alsadi","الصد","Cluster",23,"Yes",26,156,0,0,0,0,0,0,0,0,0,0,0,0,0,0,0,0,0,0,0,0,0,156,0,0,0,0,0,0,0,0,0,0]
[270604302,"Ninewa","Mosul","Markaz Mosul","18314-Hay Al Intisar","18314-الانتصار","Urban","Neighborhood","Al-Shaheed Muhammad Yunus Al-Sabawi Primary School for Girls","مدرسة الشهيد محمد يونس السبعاوي الابتدائية للبنات","Cluster",15,"Yes",15,90,0,0,0,0,0,0,0,0,0,0,0,0,0,0,0,0,0,0,0,6,0,12,48,18,6,0,0,0,0,0,0,0]
[270604301,"Ninewa","Mosul","Markaz Mosul","18314-Hay Al Intisar","18314-الانتصار","Urban","Neighborhood","Pension market near the gas plant","سؤق المعاش قرب معمل الغاز","Cluster",45,"Yes",45,270,0,0,0,0,0,0,0,0,0,0,0,0,0,0,0,0,0,0,0,0,174,24,72,0,0,0,0,0,0,0,0,0]
[270604801,"Ninewa","Mosul","Markaz Mosul","18370-Hay Al Tammem","18370-التاميم","Urban","Neighborhood","Unfinshed building near Fatimat Alzahraa's School","هيكل قرب مدرسة فاطمة الزهراء","Site",null,"Yes",22,132,0,0,0,0,0,0,0,0,0,0,0,0,0,0,0,0,0,0,0,0,0,0,12,18,6,96,0,0,0,0,0,0]
[270701101,"Ninewa","Sinjar","Al-Shamal","27288-Karsi ","27288-كرسي","Rural","Village","Lower Karsi","كرسي السفلى","Cluster",28,"Yes",41,246,0,0,0,0,0,0,0,0,0,0,0,0,0,0,0,0,0,0,0,228,0,0,0,18,0,0,0,0,0,0,0,0]
[270701601,"Ninewa","Sinjar","Al-Shamal","27361-Wary Bahdo","27361-واري بهدو","Rural","Village","Jebel Sinjar_KhederTala","خدر تعلى","Cluster",8,"Yes",39,234,0,0,0,0,0,0,0,0,0,0,0,0,0,0,0,0,0,0,0,60,0,0,0,174,0,0,0,0,0,0,0,0]
[270701603,"Ninewa","Sinjar","Al-Shamal","27361-Wary Bahdo","27361-واري بهدو","Rural","Village","Hassan Said Sector","قاطع حسن سعيد","Cluster",5,"Yes",21,126,0,0,0,0,0,0,0,0,0,0,0,0,0,0,0,0,0,0,0,18,0,0,0,108,0,0,0,0,0,0,0,0]
[270701602,"Ninewa","Sinjar","Al-Shamal","27361-Wary Bahdo","27361-واري بهدو","Rural","Village","Jebel Sinjar_Kharab rashik","خراب رشك","Cluster",5,"Yes",20,120,0,0,0,0,0,0,0,0,0,0,0,0,0,0,0,0,0,0,0,120,0,0,0,0,0,0,0,0,0,0,0,0]
[270701702,"Ninewa","Sinjar","Al-Shamal","27362-Sardashty","27362-سردشتي","Rural","Village","Jebel Sinjar_Sardashty Northern","سردشتي الشمالي","Cluster",79,"Yes",97,582,0,0,0,0,0,0,0,0,0,0,0,0,0,0,0,0,0,0,0,450,0,0,0,132,0,0,0,0,0,0,0,0]
[270701701,"Ninewa","Sinjar","Al-Shamal","27362-Sardashty","27362-سردشتي","Rural","Village","Jebel Sinjar_Sardashty Southern","سردشتي الجنوبي","Cluster",103,"Yes",142,852,0,0,0,0,0,0,0,0,0,0,0,0,0,0,0,0,0,0,0,678,0,0,0,174,0,0,0,0,0,0,0,0]
[270701902,"Ninewa","Sinjar","Al-Shamal","27364-Melik","27364-ملك","Rural","Village","Melik-Qubani intersection","تقاطع ملك-قباني","Cluster",26,"Yes",50,300,0,0,0,0,0,0,0,0,0,0,0,0,0,0,0,0,0,0,0,288,0,0,0,12,0,0,0,0,0,0,0,0]
[270701901,"Ninewa","Sinjar","Al-Shamal","27364-Melik","27364-ملك","Rural","Village","Jebel Sinjar_Qubani","قباني","Cluster",31,"Yes",58,348,0,0,0,0,0,0,0,0,0,0,0,0,0,0,0,0,0,0,0,324,0,0,0,24,0,0,0,0,0,0,0,0]
[270703401,"Ninewa","Sinjar","Al-Shamal","28418-Darki Qawala","28418-داركي قوالا","Rural","Village","Jebel Sinjar_Darki qawala southern","داركي قوالا جنوبي","Cluster",9,"Yes",50,300,0,0,0,0,0,0,0,0,0,0,0,0,0,0,0,0,0,0,0,300,0,0,0,0,0,0,0,0,0,0,0,0]
[2708127,"Ninewa","Telafar","Zummar","33243-Ry Al-Jazera","33243-مشروع ري الجزيره","Peri-urban","Site","Ry Al-Jazera","مشروع ري الجزيره","Cluster",40,"Yes",50,300,0,0,0,0,0,0,0,0,0,0,0,0,0,0,0,0,0,0,0,0,0,0,0,0,300,0,0,0,0,0,0,0]
[360300301,"Qadissiya","Diwaniya","Markaz Al-Diwaniya","22326-Al Mojamaa Al Sakani","22326-المجمع السكني","Urban","Neighborhood","Al-Zaitoon complex","مجمع الزيتون","Cluster",8,"Yes",21,126,0,0,0,0,0,0,0,0,0,0,0,0,0,0,0,0,0,0,0,0,36,0,0,0,90,0,0,0,0,0,0,0]
[280305101,"Salah al-Din","Baiji","Al-Siniya","33714-AL-Khalfa","33714-الخلفاء","Rural","Village","Kh","محطه  الوقود","Site",null,"Yes",22,132,0,0,0,0,0,0,0,0,0,0,0,0,0,0,0,0,0,0,0,0,0,0,0,0,0,0,0,132,0,0,0,0]
[280303601,"Salah al-Din","Baiji","MakkHoul","20689-Markaz Makhoul","20689-مركز مكحول","Rural","Village","Street Natheet","شارع نذير","Site",null,"Yes",26,156,0,0,0,0,0,0,0,0,0,0,0,0,0,0,0,0,0,0,0,0,0,0,0,0,0,0,0,156,0,0,0,0]
[280303801,"Salah al-Din","Baiji","MakkHoul","23243-Muhammed Almusa village","23243-قرية محمد الموسى","Rural","Village","School Street","شارع المدرسة","Site",null,"Yes",19,114,0,0,0,0,0,0,0,0,0,0,0,0,0,0,0,0,0,0,0,0,0,0,0,0,0,0,0,114,0,0,0,0]
[280303802,"Salah al-Din","Baiji","MakkHoul","23243-Muhammed Almusa village","23243-قرية محمد الموسى","Rural","Village","Al_Hawe","الحاوي","Site",null,"Yes",18,108,0,0,0,0,0,0,0,0,0,0,0,0,0,0,0,0,0,0,0,0,0,0,0,0,0,0,0,108,0,0,0,0]
[280400601,"Salah al-Din","Balad","Al-Duloeyah","25742-Al-Duloeyah-Hay Al Jubor","25742-محلة الجبور الاولى","Rural","Big Area/Sector","Almatri Road","طريق المتري","Cluster",3,"Yes",16,96,0,0,0,0,0,0,0,0,0,0,0,0,0,0,0,0,0,0,0,0,0,0,0,0,0,0,0,0,96,0,0,0]
[2804022,"Salah al-Din","Balad","Markaz Al-Balad","33347-Balad station","33347-محطة بلد","Rural","Site","Balad station","محطة بلد","Site",null,"Yes",91,546,0,0,0,0,0,0,0,0,0,0,0,0,0,0,0,0,0,0,0,0,0,0,0,0,0,0,0,0,546,0,0,0]
[280602702,"Salah al-Din","Samarra","Markaz Samarra","20569-Hay Al-Khathraa Mahala 322","20569-حي الخضراء م(25-عرموشية)محلة 322","Urban","Neighborhood","Almurbaa Area","منطقة المربعة","Site",null,"Yes",32,192,0,0,0,0,0,0,0,0,0,0,0,0,0,0,0,0,0,0,0,0,0,0,0,0,0,0,0,0,84,108,0,0]
[280600901,"Salah al-Din","Samarra","Markaz Samarra","20675-Al-Efraz area","20675-حي الافراز","Urban","Neighborhood","PHCC Street","شارع المركز الصحي","Site",null,"Yes",51,306,0,0,0,0,0,0,0,0,0,0,0,0,0,0,0,0,0,0,0,0,0,0,0,0,0,0,0,0,78,228,0,0]
[280600301,"Salah al-Din","Samarra","Markaz Samarra","21588-Al Jubairiyah Al Thalitha","21588-حي الواثق(22-جبيرية)الجبيرية الثالثة","Urban","Neighborhood","café street","شارع المقهى","Site",null,"Yes",89,534,0,0,0,0,0,0,0,0,0,0,0,0,0,0,0,0,0,0,0,0,0,0,0,0,0,0,0,0,210,324,0,0]
[280600302,"Salah al-Din","Samarra","Markaz Samarra","21588-Al Jubairiyah Al Thalitha","21588-حي الواثق(22-جبيرية)الجبيرية الثالثة","Urban","Neighborhood","School street","شارع المدرسة","Site",null,"Yes",74,444,0,0,0,0,0,0,0,0,0,0,0,0,0,0,0,0,0,0,0,0,0,0,0,0,0,0,0,0,210,234,0,0]
[280603001,"Salah al-Din","Samarra","Markaz Samarra","21590-Hay Salah Al-Din(Mahala 302)","21590-حي صلاح الدين محلة 302","Urban","Neighborhood","Al-Malab Street","شارع الملعب","Site",null,"Yes",18,108,0,0,0,0,0,0,0,0,0,0,0,0,0,0,0,0,0,0,0,0,0,0,0,0,0,0,0,0,0,108,0,0]
[280603002,"Salah al-Din","Samarra","Markaz Samarra","21590-Hay Salah Al-Din(Mahala 302)","21590-حي صلاح الدين محلة 302","Urban","Neighborhood","Al-Huda Mosque area","منطقة جامع الهدى","Site",null,"Yes",25,150,0,0,0,0,0,0,0,0,0,0,0,0,0,0,0,0,0,0,0,0,0,0,0,0,0,0,0,0,0,150,0,0]
[280600501,"Salah al-Din","Samarra","Markaz Samarra","21723-Al Qala-Mahal 201","21723-مقاطعة 4 القلعة محلة 201","Urban","Neighborhood","Train station homes","منازل محطة القطار","Site",null,"Yes",40,240,0,0,0,0,0,0,0,0,0,0,0,0,0,0,0,0,0,0,0,0,0,0,0,0,0,0,0,0,0,240,0,0]
[280602401,"Salah al-Din","Samarra","Markaz Samarra","21725-Hay Al Wathiq-Mahala 314","21725-حي الواثق(22-جبيرية)محلة 314","Urban","Neighborhood","All-Star Street","شارع الاثار","Site",null,"Yes",92,552,0,0,0,0,0,0,0,0,0,0,0,0,0,0,0,0,0,0,0,0,0,0,0,0,0,0,0,0,264,288,0,0]
[280602203,"Salah al-Din","Samarra","Markaz Samarra","22473-Hay Al Muthanna-Mahalla 312","22473-حي المثنى-محلة 312","Urban","Neighborhood","Al-Wahhab Mosque Street","شارع جامع الوهاب","Site",null,"Yes",136,816,0,0,0,0,0,0,0,0,0,0,0,0,0,0,0,0,0,0,0,0,0,0,0,0,0,0,0,0,162,654,0,0]
[280602204,"Salah al-Din","Samarra","Markaz Samarra","22473-Hay Al Muthanna-Mahalla 312","22473-حي المثنى-محلة 312","Urban","Neighborhood","gas station street","شارع محطة الوقود","Site",null,"Yes",141,846,0,0,0,0,0,0,0,0,0,0,0,0,0,0,0,0,0,0,0,0,0,0,0,0,0,0,0,0,846,0,0,0]
[280802801,"Salah al-Din","Tikrit","Markaz Tikrit","23702-Qadisya 2 500 Area","23702-حي المطاردة(قادسية2)مقاطعة 7 محله 218 – قطعه 500","Urban","Neighborhood","Abo Aqrab","ابو عقرب","Site",null,"Yes",28,168,0,0,0,0,0,0,0,0,0,0,0,0,0,0,0,0,0,0,0,0,0,0,0,0,0,0,0,168,0,0,0,0]
[280803101,"Salah al-Din","Tikrit","Markaz Tikrit","23918-Al-Mutaradah 204","23918-حي الشهداء مقاطعة 7-المطاردة محلة 204","Urban","Neighborhood","Al_shuda sector","قاطع الشهداء","Site",null,"Yes",29,174,0,0,0,0,0,0,0,0,0,0,0,0,0,0,0,12,0,0,0,0,0,0,0,0,0,0,0,162,0,0,0,0]
[280807303,"Salah al-Din","Tikrit","Markaz Tikrit","27369-Hay Alfirdous","27369-حي الفردوس(البو عبيد)مقاطعة-5 محلة 428","Urban","Neighborhood","Hay altten","حي الطين","Cluster",6,"Yes",230,{"v":1380,"d":"1,380"},0,0,0,0,0,0,0,0,0,0,0,0,0,0,0,0,0,0,0,0,0,0,0,0,0,0,0,{"v":1380,"d":"1,380"},0,0,0,0]
[280902101,"Salah al-Din","Tuz Khurmatu","Markaz Tuz Khurmatu","20992-Tooz-Hay Al Teen","20992-حي الطين","Urban","Neighborhood","Shams Al-Iraq street","شارع شمس العراق","Cluster",42,"Yes",48,288,0,0,0,0,0,0,0,0,0,0,0,0,0,0,42,0,0,0,0,0,0,0,0,0,0,0,0,0,0,0,0,246]
[290602301,"Wassit","Kut","Markaz Al-Kut","24261-Hay Al-Hawaraa 3","24261-حي الحوراء الثالثة","Urban","Neighborhood","Sport city","المدينة الرياضية","Site",null,"Yes",56,336,0,0,0,0,0,0,48,0,0,0,0,0,0,0,0,0,0,0,0,0,288,0,0,0,0,0,0,0,0,0,0,0]

{"sheet":"District Of Last displacement","index":2,"n_rows":11,"n_cols":29,"rows_kept":11,"merged":[[0,15,0,28]]}
[{"$nulls":15},"District of Last Displacement (# of Returnee Individuals)"]
["InformalSettlementID","Governorate","District","Sub-district","Location (En)","Location (Ar)","LocationType","PlaceType","Q6.1 SiteName (En)","Q6.1 SiteName (Ar)","Q6.2 Site Or Cluster","Q6.2 NumSitesInCluster","Q7 Returnees In Site","Q7.1 # of Returnee Families","# of Returnee Individuals","Anbar - Al-Ka'im","Anbar - Falluja","Anbar - Heet","Anbar - Ramadi","Baghdad - Karkh","Dahuk - Sumel","Erbil - Erbil","Erbil - Soran","Ninewa - Al-Shikhan","Ninewa - Mosul","Salah al-Din - Al-Shirqat","Salah al-Din - Tikrit","Sulaymaniyah - Sulaymaniya","Sulaymaniyah - Sulaymaniya"]
[2101047,"Anbar","Al-Ka'im","Al-Obiadi","34249-complex of Phosphate company","34249-المجمع السكني لموظفي شركة الفوسفات","Urban","Site","complex of Phosphate company","المجمع السكني لموظفي شركة الفوسفات","Site",null,"Yes",49,294,102,24,18,36,42,null,54,{"$nulls":5},18]
[210501201,"Anbar","Falluja","Al-Saqlawiyah","21556-Al Shuhadaa 2","21556-الشهداء الثانية","Urban","Neighborhood","Al Shuhadaa2","الشهداء الثانيه","Site",null,"Yes",41,246,null,246]
[2108003,"Anbar","Ramadi","Markaz Ramadi","23851-7 Killo-Al Karfanat","23851-السبعة كيلو-الكرفانات","Urban","Site","7 Killo-Al Karfanat","السبعة كيلو-الكرفانات","Site",null,"Yes",143,858,null,240,null,288,{"$nulls":3},330]
[270641301,"Ninewa","Mosul","Hamam al Aleel","34217-AL-Dabajah village","34217-قرية الدباجة","Rural","Village","AL- Dabajah","الدباجة","Cluster",38,"Yes",38,228,{"$nulls":9},228]
[270704402,"Ninewa","Sinjar","Markaz Sinjar","31742-Solagh","31742-صولاغ","Rural","Village","Tapa","تبة","Cluster",26,"Yes",26,156,{"$nulls":5},36,null,null,120]
[270704401,"Ninewa","Sinjar","Markaz Sinjar","31742-Solagh","31742-صولاغ","Rural","Village","Shkaftat","شكفتات","Cluster",17,"Yes",17,102,{"$nulls":8},102]
[280203902,"Salah al-Din","Al-Shirqat","Markaz Al-Shirqat","20389-Al-Ayitha Village","20389-قريةالعيثة(جرناف شرقي)","Rural","Village","Qandhar","قندهار","Site",null,"Yes",19,114,{"$nulls":9},114]
[280301101,"Salah al-Din","Baiji","Markaz Baiji","20866-Tal abu Jarad area-Mahalla 104","20866-تل أبو جراد محلة 104","Urban","Neighborhood","Salim's house","بيت سالم","Site",null,"Yes",42,252,{"$nulls":11},252]
[280807303,"Salah al-Din","Tikrit","Markaz Tikrit","27369-Hay Alfirdous","27369-حي الفردوس(البو عبيد)مقاطعة-5 محلة 428","Urban","Neighborhood","Hay altten","حي الطين","Cluster",6,"Yes",605,{"v":3630,"d":"3,630"},{"$nulls":10},{"v":3630,"d":"3,630"}]